Organisation Name,Organisation Code,Effective Date,Directorate  Where Expenditure Incurred,Supplier Name,Payment Date,Transaction Number,Gross Amount,Purpose of Spend,Merchant Category,Card Transaction
WALSALL COUNCIL,HTTP://OPENDATACOMMUNITIES.ORG/ID/METROPOLITAN-DISTRICT-COUNCIL/WALSALL,30/09/2019,RESOURCES & TRANSFORMATION,CHICKEN JOES LTD,01/07/2019,H59620190703BFYENEEUI-1,170.18,CA ELMORE GREEN PRIMARY SCHOOL-CATERING,CATERERS,GPC
WALSALL COUNCIL,HTTP://OPENDATACOMMUNITIES.ORG/ID/METROPOLITAN-DISTRICT-COUNCIL/WALSALL,30/09/2019,ECONOMY & ENVIRONMENT,AMZNMKTPLACE,01/07/2019,H59620190703CKXVOFFOG-1,85.76,WALSALL ARENA AND ARTS CENTRE-STATIONERY & GENERAL SUPPLIES-OFFICE EXP,MISCELLANEOUS AND SPECIALTY RETAIL STORES,GPC
WALSALL COUNCIL,HTTP://OPENDATACOMMUNITIES.ORG/ID/METROPOLITAN-DISTRICT-COUNCIL/WALSALL,30/09/2019,RESOURCES & TRANSFORMATION,BLAKEMORE FOODSERVICE,01/07/2019,H59620190703CMNBZGAAU-1,221.57,CA BEACON PRIMARY SCHOOL-FOOD & DRINK SUPPLIES,CATERERS,GPC
WALSALL COUNCIL,HTTP://OPENDATACOMMUNITIES.ORG/ID/METROPOLITAN-DISTRICT-COUNCIL/WALSALL,30/09/2019,RESOURCES & TRANSFORMATION,BLAKEMORE FOODSERVICE,01/07/2019,H59620190703CMNBZGAAU-2,35.33,CA BEACON PRIMARY SCHOOL-FOOD & DRINK SUPPLIES,CATERERS,GPC
WALSALL COUNCIL,HTTP://OPENDATACOMMUNITIES.ORG/ID/METROPOLITAN-DISTRICT-COUNCIL/WALSALL,30/09/2019,CHILDRENS SERVICES,TRAINLINE,01/07/2019,H59620190703CMVVZXOMJ-1,53.90,SAFEGUARDING & FAMILY SUPPORT-OFFICER/STAFF-PUBLIC TRANSPORT,PASSENGER RAILWAYS,GPC
WALSALL COUNCIL,HTTP://OPENDATACOMMUNITIES.ORG/ID/METROPOLITAN-DISTRICT-COUNCIL/WALSALL,30/09/2019,CHILDRENS SERVICES,AMZNMKTPLACE,01/07/2019,H59620190703COBFKQHYU-1,8.83,WEST LOCALITY - SCHOOL READY-EVENTS AND VISUAL ARTS,MISCELLANEOUS AND SPECIALTY RETAIL STORES,GPC
WALSALL COUNCIL,HTTP://OPENDATACOMMUNITIES.ORG/ID/METROPOLITAN-DISTRICT-COUNCIL/WALSALL,30/09/2019,RESOURCES & TRANSFORMATION,ASDA SUPERSTORE,01/07/2019,H59620190703CRXRCPDUF-1,29.30,CA CENTRAL SUPPORT SERVICES-FOOD & DRINK SUPPLIES,GROCERY STORES AND SUPERMARKETS,GPC
WALSALL COUNCIL,HTTP://OPENDATACOMMUNITIES.ORG/ID/METROPOLITAN-DISTRICT-COUNCIL/WALSALL,30/09/2019,RESOURCES & TRANSFORMATION,CHICKEN JOES LTD,01/07/2019,H59620190703CULARLYVB-1,74.52,CA JANE LANE SPECIAL SCHOOL-FOOD & DRINK SUPPLIES,CATERERS,GPC
WALSALL COUNCIL,HTTP://OPENDATACOMMUNITIES.ORG/ID/METROPOLITAN-DISTRICT-COUNCIL/WALSALL,30/09/2019,RESOURCES & TRANSFORMATION,CHICKEN JOES LTD,01/07/2019,H59620190703CYUEXVCIK-1,58.25,CA ST MICHAELS C.E. PRIMARY SC-FOOD & DRINK SUPPLIES,CATERERS,GPC
WALSALL COUNCIL,HTTP://OPENDATACOMMUNITIES.ORG/ID/METROPOLITAN-DISTRICT-COUNCIL/WALSALL,30/09/2019,CHILDRENS SERVICES,THE GREEN REAPER,01/07/2019,H59620190703DDHGMWWWN-1,349.00,LEIGHSWOOD PRIMARY SCHOOL-MTCE OF GROUNDS-PAYMENT TO CONTRACTOR INTERNAL,"ANTIQUE SALES, REPAIRS, AND RESTORATION SERVICES",GPC
WALSALL COUNCIL,HTTP://OPENDATACOMMUNITIES.ORG/ID/METROPOLITAN-DISTRICT-COUNCIL/WALSALL,30/09/2019,RESOURCES & TRANSFORMATION,BLAKEMORE FOODSERVICE,01/07/2019,H59620190703DEFBJVDFQ-1,121.25,CA RADLEYS PRIMARY SCHOOL-FOOD & DRINK SUPPLIES,CATERERS,GPC
WALSALL COUNCIL,HTTP://OPENDATACOMMUNITIES.ORG/ID/METROPOLITAN-DISTRICT-COUNCIL/WALSALL,30/09/2019,RESOURCES & TRANSFORMATION,BLAKEMORE FOODSERVICE,01/07/2019,H59620190703DEFBJVDFQ-2,237.42,CA RADLEYS PRIMARY SCHOOL-FOOD & DRINK SUPPLIES,CATERERS,GPC
WALSALL COUNCIL,HTTP://OPENDATACOMMUNITIES.ORG/ID/METROPOLITAN-DISTRICT-COUNCIL/WALSALL,30/09/2019,ECONOMY & ENVIRONMENT,AMZNMKTPLACE,01/07/2019,H59620190703DHKRGMYUX-1,16.99,MARKETING AND PROMOTION-GENERAL MATERIALS,MISCELLANEOUS AND SPECIALTY RETAIL STORES,GPC
WALSALL COUNCIL,HTTP://OPENDATACOMMUNITIES.ORG/ID/METROPOLITAN-DISTRICT-COUNCIL/WALSALL,30/09/2019,CHILDRENS SERVICES,CITY DIRECT,01/07/2019,H59620190703DIPPILCPJ-1,-40.00,SAFEGUARDING & FAMILY SUPPORT-POSTAGES AND COURIER SERVICES,OTHER SCHOOLS AND EDUCATIONAL SERVICES,GPC
WALSALL COUNCIL,HTTP://OPENDATACOMMUNITIES.ORG/ID/METROPOLITAN-DISTRICT-COUNCIL/WALSALL,30/09/2019,RESOURCES & TRANSFORMATION,BLAKEMORE FOODSERVICE,01/07/2019,H59620190703DIQSTFHFF-1,190.08,CA LEIGHSWOOD PRIMARY SCHOOL-FOOD & DRINK SUPPLIES,CATERERS,GPC
WALSALL COUNCIL,HTTP://OPENDATACOMMUNITIES.ORG/ID/METROPOLITAN-DISTRICT-COUNCIL/WALSALL,30/09/2019,RESOURCES & TRANSFORMATION,BLAKEMORE FOODSERVICE,01/07/2019,H59620190703DIQSTFHFF-2,201.34,CA LEIGHSWOOD PRIMARY SCHOOL-FOOD & DRINK SUPPLIES,CATERERS,GPC
WALSALL COUNCIL,HTTP://OPENDATACOMMUNITIES.ORG/ID/METROPOLITAN-DISTRICT-COUNCIL/WALSALL,30/09/2019,ECONOMY & ENVIRONMENT,EB *SGSA ANNUAL CONFER,01/07/2019,H59620190703DORCFXEND-1,110.00,EMERGENCY PLANNING-COURSE/CONFERENCE EXPENSES,OTHER BUSINESS SERVICES,GPC
WALSALL COUNCIL,HTTP://OPENDATACOMMUNITIES.ORG/ID/METROPOLITAN-DISTRICT-COUNCIL/WALSALL,30/09/2019,CHILDRENS SERVICES,AMZNMKTPLACE,01/07/2019,H59620190703DQMHLLVPN-1,7.95,WEST LOCALITY - SCHOOL READY-EVENTS AND VISUAL ARTS,MISCELLANEOUS AND SPECIALTY RETAIL STORES,GPC
WALSALL COUNCIL,HTTP://OPENDATACOMMUNITIES.ORG/ID/METROPOLITAN-DISTRICT-COUNCIL/WALSALL,30/09/2019,CHILDRENS SERVICES,AMZNMKTPLACE,01/07/2019,H59620190703DTMPTFKON-1,2.41,WEST LOCALITY - SCHOOL READY-EVENTS AND VISUAL ARTS,MISCELLANEOUS AND SPECIALTY RETAIL STORES,GPC
WALSALL COUNCIL,HTTP://OPENDATACOMMUNITIES.ORG/ID/METROPOLITAN-DISTRICT-COUNCIL/WALSALL,30/09/2019,CHILDRENS SERVICES,TESCO STORES 6672,01/07/2019,H59620190703EFKXWLOMB-1,1.75,EARLY YEARS DEPARTMENT-GENERAL MATERIALS,GROCERY STORES AND SUPERMARKETS,GPC
WALSALL COUNCIL,HTTP://OPENDATACOMMUNITIES.ORG/ID/METROPOLITAN-DISTRICT-COUNCIL/WALSALL,30/09/2019,CHILDRENS SERVICES,TESCO STORES 6672,01/07/2019,H59620190703EFKXWLOMB-2,16.10,EARLY YEARS DEPARTMENT-GENERAL MATERIALS,GROCERY STORES AND SUPERMARKETS,GPC
WALSALL COUNCIL,HTTP://OPENDATACOMMUNITIES.ORG/ID/METROPOLITAN-DISTRICT-COUNCIL/WALSALL,30/09/2019,RESOURCES & TRANSFORMATION,BLAKEMORE FOODSERVICE,01/07/2019,H59620190703EGBNVGZCW-1,104.51,CA MOORCROFT WOOD-FOOD & DRINK SUPPLIES,CATERERS,GPC
WALSALL COUNCIL,HTTP://OPENDATACOMMUNITIES.ORG/ID/METROPOLITAN-DISTRICT-COUNCIL/WALSALL,30/09/2019,RESOURCES & TRANSFORMATION,BLAKEMORE FOODSERVICE,01/07/2019,H59620190703EXIRCHCVL-1,-120.19,CA TOWN HALL RESTAURANT - CATE-FOOD & DRINK SUPPLIES,CATERERS,GPC
WALSALL COUNCIL,HTTP://OPENDATACOMMUNITIES.ORG/ID/METROPOLITAN-DISTRICT-COUNCIL/WALSALL,30/09/2019,RESOURCES & TRANSFORMATION,CHICKEN JOES LTD,01/07/2019,H59620190703EXRCLPOLU-1,43.64,CA ST MICHAELS C.E. PRIMARY SC-FOOD & DRINK SUPPLIES,CATERERS,GPC
WALSALL COUNCIL,HTTP://OPENDATACOMMUNITIES.ORG/ID/METROPOLITAN-DISTRICT-COUNCIL/WALSALL,30/09/2019,CHILDRENS SERVICES,TRAINLINE,01/07/2019,H59620190703FOVXPDYMO-1,34.83,SAFEGUARDING & FAMILY SUPPORT-OFFICER/STAFF-PUBLIC TRANSPORT,PASSENGER RAILWAYS,GPC
WALSALL COUNCIL,HTTP://OPENDATACOMMUNITIES.ORG/ID/METROPOLITAN-DISTRICT-COUNCIL/WALSALL,30/09/2019,RESOURCES & TRANSFORMATION,TRAVELODGE GB0000,01/07/2019,H59620190703GDIXJPGMJ-1,181.00,BED & BREAKFAST PAYMENTS-BED & BREAKFAST PAYMENTS,TRAVELODGE,GPC
WALSALL COUNCIL,HTTP://OPENDATACOMMUNITIES.ORG/ID/METROPOLITAN-DISTRICT-COUNCIL/WALSALL,30/09/2019,CHILDRENS SERVICES,ASDA SUPERSTORE,01/07/2019,H59620190703GKDWKIESX-1,9.42,MARY ELLIOTT SCHOOL-FOOD & DRINK SUPPLIES,GROCERY STORES AND SUPERMARKETS,GPC
WALSALL COUNCIL,HTTP://OPENDATACOMMUNITIES.ORG/ID/METROPOLITAN-DISTRICT-COUNCIL/WALSALL,30/09/2019,CHILDRENS SERVICES,ASDA SUPERSTORE,01/07/2019,H59620190703GKDWKIESX-2,2.00,MARY ELLIOTT SCHOOL-FOOD & DRINK SUPPLIES,GROCERY STORES AND SUPERMARKETS,GPC
WALSALL COUNCIL,HTTP://OPENDATACOMMUNITIES.ORG/ID/METROPOLITAN-DISTRICT-COUNCIL/WALSALL,30/09/2019,CHILDRENS SERVICES,AMZNMKTPLACE,01/07/2019,H59620190703GOGXDCBCD-1,7.49,WEST LOCALITY - SCHOOL READY-EVENTS AND VISUAL ARTS,MISCELLANEOUS AND SPECIALTY RETAIL STORES,GPC
WALSALL COUNCIL,HTTP://OPENDATACOMMUNITIES.ORG/ID/METROPOLITAN-DISTRICT-COUNCIL/WALSALL,30/09/2019,CHILDRENS SERVICES,WWW.NEOPOST.CO.UK,01/07/2019,H59620190703GOPSVKMII-1,100.00,LOOKED AFTER CHILDRENS SOCIAL -POSTAGES AND COURIER SERVICES,"STATIONERY, OFFICE SUPPLIES AND WRITING PAPER",GPC
WALSALL COUNCIL,HTTP://OPENDATACOMMUNITIES.ORG/ID/METROPOLITAN-DISTRICT-COUNCIL/WALSALL,30/09/2019,CHILDRENS SERVICES,WWW.NEOPOST.CO.UK,01/07/2019,H59620190703GOPSVKMII-2,400.00,VIRTUAL SCHOOL - CENTRAL PUPIL-POSTAGES AND COURIER SERVICES,"STATIONERY, OFFICE SUPPLIES AND WRITING PAPER",GPC
WALSALL COUNCIL,HTTP://OPENDATACOMMUNITIES.ORG/ID/METROPOLITAN-DISTRICT-COUNCIL/WALSALL,30/09/2019,RESOURCES & TRANSFORMATION,BLAKEMORE FOODSERVICE,01/07/2019,H59620190703GQMJSOTBT-1,126.72,CA LINDENS PRIMARY SCHOOL-FOOD & DRINK SUPPLIES,CATERERS,GPC
WALSALL COUNCIL,HTTP://OPENDATACOMMUNITIES.ORG/ID/METROPOLITAN-DISTRICT-COUNCIL/WALSALL,30/09/2019,RESOURCES & TRANSFORMATION,BLAKEMORE FOODSERVICE,01/07/2019,H59620190703GQMJSOTBT-2,119.15,CA LINDENS PRIMARY SCHOOL-FOOD & DRINK SUPPLIES,CATERERS,GPC
WALSALL COUNCIL,HTTP://OPENDATACOMMUNITIES.ORG/ID/METROPOLITAN-DISTRICT-COUNCIL/WALSALL,30/09/2019,RESOURCES & TRANSFORMATION,VIRGIN TRAINS,01/07/2019,H59620190703GUFRORPOO-1,139.10,ADMIN SUPPORT-OFFICER/STAFF-PUBLIC TRANSPORT,PASSENGER RAILWAYS,GPC
WALSALL COUNCIL,HTTP://OPENDATACOMMUNITIES.ORG/ID/METROPOLITAN-DISTRICT-COUNCIL/WALSALL,30/09/2019,RESOURCES & TRANSFORMATION,BLAKEMORE FOODSERVICE,01/07/2019,H59620190703GZHWXZIGE-1,191.50,CA BARCROFT D/C-FOOD & DRINK SUPPLIES,CATERERS,GPC
WALSALL COUNCIL,HTTP://OPENDATACOMMUNITIES.ORG/ID/METROPOLITAN-DISTRICT-COUNCIL/WALSALL,30/09/2019,RESOURCES & TRANSFORMATION,BLAKEMORE FOODSERVICE,01/07/2019,H59620190703GZHWXZIGE-2,58.42,CA BARCROFT D/C-FOOD & DRINK SUPPLIES,CATERERS,GPC
WALSALL COUNCIL,HTTP://OPENDATACOMMUNITIES.ORG/ID/METROPOLITAN-DISTRICT-COUNCIL/WALSALL,30/09/2019,RESOURCES & TRANSFORMATION,BLAKEMORE FOODSERVICE,01/07/2019,H59620190703HFYHGORPF-1,48.62,CA ST JOHNS C.E. PRIMARY SCHOO-FOOD & DRINK SUPPLIES,CATERERS,GPC
WALSALL COUNCIL,HTTP://OPENDATACOMMUNITIES.ORG/ID/METROPOLITAN-DISTRICT-COUNCIL/WALSALL,30/09/2019,RESOURCES & TRANSFORMATION,BLAKEMORE FOODSERVICE,01/07/2019,H59620190703HFYHGORPF-2,283.21,CA ST JOHNS C.E. PRIMARY SCHOO-FOOD & DRINK SUPPLIES,CATERERS,GPC
WALSALL COUNCIL,HTTP://OPENDATACOMMUNITIES.ORG/ID/METROPOLITAN-DISTRICT-COUNCIL/WALSALL,30/09/2019,CHILDRENS SERVICES,WM MORRISON FOOD.COM,01/07/2019,H59620190703HIOWNVTMG-1,13.20,PELSALL VILLAGE SCHOOL-FOOD & DRINK SUPPLIES,GROCERY STORES AND SUPERMARKETS,GPC
WALSALL COUNCIL,HTTP://OPENDATACOMMUNITIES.ORG/ID/METROPOLITAN-DISTRICT-COUNCIL/WALSALL,30/09/2019,CHILDRENS SERVICES,WM MORRISON FOOD.COM,01/07/2019,H59620190703HIOWNVTMG-2,56.25,PELSALL VILLAGE SCHOOL-FOOD & DRINK SUPPLIES,GROCERY STORES AND SUPERMARKETS,GPC
WALSALL COUNCIL,HTTP://OPENDATACOMMUNITIES.ORG/ID/METROPOLITAN-DISTRICT-COUNCIL/WALSALL,30/09/2019,ECONOMY & ENVIRONMENT,AMZNMKTPLACE,01/07/2019,H59620190703HTPPAGKLO-1,10.88,INFRASTRUCTURE MAINTENANCE-GENERAL MATERIALS,MISCELLANEOUS AND SPECIALTY RETAIL STORES,GPC
WALSALL COUNCIL,HTTP://OPENDATACOMMUNITIES.ORG/ID/METROPOLITAN-DISTRICT-COUNCIL/WALSALL,30/09/2019,CHILDRENS SERVICES,AMZNMKTPLACE,01/07/2019,H59620190703ICTSEWQYE-1,27.41,ST FRANCIS OF ASSISI CATHOLIC -OPERATIONAL MAINTENANCE,MISCELLANEOUS AND SPECIALTY RETAIL STORES,GPC
WALSALL COUNCIL,HTTP://OPENDATACOMMUNITIES.ORG/ID/METROPOLITAN-DISTRICT-COUNCIL/WALSALL,30/09/2019,RESOURCES & TRANSFORMATION,BLAKEMORE FOODSERVICE,01/07/2019,H59620190703IIKNYILLA-1,19.01,CA ST JOHNS C.E. PRIMARY SCHOO-FOOD & DRINK SUPPLIES,CATERERS,GPC
WALSALL COUNCIL,HTTP://OPENDATACOMMUNITIES.ORG/ID/METROPOLITAN-DISTRICT-COUNCIL/WALSALL,30/09/2019,RESOURCES & TRANSFORMATION,BLAKEMORE FOODSERVICE,01/07/2019,H59620190703IIKNYILLA-2,353.59,CA ST JOHNS C.E. PRIMARY SCHOO-FOOD & DRINK SUPPLIES,CATERERS,GPC
WALSALL COUNCIL,HTTP://OPENDATACOMMUNITIES.ORG/ID/METROPOLITAN-DISTRICT-COUNCIL/WALSALL,30/09/2019,RESOURCES & TRANSFORMATION,BLAKEMORE FOODSERVICE,01/07/2019,H59620190703IJJUDPKVX-1,115.67,CA ST GILES C.E. PRIMARY SCHOO-FOOD & DRINK SUPPLIES,CATERERS,GPC
WALSALL COUNCIL,HTTP://OPENDATACOMMUNITIES.ORG/ID/METROPOLITAN-DISTRICT-COUNCIL/WALSALL,30/09/2019,RESOURCES & TRANSFORMATION,INDEED TEL+35312545907,01/07/2019,H59620190703ILQATQFRJ-1,6.39,SCHOOL HR TRANSACTIONAL TEAM-ADVERTISING STAFF VACANCIES,OTHER BUSINESS SERVICES,GPC
WALSALL COUNCIL,HTTP://OPENDATACOMMUNITIES.ORG/ID/METROPOLITAN-DISTRICT-COUNCIL/WALSALL,30/09/2019,RESOURCES & TRANSFORMATION,BLAKEMORE FOODSERVICE,01/07/2019,H59620190703IOUURHHKK-1,221.34,CA COOPER JORDAN CE PRIMARY SC-FOOD & DRINK SUPPLIES,CATERERS,GPC
WALSALL COUNCIL,HTTP://OPENDATACOMMUNITIES.ORG/ID/METROPOLITAN-DISTRICT-COUNCIL/WALSALL,30/09/2019,RESOURCES & TRANSFORMATION,BLAKEMORE FOODSERVICE,01/07/2019,H59620190703IOUURHHKK-2,63.36,CA COOPER JORDAN CE PRIMARY SC-FOOD & DRINK SUPPLIES,CATERERS,GPC
WALSALL COUNCIL,HTTP://OPENDATACOMMUNITIES.ORG/ID/METROPOLITAN-DISTRICT-COUNCIL/WALSALL,30/09/2019,CHILDRENS SERVICES,AMZNMKTPLACE,01/07/2019,H59620190703IPOJNECDY-1,11.56,WEST LOCALITY - SCHOOL READY-EVENTS AND VISUAL ARTS,MISCELLANEOUS AND SPECIALTY RETAIL STORES,GPC
WALSALL COUNCIL,HTTP://OPENDATACOMMUNITIES.ORG/ID/METROPOLITAN-DISTRICT-COUNCIL/WALSALL,30/09/2019,CHILDRENS SERVICES,REGISTRATION SERVICES,01/07/2019,H59620190703IVEFYYWFG-1,11.00,SAFEGUARDING & FAMILY SUPPORT-MISC FEES AND EXPENSES,OTHER RECREATION SERVICES,GPC
WALSALL COUNCIL,HTTP://OPENDATACOMMUNITIES.ORG/ID/METROPOLITAN-DISTRICT-COUNCIL/WALSALL,30/09/2019,RESOURCES & TRANSFORMATION,CHICKEN JOES LTD,01/07/2019,H59620190703JMVTUUWSA-1,127.21,CA ST JOHNS C.E. PRIMARY SCHOO-FOOD & DRINK SUPPLIES,CATERERS,GPC
WALSALL COUNCIL,HTTP://OPENDATACOMMUNITIES.ORG/ID/METROPOLITAN-DISTRICT-COUNCIL/WALSALL,30/09/2019,RESOURCES & TRANSFORMATION,BLAKEMORE FOODSERVICE,01/07/2019,H59620190703JSLMSQISR-1,1027.22,TOWN HALL RESTAURANT BISTRO-FOOD & DRINK SUPPLIES,CATERERS,GPC
WALSALL COUNCIL,HTTP://OPENDATACOMMUNITIES.ORG/ID/METROPOLITAN-DISTRICT-COUNCIL/WALSALL,30/09/2019,RESOURCES & TRANSFORMATION,BLAKEMORE FOODSERVICE,01/07/2019,H59620190703JSLMSQISR-2,183.13,TOWN HALL RESTAURANT BISTRO-FOOD & DRINK SUPPLIES,CATERERS,GPC
WALSALL COUNCIL,HTTP://OPENDATACOMMUNITIES.ORG/ID/METROPOLITAN-DISTRICT-COUNCIL/WALSALL,30/09/2019,RESOURCES & TRANSFORMATION,BLAKEMORE FOODSERVICE,01/07/2019,H59620190703JWOKMKCTE-1,191.19,CA CROFT COMMUNITY PRIMARY SCH-FOOD & DRINK SUPPLIES,CATERERS,GPC
WALSALL COUNCIL,HTTP://OPENDATACOMMUNITIES.ORG/ID/METROPOLITAN-DISTRICT-COUNCIL/WALSALL,30/09/2019,RESOURCES & TRANSFORMATION,BLAKEMORE FOODSERVICE,01/07/2019,H59620190703JXRJXBHBR-1,142.25,CA KINGSHILL SCHOOL-FOOD & DRINK SUPPLIES,CATERERS,GPC
WALSALL COUNCIL,HTTP://OPENDATACOMMUNITIES.ORG/ID/METROPOLITAN-DISTRICT-COUNCIL/WALSALL,30/09/2019,ECONOMY & ENVIRONMENT,WWW.BRUNELENGRAVING.CO,01/07/2019,H59620190703KSSRBPJIR-1,99.30,COUNTRYSIDE MANAGEMENT - OTHER-GENERAL MATERIALS,"TYPESETTING, PLATE MAKING, AND RELATED SERVICES",GPC
WALSALL COUNCIL,HTTP://OPENDATACOMMUNITIES.ORG/ID/METROPOLITAN-DISTRICT-COUNCIL/WALSALL,30/09/2019,RESOURCES & TRANSFORMATION,BLAKEMORE FOODSERVICE,01/07/2019,H59620190703LCGPBBTVU-1,63.36,CA RADLEYS PRIMARY SCHOOL-FOOD & DRINK SUPPLIES,CATERERS,GPC
WALSALL COUNCIL,HTTP://OPENDATACOMMUNITIES.ORG/ID/METROPOLITAN-DISTRICT-COUNCIL/WALSALL,30/09/2019,RESOURCES & TRANSFORMATION,BLAKEMORE FOODSERVICE,01/07/2019,H59620190703LCGPBBTVU-2,402.35,CA RADLEYS PRIMARY SCHOOL-FOOD & DRINK SUPPLIES,CATERERS,GPC
WALSALL COUNCIL,HTTP://OPENDATACOMMUNITIES.ORG/ID/METROPOLITAN-DISTRICT-COUNCIL/WALSALL,30/09/2019,RESOURCES & TRANSFORMATION,BLAKEMORE FOODSERVICE,01/07/2019,H59620190703LSTLHMKGQ-1,150.51,CA CROFT COMMUNITY PRIMARY SCH-FOOD & DRINK SUPPLIES,CATERERS,GPC
WALSALL COUNCIL,HTTP://OPENDATACOMMUNITIES.ORG/ID/METROPOLITAN-DISTRICT-COUNCIL/WALSALL,30/09/2019,RESOURCES & TRANSFORMATION,BLAKEMORE FOODSERVICE,01/07/2019,H59620190703LSTLHMKGQ-2,45.47,CA CROFT COMMUNITY PRIMARY SCH-FOOD & DRINK SUPPLIES,CATERERS,GPC
WALSALL COUNCIL,HTTP://OPENDATACOMMUNITIES.ORG/ID/METROPOLITAN-DISTRICT-COUNCIL/WALSALL,30/09/2019,ECONOMY & ENVIRONMENT,LONDON NORTHWESTERN RAIL,01/07/2019,H59620190703LXOVFILIN-1,9.00,POLLUTION DIVISION-OFFICER/STAFF-PUBLIC TRANSPORT,PASSENGER RAILWAYS,GPC
WALSALL COUNCIL,HTTP://OPENDATACOMMUNITIES.ORG/ID/METROPOLITAN-DISTRICT-COUNCIL/WALSALL,30/09/2019,CHILDRENS SERVICES,AMZNMKTPLACE,01/07/2019,H59620190703MCBNKKNQE-1,6.70,WEST LOCALITY - SCHOOL READY-EVENTS AND VISUAL ARTS,MISCELLANEOUS AND SPECIALTY RETAIL STORES,GPC
WALSALL COUNCIL,HTTP://OPENDATACOMMUNITIES.ORG/ID/METROPOLITAN-DISTRICT-COUNCIL/WALSALL,30/09/2019,ECONOMY & ENVIRONMENT,MIDLANDCHILLED.CO.,01/07/2019,H59620190703MRUKRIJHT-1,146.14,BLOXWICH LEISURE CENTRE-FOOD & DRINK SUPPLIES,MOTOR FREIGHT CARRIERS,GPC
WALSALL COUNCIL,HTTP://OPENDATACOMMUNITIES.ORG/ID/METROPOLITAN-DISTRICT-COUNCIL/WALSALL,30/09/2019,ECONOMY & ENVIRONMENT,MIDLANDCHILLED.CO.,01/07/2019,H59620190703MRUKRIJHT-2,21.00,BLOXWICH LEISURE CENTRE-FOOD & DRINK SUPPLIES,MOTOR FREIGHT CARRIERS,GPC
WALSALL COUNCIL,HTTP://OPENDATACOMMUNITIES.ORG/ID/METROPOLITAN-DISTRICT-COUNCIL/WALSALL,30/09/2019,CHILDRENS SERVICES,W M MORRISONS.COM,01/07/2019,H59620190703MUPGWTHQU-1,8.22,57 LICHFIELD ROAD-FOOD & DRINK SUPPLIES,GROCERY STORES AND SUPERMARKETS,GPC
WALSALL COUNCIL,HTTP://OPENDATACOMMUNITIES.ORG/ID/METROPOLITAN-DISTRICT-COUNCIL/WALSALL,30/09/2019,CHILDRENS SERVICES,W M MORRISONS.COM,01/07/2019,H59620190703MUPGWTHQU-2,65.94,57 LICHFIELD ROAD-FOOD & DRINK SUPPLIES,GROCERY STORES AND SUPERMARKETS,GPC
WALSALL COUNCIL,HTTP://OPENDATACOMMUNITIES.ORG/ID/METROPOLITAN-DISTRICT-COUNCIL/WALSALL,30/09/2019,CHILDRENS SERVICES,WM MORRISON FOOD.COM,01/07/2019,H59620190703MVWDQVCJT-1,25.62,BIRCHILLS CHILDCARE SERVICES-FOOD & DRINK SUPPLIES,GROCERY STORES AND SUPERMARKETS,GPC
WALSALL COUNCIL,HTTP://OPENDATACOMMUNITIES.ORG/ID/METROPOLITAN-DISTRICT-COUNCIL/WALSALL,30/09/2019,CHILDRENS SERVICES,WM MORRISON FOOD.COM,01/07/2019,H59620190703MVWDQVCJT-2,120.60,BIRCHILLS CHILDCARE SERVICES-FOOD & DRINK SUPPLIES,GROCERY STORES AND SUPERMARKETS,GPC
WALSALL COUNCIL,HTTP://OPENDATACOMMUNITIES.ORG/ID/METROPOLITAN-DISTRICT-COUNCIL/WALSALL,30/09/2019,RESOURCES & TRANSFORMATION,AMZNMKTPLACE,01/07/2019,H59620190703NAPSTGKFG-1,27.38,FINANCE-FURNITURE & EQUIPMENT,MISCELLANEOUS AND SPECIALTY RETAIL STORES,GPC
WALSALL COUNCIL,HTTP://OPENDATACOMMUNITIES.ORG/ID/METROPOLITAN-DISTRICT-COUNCIL/WALSALL,30/09/2019,CHILDRENS SERVICES,TESCO STORES 6161,01/07/2019,H59620190703NCMRBTMXG-1,21.77,FOOD TECHNOLOGY/HOSPITALITY-GENERAL MATERIALS,GROCERY STORES AND SUPERMARKETS,GPC
WALSALL COUNCIL,HTTP://OPENDATACOMMUNITIES.ORG/ID/METROPOLITAN-DISTRICT-COUNCIL/WALSALL,30/09/2019,CHILDRENS SERVICES,REGISTRATION SERVICES,01/07/2019,H59620190703NCOIYKYDJ-1,11.00,SAFEGUARDING & FAMILY SUPPORT-MISC FEES AND EXPENSES,OTHER RECREATION SERVICES,GPC
WALSALL COUNCIL,HTTP://OPENDATACOMMUNITIES.ORG/ID/METROPOLITAN-DISTRICT-COUNCIL/WALSALL,30/09/2019,CHILDRENS SERVICES,WWW.SANDWELL.GOV.UK,01/07/2019,H59620190703NECXMQQYC-1,11.00,SAFEGUARDING & FAMILY SUPPORT-OTHER FEES & LICENCES-SERVICES-FEES,GOVERNMENT SERVICES,GPC
WALSALL COUNCIL,HTTP://OPENDATACOMMUNITIES.ORG/ID/METROPOLITAN-DISTRICT-COUNCIL/WALSALL,30/09/2019,CHILDRENS SERVICES,W M MORRISON STORE,01/07/2019,H59620190703NIHHRYPRY-1,3.00,ADMIN-GENERAL MATERIALS,GROCERY STORES AND SUPERMARKETS,GPC
WALSALL COUNCIL,HTTP://OPENDATACOMMUNITIES.ORG/ID/METROPOLITAN-DISTRICT-COUNCIL/WALSALL,30/09/2019,RESOURCES & TRANSFORMATION,AMZNMKTPLACE AMAZON.CO.UK,01/07/2019,H59620190703NJVUOXQUE-1,8.24,ICT INCOME-COMPUTER EQUIPMENT AND SUPPLIES,MISCELLANEOUS AND SPECIALTY RETAIL STORES,GPC
WALSALL COUNCIL,HTTP://OPENDATACOMMUNITIES.ORG/ID/METROPOLITAN-DISTRICT-COUNCIL/WALSALL,30/09/2019,RESOURCES & TRANSFORMATION,BLAKEMORE FOODSERVICE,01/07/2019,H59620190703NRWZDOFVF-1,152.07,CA ST MICHAELS C.E. PRIMARY SC-FOOD & DRINK SUPPLIES,CATERERS,GPC
WALSALL COUNCIL,HTTP://OPENDATACOMMUNITIES.ORG/ID/METROPOLITAN-DISTRICT-COUNCIL/WALSALL,30/09/2019,RESOURCES & TRANSFORMATION,BLAKEMORE FOODSERVICE,01/07/2019,H59620190703NRWZDOFVF-2,150.26,CA ST MICHAELS C.E. PRIMARY SC-FOOD & DRINK SUPPLIES,CATERERS,GPC
WALSALL COUNCIL,HTTP://OPENDATACOMMUNITIES.ORG/ID/METROPOLITAN-DISTRICT-COUNCIL/WALSALL,30/09/2019,CHILDRENS SERVICES,WWW.STUART-BATHURST.OR,01/07/2019,H59620190703OBYJJOROO-1,15.00,"43A HILTON ROAD, WILLENHALL-RESIDENTS PERSONAL EXPENSES-ALLOWANCES TO S/S CLIENTS","SCHOOLS, ELEMENTARY AND SECONDARY",GPC
WALSALL COUNCIL,HTTP://OPENDATACOMMUNITIES.ORG/ID/METROPOLITAN-DISTRICT-COUNCIL/WALSALL,30/09/2019,RESOURCES & TRANSFORMATION,CHICKEN JOES LTD,01/07/2019,H59620190703OLEKHGFUJ-1,48.24,CA OAKWOOD SPECIAL SCHOOL-FOOD & DRINK SUPPLIES,CATERERS,GPC
WALSALL COUNCIL,HTTP://OPENDATACOMMUNITIES.ORG/ID/METROPOLITAN-DISTRICT-COUNCIL/WALSALL,30/09/2019,RESOURCES & TRANSFORMATION,BLAKEMORE FOODSERVICE,01/07/2019,H59620190703OOYHRSIRK-1,9.87,CA BUSILL JONES PRIMARY SCHOOL-CATERING,CATERERS,GPC
WALSALL COUNCIL,HTTP://OPENDATACOMMUNITIES.ORG/ID/METROPOLITAN-DISTRICT-COUNCIL/WALSALL,30/09/2019,CHILDRENS SERVICES,AMZNMKTPLACE,01/07/2019,H59620190703PPDLEBCMY-1,16.57,WEST LOCALITY - SCHOOL READY-EVENTS AND VISUAL ARTS,MISCELLANEOUS AND SPECIALTY RETAIL STORES,GPC
WALSALL COUNCIL,HTTP://OPENDATACOMMUNITIES.ORG/ID/METROPOLITAN-DISTRICT-COUNCIL/WALSALL,30/09/2019,CHILDRENS SERVICES,AMZNMKTPLACE,01/07/2019,H59620190703PPDLEBCMY-2,3.99,WEST LOCALITY - SCHOOL READY-EVENTS AND VISUAL ARTS,MISCELLANEOUS AND SPECIALTY RETAIL STORES,GPC
WALSALL COUNCIL,HTTP://OPENDATACOMMUNITIES.ORG/ID/METROPOLITAN-DISTRICT-COUNCIL/WALSALL,30/09/2019,CHILDRENS SERVICES,CO-OP GROUP 109407,01/07/2019,H59620190703PSRLGFUSI-1,6.00,WATLING STREET PRIMARY SCHOOL-FOOD & DRINK SUPPLIES,GROCERY STORES AND SUPERMARKETS,GPC
WALSALL COUNCIL,HTTP://OPENDATACOMMUNITIES.ORG/ID/METROPOLITAN-DISTRICT-COUNCIL/WALSALL,30/09/2019,RESOURCES & TRANSFORMATION,TRAVELODGE WALSALL,01/07/2019,H59620190703PYIVHTJVN-1,137.00,BED & BREAKFAST PAYMENTS-HOTEL ACCOMMODATION-EMPLOYEES,TRAVELODGE,GPC
WALSALL COUNCIL,HTTP://OPENDATACOMMUNITIES.ORG/ID/METROPOLITAN-DISTRICT-COUNCIL/WALSALL,30/09/2019,CHILDRENS SERVICES,AMZNMKTPLACE,01/07/2019,H59620190703QBMBWUIEN-1,16.97,FOUNDATION STAGE-GENERAL MATERIALS,MISCELLANEOUS AND SPECIALTY RETAIL STORES,GPC
WALSALL COUNCIL,HTTP://OPENDATACOMMUNITIES.ORG/ID/METROPOLITAN-DISTRICT-COUNCIL/WALSALL,30/09/2019,RESOURCES & TRANSFORMATION,BLAKEMORE FOODSERVICE,01/07/2019,H59620190703QBWLVLRIJ-1,63.09,CA JANE LANE SPECIAL SCHOOL-FOOD & DRINK SUPPLIES,CATERERS,GPC
WALSALL COUNCIL,HTTP://OPENDATACOMMUNITIES.ORG/ID/METROPOLITAN-DISTRICT-COUNCIL/WALSALL,30/09/2019,RESOURCES & TRANSFORMATION,BLAKEMORE FOODSERVICE,01/07/2019,H59620190703QBWLVLRIJ-2,224.85,CA ELMWOOD SPECIAL SCHOOL-FOOD & DRINK SUPPLIES,CATERERS,GPC
WALSALL COUNCIL,HTTP://OPENDATACOMMUNITIES.ORG/ID/METROPOLITAN-DISTRICT-COUNCIL/WALSALL,30/09/2019,CHILDRENS SERVICES,ESPO,01/07/2019,H59620190703QELIIDQTL-1,147.72,57 LICHFIELD ROAD-CLEANING MATERIALS,GOVERNMENT SERVICES,GPC
WALSALL COUNCIL,HTTP://OPENDATACOMMUNITIES.ORG/ID/METROPOLITAN-DISTRICT-COUNCIL/WALSALL,30/09/2019,RESOURCES & TRANSFORMATION,BLAKEMORE FOODSERVICE,01/07/2019,H59620190703QJXSZHTUT-1,-6.94,CA LEIGHSWOOD PRIMARY SCHOOL-FOOD & DRINK SUPPLIES,CATERERS,GPC
WALSALL COUNCIL,HTTP://OPENDATACOMMUNITIES.ORG/ID/METROPOLITAN-DISTRICT-COUNCIL/WALSALL,30/09/2019,RESOURCES & TRANSFORMATION,BLAKEMORE FOODSERVICE,01/07/2019,H59620190703QSBXOQLDR-1,2.58,CA CROFT COMMUNITY PRIMARY SCH-FOOD & DRINK SUPPLIES,CATERERS,GPC
WALSALL COUNCIL,HTTP://OPENDATACOMMUNITIES.ORG/ID/METROPOLITAN-DISTRICT-COUNCIL/WALSALL,30/09/2019,RESOURCES & TRANSFORMATION,CHICKEN JOES LTD,01/07/2019,H59620190703RBVVVVGTE-1,40.73,CA ST JOHNS C.E. PRIMARY SCHOO-FOOD & DRINK SUPPLIES,CATERERS,GPC
WALSALL COUNCIL,HTTP://OPENDATACOMMUNITIES.ORG/ID/METROPOLITAN-DISTRICT-COUNCIL/WALSALL,30/09/2019,CHILDRENS SERVICES,TRAINLINE,01/07/2019,H59620190703RNSFKBMWP-1,13.98,SAFEGUARDING & FAMILY SUPPORT-OFFICER/STAFF-PUBLIC TRANSPORT,PASSENGER RAILWAYS,GPC
WALSALL COUNCIL,HTTP://OPENDATACOMMUNITIES.ORG/ID/METROPOLITAN-DISTRICT-COUNCIL/WALSALL,30/09/2019,CHILDRENS SERVICES,AMZNMKTPLACE,01/07/2019,H59620190703STIOBXRYF-1,51.92,ROSEDALE C.E. PRIMARY SCHOOL-GENERAL MATERIALS,MISCELLANEOUS AND SPECIALTY RETAIL STORES,GPC
WALSALL COUNCIL,HTTP://OPENDATACOMMUNITIES.ORG/ID/METROPOLITAN-DISTRICT-COUNCIL/WALSALL,30/09/2019,RESOURCES & TRANSFORMATION,TRAVELODGE WALSALL,01/07/2019,H59620190703SUSPUFVCF-1,157.00,BED & BREAKFAST PAYMENTS-HOTEL ACCOMMODATION-EMPLOYEES,TRAVELODGE,GPC
WALSALL COUNCIL,HTTP://OPENDATACOMMUNITIES.ORG/ID/METROPOLITAN-DISTRICT-COUNCIL/WALSALL,30/09/2019,CHILDRENS SERVICES,ASDA GROCERIES ONLINE,01/07/2019,H59620190703TEHOOLVUS-1,40.75,BREAKFAST CLUB-FOOD & DRINK SUPPLIES,GROCERY STORES AND SUPERMARKETS,GPC
WALSALL COUNCIL,HTTP://OPENDATACOMMUNITIES.ORG/ID/METROPOLITAN-DISTRICT-COUNCIL/WALSALL,30/09/2019,CHILDRENS SERVICES,ASDA GROCERIES ONLINE,01/07/2019,H59620190703TEHOOLVUS-2,5.00,BREAKFAST CLUB-FOOD & DRINK SUPPLIES,GROCERY STORES AND SUPERMARKETS,GPC
WALSALL COUNCIL,HTTP://OPENDATACOMMUNITIES.ORG/ID/METROPOLITAN-DISTRICT-COUNCIL/WALSALL,30/09/2019,RESOURCES & TRANSFORMATION,CHICKEN JOES LTD,01/07/2019,H59620190703TICTJSKMF-1,96.14,CA RADLEYS PRIMARY SCHOOL-FOOD & DRINK SUPPLIES,CATERERS,GPC
WALSALL COUNCIL,HTTP://OPENDATACOMMUNITIES.ORG/ID/METROPOLITAN-DISTRICT-COUNCIL/WALSALL,30/09/2019,RESOURCES & TRANSFORMATION,CHICKEN JOES LTD,01/07/2019,H59620190703TISFLXECY-1,48.64,CA LINDENS PRIMARY SCHOOL-FOOD & DRINK SUPPLIES,CATERERS,GPC
WALSALL COUNCIL,HTTP://OPENDATACOMMUNITIES.ORG/ID/METROPOLITAN-DISTRICT-COUNCIL/WALSALL,30/09/2019,CHILDRENS SERVICES,ASDA STORES,01/07/2019,H59620190703TRRMRYJCD-1,5.45,WEST LOCALITY - SCHOOL READY-EVENTS AND VISUAL ARTS,GROCERY STORES AND SUPERMARKETS,GPC
WALSALL COUNCIL,HTTP://OPENDATACOMMUNITIES.ORG/ID/METROPOLITAN-DISTRICT-COUNCIL/WALSALL,30/09/2019,ECONOMY & ENVIRONMENT,BT DOMAIN NAMES,01/07/2019,H59620190703UGJXOHNFQ-1,11.98,WALSALL ARENA AND ARTS CENTRE-PROFESSIONAL FEES AND SERVICES,"COMPUTER PROGRAM, SYSTEM DESIGN",GPC
WALSALL COUNCIL,HTTP://OPENDATACOMMUNITIES.ORG/ID/METROPOLITAN-DISTRICT-COUNCIL/WALSALL,30/09/2019,RESOURCES & TRANSFORMATION,BLAKEMORE FOODSERVICE,01/07/2019,H59620190703UPIXZCREB-1,-34.26,CA MEADOW VIEW JMI PRIMARY SCH-FOOD & DRINK SUPPLIES,CATERERS,GPC
WALSALL COUNCIL,HTTP://OPENDATACOMMUNITIES.ORG/ID/METROPOLITAN-DISTRICT-COUNCIL/WALSALL,30/09/2019,RESOURCES & TRANSFORMATION,CHICKEN JOES LTD,01/07/2019,H59620190703UVMWMJJBK-1,125.99,CA BARCROFT D/C-FOOD & DRINK SUPPLIES,CATERERS,GPC
WALSALL COUNCIL,HTTP://OPENDATACOMMUNITIES.ORG/ID/METROPOLITAN-DISTRICT-COUNCIL/WALSALL,30/09/2019,CHILDRENS SERVICES,W M MORRISONS.COM,01/07/2019,H59620190703VCCFOCHMR-1,28.38,REDRUTH ROAD-FOOD & DRINK SUPPLIES,GROCERY STORES AND SUPERMARKETS,GPC
WALSALL COUNCIL,HTTP://OPENDATACOMMUNITIES.ORG/ID/METROPOLITAN-DISTRICT-COUNCIL/WALSALL,30/09/2019,CHILDRENS SERVICES,W M MORRISONS.COM,01/07/2019,H59620190703VCCFOCHMR-2,126.02,REDRUTH ROAD-FOOD & DRINK SUPPLIES,GROCERY STORES AND SUPERMARKETS,GPC
WALSALL COUNCIL,HTTP://OPENDATACOMMUNITIES.ORG/ID/METROPOLITAN-DISTRICT-COUNCIL/WALSALL,30/09/2019,RESOURCES & TRANSFORMATION,BLAKEMORE FOODSERVICE,01/07/2019,H59620190703WJRFIZXTL-1,117.74,CA BUSILL JONES PRIMARY SCHOOL-FOOD & DRINK SUPPLIES,CATERERS,GPC
WALSALL COUNCIL,HTTP://OPENDATACOMMUNITIES.ORG/ID/METROPOLITAN-DISTRICT-COUNCIL/WALSALL,30/09/2019,RESOURCES & TRANSFORMATION,BLAKEMORE FOODSERVICE,01/07/2019,H59620190703WJRFIZXTL-2,209.65,CA BUSILL JONES PRIMARY SCHOOL-FOOD & DRINK SUPPLIES,CATERERS,GPC
WALSALL COUNCIL,HTTP://OPENDATACOMMUNITIES.ORG/ID/METROPOLITAN-DISTRICT-COUNCIL/WALSALL,30/09/2019,CHILDRENS SERVICES,AMZNMKTPLACE,01/07/2019,H59620190703WPNYHSLHK-1,11.68,WEST LOCALITY - SCHOOL READY-EVENTS AND VISUAL ARTS,MISCELLANEOUS AND SPECIALTY RETAIL STORES,GPC
WALSALL COUNCIL,HTTP://OPENDATACOMMUNITIES.ORG/ID/METROPOLITAN-DISTRICT-COUNCIL/WALSALL,30/09/2019,CHILDRENS SERVICES,AMAZON.CO.UK*M65SW4D34,01/07/2019,H59620190703XBWHEJNGB-1,50.00,PASTROL (REWARDS & PRIZES)-GENERAL MATERIALS,OTHER DIRECT MARKETING-OTHER DIRECT MARKETERS,GPC
WALSALL COUNCIL,HTTP://OPENDATACOMMUNITIES.ORG/ID/METROPOLITAN-DISTRICT-COUNCIL/WALSALL,30/09/2019,CHILDRENS SERVICES,AMZNMKTPLACE,01/07/2019,H59620190703XQPQQKTIC-1,16.99,ADMINISTRATIVE SUPPLIES-STATIONERY & GENERAL SUPPLIES-OFFICE EXP,MISCELLANEOUS AND SPECIALTY RETAIL STORES,GPC
WALSALL COUNCIL,HTTP://OPENDATACOMMUNITIES.ORG/ID/METROPOLITAN-DISTRICT-COUNCIL/WALSALL,30/09/2019,RESOURCES & TRANSFORMATION,CHICKEN JOES LTD,01/07/2019,H59620190703XSRBHBBOY-1,135.54,CA BUSILL JONES PRIMARY SCHOOL-CATERING,CATERERS,GPC
WALSALL COUNCIL,HTTP://OPENDATACOMMUNITIES.ORG/ID/METROPOLITAN-DISTRICT-COUNCIL/WALSALL,30/09/2019,CHILDRENS SERVICES,TESCO STORES 5503,01/07/2019,H59620190703YEXCAOKVX-1,9.50,TRANSITION AND LEAVING CARE PL-FOOD & DRINK SUPPLIES,GROCERY STORES AND SUPERMARKETS,GPC
WALSALL COUNCIL,HTTP://OPENDATACOMMUNITIES.ORG/ID/METROPOLITAN-DISTRICT-COUNCIL/WALSALL,30/09/2019,CHILDRENS SERVICES,TESCO STORES 5503,01/07/2019,H59620190703YEXCAOKVX-2,3.75,TRANSITION AND LEAVING CARE PL-FOOD & DRINK SUPPLIES,GROCERY STORES AND SUPERMARKETS,GPC
WALSALL COUNCIL,HTTP://OPENDATACOMMUNITIES.ORG/ID/METROPOLITAN-DISTRICT-COUNCIL/WALSALL,30/09/2019,RESOURCES & TRANSFORMATION,BLAKEMORE FOODSERVICE,01/07/2019,H59620190703YKECXFBYP-1,87.62,CA BARCROFT D/C-FOOD & DRINK SUPPLIES,CATERERS,GPC
WALSALL COUNCIL,HTTP://OPENDATACOMMUNITIES.ORG/ID/METROPOLITAN-DISTRICT-COUNCIL/WALSALL,30/09/2019,ECONOMY & ENVIRONMENT,LONDON NORTHWESTERN RAIL,01/07/2019,H59620190703YMUEPXQFN-1,19.00,POLLUTION DIVISION-OFFICER/STAFF-PUBLIC TRANSPORT,PASSENGER RAILWAYS,GPC
WALSALL COUNCIL,HTTP://OPENDATACOMMUNITIES.ORG/ID/METROPOLITAN-DISTRICT-COUNCIL/WALSALL,30/09/2019,RESOURCES & TRANSFORMATION,CHICKEN JOES LTD,01/07/2019,H59620190703ZCKBZXSGA-1,43.16,CA BEACON PRIMARY SCHOOL-FOOD & DRINK SUPPLIES,CATERERS,GPC
WALSALL COUNCIL,HTTP://OPENDATACOMMUNITIES.ORG/ID/METROPOLITAN-DISTRICT-COUNCIL/WALSALL,30/09/2019,CHILDRENS SERVICES,AMZNMKTPLACE,01/07/2019,H59620190703ZPYPBEDKY-1,23.06,WEST LOCALITY - SCHOOL READY-EVENTS AND VISUAL ARTS,MISCELLANEOUS AND SPECIALTY RETAIL STORES,GPC
WALSALL COUNCIL,HTTP://OPENDATACOMMUNITIES.ORG/ID/METROPOLITAN-DISTRICT-COUNCIL/WALSALL,30/09/2019,CHILDRENS SERVICES,AMZNMKTPLACE AMAZON.CO.UK,01/07/2019,H59620190704DEFAVUPGZ-1,14.99,DRAMA-GENERAL MATERIALS,MISCELLANEOUS AND SPECIALTY RETAIL STORES,GPC
WALSALL COUNCIL,HTTP://OPENDATACOMMUNITIES.ORG/ID/METROPOLITAN-DISTRICT-COUNCIL/WALSALL,30/09/2019,RESOURCES & TRANSFORMATION,AMZNMKTPLACE AMAZON.CO.UK,01/07/2019,H59620190704DXTNMHVMM-1,14.48,RECHARGEABLE EQUIPMENT-OTHER EXPENSES-EXPENSES,MISCELLANEOUS AND SPECIALTY RETAIL STORES,GPC
WALSALL COUNCIL,HTTP://OPENDATACOMMUNITIES.ORG/ID/METROPOLITAN-DISTRICT-COUNCIL/WALSALL,30/09/2019,RESOURCES & TRANSFORMATION,AMAZON.CO.UK*M69KB2D64 AM,01/07/2019,H59620190704HPDJJXZKF-1,17.23,ICT INCOME-COMPUTER EQUIPMENT AND SUPPLIES,MISCELLANEOUS AND SPECIALTY RETAIL STORES,GPC
WALSALL COUNCIL,HTTP://OPENDATACOMMUNITIES.ORG/ID/METROPOLITAN-DISTRICT-COUNCIL/WALSALL,30/09/2019,CHILDRENS SERVICES,247 CARS WILLENHALL LTD,01/07/2019,H59620190704IEVCDUYLD-1,-176.30,INITIAL RESPONSE SERVICE-TAXIS-TRAVEL ALLOWANCES,TAXI SERVICES,GPC
WALSALL COUNCIL,HTTP://OPENDATACOMMUNITIES.ORG/ID/METROPOLITAN-DISTRICT-COUNCIL/WALSALL,30/09/2019,CHILDRENS SERVICES,WWW.ARGOS.CO.UK,01/07/2019,H59620190704UOCUPHHYL-1,82.95,SAFEGUARDING & FAMILY SUPPORT-SECTION 1/17CHILD CARE ACT 1989-ASSISTANCE TO S/S CLIENTS,DISCOUNT STORES,GPC
WALSALL COUNCIL,HTTP://OPENDATACOMMUNITIES.ORG/ID/METROPOLITAN-DISTRICT-COUNCIL/WALSALL,30/09/2019,CHILDRENS SERVICES,TVLICENSING.CO.UK,01/07/2019,H59620190704VOJUKVLOE-1,154.50,TRANSITION AND LEAVING CARE PL-CARE LEAVERS MTCE PAYMENTS,"CONSULTING, MANAGEMENT, AND PR SERVICES",GPC
WALSALL COUNCIL,HTTP://OPENDATACOMMUNITIES.ORG/ID/METROPOLITAN-DISTRICT-COUNCIL/WALSALL,30/09/2019,RESOURCES & TRANSFORMATION,VIRGIN TRAINS,02/07/2019,H59620190704ACYGILUNM-1,10.40,CORPORATE MANAGEMENT TEAM-OFFICER/STAFF-PUBLIC TRANSPORT,PASSENGER RAILWAYS,GPC
WALSALL COUNCIL,HTTP://OPENDATACOMMUNITIES.ORG/ID/METROPOLITAN-DISTRICT-COUNCIL/WALSALL,30/09/2019,RESOURCES & TRANSFORMATION,ARTHUR BRETT CATER,02/07/2019,H59620190704APPFFPDOQ-1,68.14,CA CASTLEFORT JMI SCHOOL-FOOD & DRINK SUPPLIES,MISCELLANEOUS FOOD STORES & CONVENIENCE STORES,GPC
WALSALL COUNCIL,HTTP://OPENDATACOMMUNITIES.ORG/ID/METROPOLITAN-DISTRICT-COUNCIL/WALSALL,30/09/2019,RESOURCES & TRANSFORMATION,ARTHUR BRETT CATER,02/07/2019,H59620190704BCHQIHPWH-1,42.63,CA LEAMORE PRIMARY SCHOOL-FOOD & DRINK SUPPLIES,MISCELLANEOUS FOOD STORES & CONVENIENCE STORES,GPC
WALSALL COUNCIL,HTTP://OPENDATACOMMUNITIES.ORG/ID/METROPOLITAN-DISTRICT-COUNCIL/WALSALL,30/09/2019,RESOURCES & TRANSFORMATION,ARTHUR BRETT CATER,02/07/2019,H59620190704BDPUZMPOF-1,41.66,TOWN HALL RESTAURANT BISTRO-FOOD & DRINK SUPPLIES,MISCELLANEOUS FOOD STORES & CONVENIENCE STORES,GPC
WALSALL COUNCIL,HTTP://OPENDATACOMMUNITIES.ORG/ID/METROPOLITAN-DISTRICT-COUNCIL/WALSALL,30/09/2019,CHILDRENS SERVICES,WWW.BANNERUK.COM,02/07/2019,H59620190704BECVPHYOL-1,36.58,BIRCHILLS CHILDCARE SERVICES-GENERAL MATERIALS,"STATIONERY, OFFICE SUPPLIES AND WRITING PAPER",GPC
WALSALL COUNCIL,HTTP://OPENDATACOMMUNITIES.ORG/ID/METROPOLITAN-DISTRICT-COUNCIL/WALSALL,30/09/2019,CHILDRENS SERVICES,ASDA GROCERIES ONLINE,02/07/2019,H59620190704BMIDBMMEJ-1,6.36,ROSEDALE C.E. PRIMARY SCHOOL-FOOD & DRINK SUPPLIES,GROCERY STORES AND SUPERMARKETS,GPC
WALSALL COUNCIL,HTTP://OPENDATACOMMUNITIES.ORG/ID/METROPOLITAN-DISTRICT-COUNCIL/WALSALL,30/09/2019,CHILDRENS SERVICES,ASDA GROCERIES ONLINE,02/07/2019,H59620190704BMIDBMMEJ-2,23.71,ROSEDALE C.E. PRIMARY SCHOOL-FOOD & DRINK SUPPLIES,GROCERY STORES AND SUPERMARKETS,GPC
WALSALL COUNCIL,HTTP://OPENDATACOMMUNITIES.ORG/ID/METROPOLITAN-DISTRICT-COUNCIL/WALSALL,30/09/2019,RESOURCES & TRANSFORMATION,ARTHUR BRETT CATER,02/07/2019,H59620190704BSIYTWFQK-1,52.81,CA ABBEY PRIMARY SCHOOL-FOOD & DRINK SUPPLIES,MISCELLANEOUS FOOD STORES & CONVENIENCE STORES,GPC
WALSALL COUNCIL,HTTP://OPENDATACOMMUNITIES.ORG/ID/METROPOLITAN-DISTRICT-COUNCIL/WALSALL,30/09/2019,CHILDRENS SERVICES,GEN REGISTER OFFICE,02/07/2019,H59620190704CTQPFYQLT-1,14.00,SAFEGUARDING & FAMILY SUPPORT-MISC FEES AND EXPENSES,GOVERNMENT SERVICES,GPC
WALSALL COUNCIL,HTTP://OPENDATACOMMUNITIES.ORG/ID/METROPOLITAN-DISTRICT-COUNCIL/WALSALL,30/09/2019,RESOURCES & TRANSFORMATION,WILKO.COM,02/07/2019,H59620190704CUPQTKNNK-1,332.50,TENANCY SERVICE-FURNITURE & EQUIPMENT,MISCELLANEOUS GENERAL MERCHANDISE,GPC
WALSALL COUNCIL,HTTP://OPENDATACOMMUNITIES.ORG/ID/METROPOLITAN-DISTRICT-COUNCIL/WALSALL,30/09/2019,ADULT SOCIAL CARE,TRAINLINE,02/07/2019,H59620190704CZJLLCOQD-1,84.92,"STRATEGY, COMMISSIONING, AND D-OFFICER/STAFF-PUBLIC TRANSPORT",PASSENGER RAILWAYS,GPC
WALSALL COUNCIL,HTTP://OPENDATACOMMUNITIES.ORG/ID/METROPOLITAN-DISTRICT-COUNCIL/WALSALL,30/09/2019,RESOURCES & TRANSFORMATION,ARTHUR BRETT CATER,02/07/2019,H59620190704DBZWTSPDT-1,88.46,CA CROFT COMMUNITY PRIMARY SCH-FOOD & DRINK SUPPLIES,MISCELLANEOUS FOOD STORES & CONVENIENCE STORES,GPC
WALSALL COUNCIL,HTTP://OPENDATACOMMUNITIES.ORG/ID/METROPOLITAN-DISTRICT-COUNCIL/WALSALL,30/09/2019,CHILDRENS SERVICES,TRAINLINE.COM,02/07/2019,H59620190704DCLDDEUPC-1,143.40,SAFEGUARDING & FAMILY SUPPORT-OFFICER/STAFF-PUBLIC TRANSPORT,PASSENGER RAILWAYS,GPC
WALSALL COUNCIL,HTTP://OPENDATACOMMUNITIES.ORG/ID/METROPOLITAN-DISTRICT-COUNCIL/WALSALL,30/09/2019,ECONOMY & ENVIRONMENT,TAYLOR NEWS,02/07/2019,H59620190704DVRCWQUOH-1,78.80,STREETLY LIBRARY-NEWSPAPERS/PERIODICALS/MAGAZINES/BOOKS,GROCERY STORES AND SUPERMARKETS,GPC
WALSALL COUNCIL,HTTP://OPENDATACOMMUNITIES.ORG/ID/METROPOLITAN-DISTRICT-COUNCIL/WALSALL,30/09/2019,RESOURCES & TRANSFORMATION,ARTHUR BRETT CATER,02/07/2019,H59620190704DXKCTWCMT-1,156.46,CA COOPER JORDAN CE PRIMARY SC-FOOD & DRINK SUPPLIES,MISCELLANEOUS FOOD STORES & CONVENIENCE STORES,GPC
WALSALL COUNCIL,HTTP://OPENDATACOMMUNITIES.ORG/ID/METROPOLITAN-DISTRICT-COUNCIL/WALSALL,30/09/2019,CHILDRENS SERVICES,AMZNMKTPLACE,02/07/2019,H59620190704EKJSWBGDT-1,8.75,WEST LOCALITY - SCHOOL READY-EVENTS AND VISUAL ARTS,MISCELLANEOUS AND SPECIALTY RETAIL STORES,GPC
WALSALL COUNCIL,HTTP://OPENDATACOMMUNITIES.ORG/ID/METROPOLITAN-DISTRICT-COUNCIL/WALSALL,30/09/2019,CHILDRENS SERVICES (SCHOOLS),WHSMITH.CO.UK,02/07/2019,H59620190704EQEUTKQDH-1,153.99,E19-GENERAL MATERIALS,DIRECT MARKETING COMBINATION CATALOG,GPC
WALSALL COUNCIL,HTTP://OPENDATACOMMUNITIES.ORG/ID/METROPOLITAN-DISTRICT-COUNCIL/WALSALL,30/09/2019,CHILDRENS SERVICES,ASDA GROCERIES ONLINE,02/07/2019,H59620190704FFDEKDGSW-1,-0.02,ROSEDALE C.E. PRIMARY SCHOOL-FOOD & DRINK SUPPLIES,GROCERY STORES AND SUPERMARKETS,GPC
WALSALL COUNCIL,HTTP://OPENDATACOMMUNITIES.ORG/ID/METROPOLITAN-DISTRICT-COUNCIL/WALSALL,30/09/2019,CHILDRENS SERVICES,AMAZON.CO.UK*M63SO5SW4,02/07/2019,H59620190704FSBGRLHPR-1,15.84,MATHS-GENERAL MATERIALS,OTHER DIRECT MARKETING-OTHER DIRECT MARKETERS,GPC
WALSALL COUNCIL,HTTP://OPENDATACOMMUNITIES.ORG/ID/METROPOLITAN-DISTRICT-COUNCIL/WALSALL,30/09/2019,CHILDRENS SERVICES,AMAZON.CO.UK*M63SO5SW4,02/07/2019,H59620190704FSBGRLHPR-2,19.86,MATHS-GENERAL MATERIALS,OTHER DIRECT MARKETING-OTHER DIRECT MARKETERS,GPC
WALSALL COUNCIL,HTTP://OPENDATACOMMUNITIES.ORG/ID/METROPOLITAN-DISTRICT-COUNCIL/WALSALL,30/09/2019,CHILDRENS SERVICES (SCHOOLS),AMZNMKTPLACE,02/07/2019,H59620190704FSCPJSDQE-1,6.99,E19-GENERAL MATERIALS,MISCELLANEOUS AND SPECIALTY RETAIL STORES,GPC
WALSALL COUNCIL,HTTP://OPENDATACOMMUNITIES.ORG/ID/METROPOLITAN-DISTRICT-COUNCIL/WALSALL,30/09/2019,RESOURCES & TRANSFORMATION,ARTHUR BRETT CATER,02/07/2019,H59620190704FTYIXTGTM-1,54.62,CA WALSALL WOOD PRIMARY SCHOOL-FOOD & DRINK SUPPLIES,MISCELLANEOUS FOOD STORES & CONVENIENCE STORES,GPC
WALSALL COUNCIL,HTTP://OPENDATACOMMUNITIES.ORG/ID/METROPOLITAN-DISTRICT-COUNCIL/WALSALL,30/09/2019,CHILDRENS SERVICES,ASDA STORES,02/07/2019,H59620190704GDRPZFGLP-1,4.55,LOCALITY FAMILY SUPPORT-WEST-FOOD & DRINK SUPPLIES,GROCERY STORES AND SUPERMARKETS,GPC
WALSALL COUNCIL,HTTP://OPENDATACOMMUNITIES.ORG/ID/METROPOLITAN-DISTRICT-COUNCIL/WALSALL,30/09/2019,ECONOMY & ENVIRONMENT,VILLAGE HOTEL WALSALL,02/07/2019,H59620190704GOFBHGUIP-1,425.00,ERDF BLACK COUNTRY TA PROGRAMM-HIRE OF ROOM-SERVICES-FEES,"HOTELS, MOTELS, RESORTS",GPC
WALSALL COUNCIL,HTTP://OPENDATACOMMUNITIES.ORG/ID/METROPOLITAN-DISTRICT-COUNCIL/WALSALL,30/09/2019,ECONOMY & ENVIRONMENT,VILLAGE HOTEL WALSALL,02/07/2019,H59620190704GOFBHGUIP-2,425.00,ERDF BLACK COUNTRY TA PROGRAMM-HIRE OF ROOM-SERVICES-FEES,"HOTELS, MOTELS, RESORTS",GPC
WALSALL COUNCIL,HTTP://OPENDATACOMMUNITIES.ORG/ID/METROPOLITAN-DISTRICT-COUNCIL/WALSALL,30/09/2019,ECONOMY & ENVIRONMENT,MOVECORP LIMITED,02/07/2019,H59620190704HBQOWDGII-1,288.00,EH DIV GENERAL COSTS-TRANSPORTATION-PRIV CONTRACTOR FEES,MOTOR FREIGHT CARRIERS,GPC
WALSALL COUNCIL,HTTP://OPENDATACOMMUNITIES.ORG/ID/METROPOLITAN-DISTRICT-COUNCIL/WALSALL,30/09/2019,ECONOMY & ENVIRONMENT,MOVECORP LIMITED,02/07/2019,H59620190704HNGPDONUM-1,75.60,SMARTER WORKPLACES WORKPLACE S-TRANSPORTATION-PRIV CONTRACTOR FEES,MOTOR FREIGHT CARRIERS,GPC
WALSALL COUNCIL,HTTP://OPENDATACOMMUNITIES.ORG/ID/METROPOLITAN-DISTRICT-COUNCIL/WALSALL,30/09/2019,RESOURCES & TRANSFORMATION,B&M RETAIL LTD,02/07/2019,H59620190704HQVRRWDHJ-1,16.00,CA BLOXWICH C.E. JMI PRIMARY S-FOOD & DRINK SUPPLIES,DISCOUNT STORES,GPC
WALSALL COUNCIL,HTTP://OPENDATACOMMUNITIES.ORG/ID/METROPOLITAN-DISTRICT-COUNCIL/WALSALL,30/09/2019,CHILDRENS SERVICES,SCREWFIX DIRECT,02/07/2019,H59620190704IDSSRQHXL-1,44.99,WALSALL WOOD PRIMARY SCHOOL-OPERATIONAL MAINTENANCE,HOME SUPPLY WAREHOUSE STORES,GPC
WALSALL COUNCIL,HTTP://OPENDATACOMMUNITIES.ORG/ID/METROPOLITAN-DISTRICT-COUNCIL/WALSALL,30/09/2019,ECONOMY & ENVIRONMENT,THE INSTITUTION OF,02/07/2019,H59620190704IFYRUKBHC-1,290.00,LIGHTING MAINTENANCE-PROFESSIONAL FEES AND SERVICES,PROFESSIONAL SERVICES,GPC
WALSALL COUNCIL,HTTP://OPENDATACOMMUNITIES.ORG/ID/METROPOLITAN-DISTRICT-COUNCIL/WALSALL,30/09/2019,CHILDRENS SERVICES,BCC REGISTER OFFIC,02/07/2019,H59620190704IJXHLWYUP-1,13.50,LOOKED AFTER CHILDRENS SOCIAL -MISC FEES AND EXPENSES,GOVERNMENT SERVICES,GPC
WALSALL COUNCIL,HTTP://OPENDATACOMMUNITIES.ORG/ID/METROPOLITAN-DISTRICT-COUNCIL/WALSALL,30/09/2019,CHILDRENS SERVICES,AMZNMKTPLACE,02/07/2019,H59620190704IMQGBSHQI-1,17.54,WEST LOCALITY - SCHOOL READY-EVENTS AND VISUAL ARTS,MISCELLANEOUS AND SPECIALTY RETAIL STORES,GPC
WALSALL COUNCIL,HTTP://OPENDATACOMMUNITIES.ORG/ID/METROPOLITAN-DISTRICT-COUNCIL/WALSALL,30/09/2019,RESOURCES & TRANSFORMATION,TESCO STORES 6161,02/07/2019,H59620190704IQYRRXGLM-1,12.00,ACCOMMODATION SERVICES MANAGEM-FOOD & DRINK SUPPLIES,GROCERY STORES AND SUPERMARKETS,GPC
WALSALL COUNCIL,HTTP://OPENDATACOMMUNITIES.ORG/ID/METROPOLITAN-DISTRICT-COUNCIL/WALSALL,30/09/2019,RESOURCES & TRANSFORMATION,ARTHUR BRETT CATER,02/07/2019,H59620190704JFTDSIPEG-1,136.23,CA BARCROFT D/C-FOOD & DRINK SUPPLIES,MISCELLANEOUS FOOD STORES & CONVENIENCE STORES,GPC
WALSALL COUNCIL,HTTP://OPENDATACOMMUNITIES.ORG/ID/METROPOLITAN-DISTRICT-COUNCIL/WALSALL,30/09/2019,RESOURCES & TRANSFORMATION,ARTHUR BRETT CATER,02/07/2019,H59620190704JFTYHJMNT-1,111.42,CA BUSILL JONES PRIMARY SCHOOL-FOOD & DRINK SUPPLIES,MISCELLANEOUS FOOD STORES & CONVENIENCE STORES,GPC
WALSALL COUNCIL,HTTP://OPENDATACOMMUNITIES.ORG/ID/METROPOLITAN-DISTRICT-COUNCIL/WALSALL,30/09/2019,CHILDRENS SERVICES (SCHOOLS),AMZNMKTPLACE AMAZON.CO.UK,02/07/2019,H59620190704JMLIHBHWM-1,20.98,E19-GENERAL MATERIALS,MISCELLANEOUS AND SPECIALTY RETAIL STORES,GPC
WALSALL COUNCIL,HTTP://OPENDATACOMMUNITIES.ORG/ID/METROPOLITAN-DISTRICT-COUNCIL/WALSALL,30/09/2019,RESOURCES & TRANSFORMATION,ARTHUR BRETT CATER,02/07/2019,H59620190704JWJERJYXT-1,46.10,CA BLOXWICH C.E. JMI PRIMARY S-FOOD & DRINK SUPPLIES,MISCELLANEOUS FOOD STORES & CONVENIENCE STORES,GPC
WALSALL COUNCIL,HTTP://OPENDATACOMMUNITIES.ORG/ID/METROPOLITAN-DISTRICT-COUNCIL/WALSALL,30/09/2019,CHILDRENS SERVICES (SCHOOLS),AMZNMKTPLACE AMAZON.CO.UK,02/07/2019,H59620190704KBNFYUGWB-1,22.95,CHUCKERY PRIMARY-MTCE OF GROUNDS-PAYMENT TO CONTRACTOR INTERNAL,MISCELLANEOUS AND SPECIALTY RETAIL STORES,GPC
WALSALL COUNCIL,HTTP://OPENDATACOMMUNITIES.ORG/ID/METROPOLITAN-DISTRICT-COUNCIL/WALSALL,30/09/2019,ADULT SOCIAL CARE,AMZNMKTPLACE,02/07/2019,H59620190704KJYDIUPQD-1,36.87,GOSCOTE-STATIONERY & GENERAL SUPPLIES-OFFICE EXP,MISCELLANEOUS AND SPECIALTY RETAIL STORES,GPC
WALSALL COUNCIL,HTTP://OPENDATACOMMUNITIES.ORG/ID/METROPOLITAN-DISTRICT-COUNCIL/WALSALL,30/09/2019,RESOURCES & TRANSFORMATION,ASDA SUPERSTORE,02/07/2019,H59620190704KLTFJGLOS-1,1.61,TOWN HALL RESTAURANT BISTRO-FOOD & DRINK SUPPLIES,GROCERY STORES AND SUPERMARKETS,GPC
WALSALL COUNCIL,HTTP://OPENDATACOMMUNITIES.ORG/ID/METROPOLITAN-DISTRICT-COUNCIL/WALSALL,30/09/2019,RESOURCES & TRANSFORMATION,WM MORRISONS STORE,02/07/2019,H59620190704KQBCXIQHC-1,56.00,WALSALL CRISIS SUPPORT SCHEME-CRISIS SUPPORT PAYMENTS,GROCERY STORES AND SUPERMARKETS,GPC
WALSALL COUNCIL,HTTP://OPENDATACOMMUNITIES.ORG/ID/METROPOLITAN-DISTRICT-COUNCIL/WALSALL,30/09/2019,CHILDRENS SERVICES,ALDI 28 772,02/07/2019,H59620190704KRMTOYLIG-1,10.54,LEIGHSWOOD PRIMARY SCHOOL-EXTERNAL TRAINING,GROCERY STORES AND SUPERMARKETS,GPC
WALSALL COUNCIL,HTTP://OPENDATACOMMUNITIES.ORG/ID/METROPOLITAN-DISTRICT-COUNCIL/WALSALL,30/09/2019,CHILDRENS SERVICES,ALDI 28 772,02/07/2019,H59620190704KRMTOYLIG-2,0.42,LEIGHSWOOD PRIMARY SCHOOL-EXTERNAL TRAINING,GROCERY STORES AND SUPERMARKETS,GPC
WALSALL COUNCIL,HTTP://OPENDATACOMMUNITIES.ORG/ID/METROPOLITAN-DISTRICT-COUNCIL/WALSALL,30/09/2019,CHILDRENS SERVICES (SCHOOLS),EMAGINATION TRAINING,02/07/2019,H59620190704LJVOQQTSP-1,120.00,ADMINISTRATIVE SUPPLIES-GENERAL MATERIALS,OTHER SCHOOLS AND EDUCATIONAL SERVICES,GPC
WALSALL COUNCIL,HTTP://OPENDATACOMMUNITIES.ORG/ID/METROPOLITAN-DISTRICT-COUNCIL/WALSALL,30/09/2019,RESOURCES & TRANSFORMATION,CO-OPERATIVE FOOD,02/07/2019,H59620190704LRUKCLZJT-1,3.79,YOUNG PERSONS HOMELESS SERVICE-FOOD & DRINK SUPPLIES,GROCERY STORES AND SUPERMARKETS,GPC
WALSALL COUNCIL,HTTP://OPENDATACOMMUNITIES.ORG/ID/METROPOLITAN-DISTRICT-COUNCIL/WALSALL,30/09/2019,RESOURCES & TRANSFORMATION,NOBISCO LIMITED,02/07/2019,H59620190704LSDOXTKPC-1,31.94,CA BEACON PRIMARY SCHOOL-FURNITURE & EQUIPMENT,OTHER INDUSTRIAL SUPPLIES,GPC
WALSALL COUNCIL,HTTP://OPENDATACOMMUNITIES.ORG/ID/METROPOLITAN-DISTRICT-COUNCIL/WALSALL,30/09/2019,ECONOMY & ENVIRONMENT,T R MUSIC,02/07/2019,H59620190704LWHEYWTGN-1,99.00,OAK PARK-FURNITURE & EQUIPMENT,MUSIC STORES & MUSICAL INSTRUMENTS,GPC
WALSALL COUNCIL,HTTP://OPENDATACOMMUNITIES.ORG/ID/METROPOLITAN-DISTRICT-COUNCIL/WALSALL,30/09/2019,ECONOMY & ENVIRONMENT,WWW.BANNERUK.COM,02/07/2019,H59620190704MUWVHKOTT-1,26.52,RESOURCE MANAGEMENT-GENERAL MATERIALS,"STATIONERY, OFFICE SUPPLIES AND WRITING PAPER",GPC
WALSALL COUNCIL,HTTP://OPENDATACOMMUNITIES.ORG/ID/METROPOLITAN-DISTRICT-COUNCIL/WALSALL,30/09/2019,RESOURCES & TRANSFORMATION,ARTHUR BRETT CATER,02/07/2019,H59620190704MWIEVWUIC-1,118.56,CA RUSHALL JMI SCHOOL-FOOD & DRINK SUPPLIES,MISCELLANEOUS FOOD STORES & CONVENIENCE STORES,GPC
WALSALL COUNCIL,HTTP://OPENDATACOMMUNITIES.ORG/ID/METROPOLITAN-DISTRICT-COUNCIL/WALSALL,30/09/2019,RESOURCES & TRANSFORMATION,ARTHUR BRETT CATER,02/07/2019,H59620190704MYDENQWBC-1,61.16,CA OAKWOOD SPECIAL SCHOOL-FOOD & DRINK SUPPLIES,MISCELLANEOUS FOOD STORES & CONVENIENCE STORES,GPC
WALSALL COUNCIL,HTTP://OPENDATACOMMUNITIES.ORG/ID/METROPOLITAN-DISTRICT-COUNCIL/WALSALL,30/09/2019,RESOURCES & TRANSFORMATION,ALDI 78 772,02/07/2019,H59620190704NGOEJGCRS-1,6.44,YOUNG PERSONS HOMELESS SERVICE-FOOD & DRINK SUPPLIES,GROCERY STORES AND SUPERMARKETS,GPC
WALSALL COUNCIL,HTTP://OPENDATACOMMUNITIES.ORG/ID/METROPOLITAN-DISTRICT-COUNCIL/WALSALL,30/09/2019,RESOURCES & TRANSFORMATION,ALDI 78 772,02/07/2019,H59620190704NGOEJGCRS-2,1.17,YOUNG PERSONS HOMELESS SERVICE-FOOD & DRINK SUPPLIES,GROCERY STORES AND SUPERMARKETS,GPC
WALSALL COUNCIL,HTTP://OPENDATACOMMUNITIES.ORG/ID/METROPOLITAN-DISTRICT-COUNCIL/WALSALL,30/09/2019,RESOURCES & TRANSFORMATION,ICELAND WALSALL RETAIL,02/07/2019,H59620190704NMEFQCXMC-1,7.96,TOWN HALL RESTAURANT BISTRO-FOOD & DRINK SUPPLIES,GROCERY STORES AND SUPERMARKETS,GPC
WALSALL COUNCIL,HTTP://OPENDATACOMMUNITIES.ORG/ID/METROPOLITAN-DISTRICT-COUNCIL/WALSALL,30/09/2019,RESOURCES & TRANSFORMATION,ARTHUR BRETT CATER,02/07/2019,H59620190704OIYHNYGGM-1,62.32,CA ST MICHAELS C.E. PRIMARY SC-FOOD & DRINK SUPPLIES,MISCELLANEOUS FOOD STORES & CONVENIENCE STORES,GPC
WALSALL COUNCIL,HTTP://OPENDATACOMMUNITIES.ORG/ID/METROPOLITAN-DISTRICT-COUNCIL/WALSALL,30/09/2019,CHILDRENS SERVICES,ASDA STORES,02/07/2019,H59620190704PCRLOWVNM-1,2.00,EARLY YEARS DEPARTMENT-GENERAL MATERIALS,GROCERY STORES AND SUPERMARKETS,GPC
WALSALL COUNCIL,HTTP://OPENDATACOMMUNITIES.ORG/ID/METROPOLITAN-DISTRICT-COUNCIL/WALSALL,30/09/2019,CHILDRENS SERVICES,BULL DOG APPLIANCES LT,02/07/2019,H59620190704PGUSEGAZU-1,269.00,TRANSITION AND LEAVING CARE PL-FURNITURE & EQUIPMENT,HOUSEHOLD APPLIANCE STORES,GPC
WALSALL COUNCIL,HTTP://OPENDATACOMMUNITIES.ORG/ID/METROPOLITAN-DISTRICT-COUNCIL/WALSALL,30/09/2019,ECONOMY & ENVIRONMENT,GREGGS PLC,02/07/2019,H59620190704PJMQJTEDY-1,38.85,YEI IMPACT OVERHEADS-SUBSISTENCE OFFICERS-EXPENSES,"EATING PLACES, RESTAURANTS",GPC
WALSALL COUNCIL,HTTP://OPENDATACOMMUNITIES.ORG/ID/METROPOLITAN-DISTRICT-COUNCIL/WALSALL,30/09/2019,RESOURCES & TRANSFORMATION,ARTHUR BRETT CATER,02/07/2019,H59620190704PJZCSWLRB-1,72.60,CA ST GILES C.E. PRIMARY SCHOO-FOOD & DRINK SUPPLIES,MISCELLANEOUS FOOD STORES & CONVENIENCE STORES,GPC
WALSALL COUNCIL,HTTP://OPENDATACOMMUNITIES.ORG/ID/METROPOLITAN-DISTRICT-COUNCIL/WALSALL,30/09/2019,RESOURCES & TRANSFORMATION,ARTHUR BRETT CATER,02/07/2019,H59620190704PLCRJTQRL-1,96.07,CA ELMORE GREEN PRIMARY SCHOOL-FOOD & DRINK SUPPLIES,MISCELLANEOUS FOOD STORES & CONVENIENCE STORES,GPC
WALSALL COUNCIL,HTTP://OPENDATACOMMUNITIES.ORG/ID/METROPOLITAN-DISTRICT-COUNCIL/WALSALL,30/09/2019,CHILDRENS SERVICES,POUNDLAND LTD 1427,02/07/2019,H59620190704PUAOGEAKG-1,3.00,MARY ELLIOTT SCHOOL-FOOD & DRINK SUPPLIES,DISCOUNT STORES,GPC
WALSALL COUNCIL,HTTP://OPENDATACOMMUNITIES.ORG/ID/METROPOLITAN-DISTRICT-COUNCIL/WALSALL,30/09/2019,RESOURCES & TRANSFORMATION,ARTHUR BRETT CATER,02/07/2019,H59620190704PVTFDFLMW-1,63.11,CA MOORCROFT WOOD-FOOD & DRINK SUPPLIES,MISCELLANEOUS FOOD STORES & CONVENIENCE STORES,GPC
WALSALL COUNCIL,HTTP://OPENDATACOMMUNITIES.ORG/ID/METROPOLITAN-DISTRICT-COUNCIL/WALSALL,30/09/2019,CHILDRENS SERVICES (SCHOOLS),AMAZON.CO.UK*M62H91SU4,02/07/2019,H59620190704QBNNYRQYS-1,5.36,E19-GENERAL MATERIALS,OTHER DIRECT MARKETING-OTHER DIRECT MARKETERS,GPC
WALSALL COUNCIL,HTTP://OPENDATACOMMUNITIES.ORG/ID/METROPOLITAN-DISTRICT-COUNCIL/WALSALL,30/09/2019,CHILDRENS SERVICES (SCHOOLS),AMAZON.CO.UK*M660A1ST4,02/07/2019,H59620190704QDOZYUWID-1,6.99,E19-GENERAL MATERIALS,OTHER DIRECT MARKETING-OTHER DIRECT MARKETERS,GPC
WALSALL COUNCIL,HTTP://OPENDATACOMMUNITIES.ORG/ID/METROPOLITAN-DISTRICT-COUNCIL/WALSALL,30/09/2019,RESOURCES & TRANSFORMATION,METRO INNS WALSALL,02/07/2019,H59620190704QEPILPIMW-1,228.00,BED & BREAKFAST PAYMENTS-BED & BREAKFAST PAYMENTS,"HOTELS, MOTELS, RESORTS",GPC
WALSALL COUNCIL,HTTP://OPENDATACOMMUNITIES.ORG/ID/METROPOLITAN-DISTRICT-COUNCIL/WALSALL,30/09/2019,ADULT SOCIAL CARE,WALSALL WOOD,02/07/2019,H59620190704QFHUBXUHF-1,55.98,GOSCOTE-GENERAL MATERIALS,LUMBER & BUILDING MATERIALS STORES,GPC
WALSALL COUNCIL,HTTP://OPENDATACOMMUNITIES.ORG/ID/METROPOLITAN-DISTRICT-COUNCIL/WALSALL,30/09/2019,RESOURCES & TRANSFORMATION,NOBISCO LIMITED,02/07/2019,H59620190704QJOTXPPOW-1,318.73,CA WATLING STREET PRIMARY SCHO-FOOD & DRINK SUPPLIES,OTHER INDUSTRIAL SUPPLIES,GPC
WALSALL COUNCIL,HTTP://OPENDATACOMMUNITIES.ORG/ID/METROPOLITAN-DISTRICT-COUNCIL/WALSALL,30/09/2019,RESOURCES & TRANSFORMATION,FAST KEY SERVICES LIMI,02/07/2019,H59620190704QVEHVHUWI-1,4.27,FIRST STOP SHOP-PROFESSIONAL FEES AND SERVICES,OTHER BUSINESS SERVICES,GPC
WALSALL COUNCIL,HTTP://OPENDATACOMMUNITIES.ORG/ID/METROPOLITAN-DISTRICT-COUNCIL/WALSALL,30/09/2019,RESOURCES & TRANSFORMATION,ARTHUR BRETT CATER,02/07/2019,H59620190704REFEWUHQH-1,58.28,CA BEACON PRIMARY SCHOOL-FOOD & DRINK SUPPLIES,MISCELLANEOUS FOOD STORES & CONVENIENCE STORES,GPC
WALSALL COUNCIL,HTTP://OPENDATACOMMUNITIES.ORG/ID/METROPOLITAN-DISTRICT-COUNCIL/WALSALL,30/09/2019,ECONOMY & ENVIRONMENT,POUNDLAND LTD,02/07/2019,H59620190704REVGREWOT-1,12.10,YEI IMPACT OVERHEADS-PUBLICITY & ADVERTISING (NOT STAFF),DISCOUNT STORES,GPC
WALSALL COUNCIL,HTTP://OPENDATACOMMUNITIES.ORG/ID/METROPOLITAN-DISTRICT-COUNCIL/WALSALL,30/09/2019,ECONOMY & ENVIRONMENT,MOVECORP LIMITED,02/07/2019,H59620190704RIBSUNTHH-1,518.40,SMARTER WORKPLACES WORKPLACE S-TRANSPORTATION-PRIV CONTRACTOR FEES,MOTOR FREIGHT CARRIERS,GPC
WALSALL COUNCIL,HTTP://OPENDATACOMMUNITIES.ORG/ID/METROPOLITAN-DISTRICT-COUNCIL/WALSALL,30/09/2019,ECONOMY & ENVIRONMENT,ASDA,02/07/2019,H59620190704RKYVTJVLK-1,15.50,WALSALL TOWN HALL-FOOD & DRINK SUPPLIES,GROCERY STORES AND SUPERMARKETS,GPC
WALSALL COUNCIL,HTTP://OPENDATACOMMUNITIES.ORG/ID/METROPOLITAN-DISTRICT-COUNCIL/WALSALL,30/09/2019,RESOURCES & TRANSFORMATION,ARTHUR BRETT CATER,02/07/2019,H59620190704RNRYSNRJC-1,39.01,CA BUSILL JONES PRIMARY SCHOOL-FOOD & DRINK SUPPLIES,MISCELLANEOUS FOOD STORES & CONVENIENCE STORES,GPC
WALSALL COUNCIL,HTTP://OPENDATACOMMUNITIES.ORG/ID/METROPOLITAN-DISTRICT-COUNCIL/WALSALL,30/09/2019,ECONOMY & ENVIRONMENT,NCP WOLVERHAMPTON RAIL,02/07/2019,H59620190704RUKVVMBES-1,12.00,POLLUTION DIVISION-OTHER-TRAVEL ALLOWANCES,AUTOMOBILE PARKING LOTS AND GARAGES,GPC
WALSALL COUNCIL,HTTP://OPENDATACOMMUNITIES.ORG/ID/METROPOLITAN-DISTRICT-COUNCIL/WALSALL,30/09/2019,CHILDRENS SERVICES,MOVECORP LIMITED,02/07/2019,H59620190704SBRFNYNYS-1,94.73,SAFEGUARDING & FAMILY SUPPORT-PROFESSIONAL SERVICES-PRIV CONTRACTOR & OTHER AGENCIES,MOTOR FREIGHT CARRIERS,GPC
WALSALL COUNCIL,HTTP://OPENDATACOMMUNITIES.ORG/ID/METROPOLITAN-DISTRICT-COUNCIL/WALSALL,30/09/2019,CHILDRENS SERVICES,AMAZON.CO.UK*M640M2S24,02/07/2019,H59620190704SGZDNECOX-1,34.80,INFORMATION SERVICES-COMPUTER EQUIPMENT AND SUPPLIES,OTHER DIRECT MARKETING-OTHER DIRECT MARKETERS,GPC
WALSALL COUNCIL,HTTP://OPENDATACOMMUNITIES.ORG/ID/METROPOLITAN-DISTRICT-COUNCIL/WALSALL,30/09/2019,CHILDRENS SERVICES,ASDA SUPERSTORE,02/07/2019,H59620190704SPWMMTEXB-1,3.69,LOCALITY FAMILY SUPPORT-NORTH-FOOD & DRINK SUPPLIES,GROCERY STORES AND SUPERMARKETS,GPC
WALSALL COUNCIL,HTTP://OPENDATACOMMUNITIES.ORG/ID/METROPOLITAN-DISTRICT-COUNCIL/WALSALL,30/09/2019,CHILDRENS SERVICES,ASDA SUPERSTORE,02/07/2019,H59620190704SPWMMTEXB-2,0.90,LOCALITY FAMILY SUPPORT-NORTH-FOOD & DRINK SUPPLIES,GROCERY STORES AND SUPERMARKETS,GPC
WALSALL COUNCIL,HTTP://OPENDATACOMMUNITIES.ORG/ID/METROPOLITAN-DISTRICT-COUNCIL/WALSALL,30/09/2019,CHILDRENS SERVICES,AMZNMKTPLACE,02/07/2019,H59620190704SQHJIDSHV-1,8.99,WEST LOCALITY - SCHOOL READY-EVENTS AND VISUAL ARTS,MISCELLANEOUS AND SPECIALTY RETAIL STORES,GPC
WALSALL COUNCIL,HTTP://OPENDATACOMMUNITIES.ORG/ID/METROPOLITAN-DISTRICT-COUNCIL/WALSALL,30/09/2019,CHILDRENS SERVICES,REGISTRATION SERVICES,02/07/2019,H59620190704SRXKDLCVH-1,11.00,GENERAL MANAGEMENT SUPPORT (IN-OTHER FEES & LICENCES-SERVICES-FEES,OTHER RECREATION SERVICES,GPC
WALSALL COUNCIL,HTTP://OPENDATACOMMUNITIES.ORG/ID/METROPOLITAN-DISTRICT-COUNCIL/WALSALL,30/09/2019,CHILDRENS SERVICES,BHAM EDCTN CONS LTD,02/07/2019,H59620190704STAVUZMJY-1,59.88,P E-GENERAL MATERIALS,MISCELLANEOUS PUBLISHING AND PRINTING,GPC
WALSALL COUNCIL,HTTP://OPENDATACOMMUNITIES.ORG/ID/METROPOLITAN-DISTRICT-COUNCIL/WALSALL,30/09/2019,CHILDRENS SERVICES,POST OFFICE COUNTER,02/07/2019,H59620190704TIFRLUUSQ-1,2.15,ADMINISTRATIVE SUPPLIES-POSTAGES AND COURIER SERVICES,POSTAL SERVICES - GOVERNMENT ONLY,GPC
WALSALL COUNCIL,HTTP://OPENDATACOMMUNITIES.ORG/ID/METROPOLITAN-DISTRICT-COUNCIL/WALSALL,30/09/2019,RESOURCES & TRANSFORMATION,ARTHUR BRETT CATER,02/07/2019,H59620190704TJRTRWGLC-1,33.49,CA OLD HALL SPECIAL SCHOOL-FOOD & DRINK SUPPLIES,MISCELLANEOUS FOOD STORES & CONVENIENCE STORES,GPC
WALSALL COUNCIL,HTTP://OPENDATACOMMUNITIES.ORG/ID/METROPOLITAN-DISTRICT-COUNCIL/WALSALL,30/09/2019,ECONOMY & ENVIRONMENT,AMZNMKTPLACE AMAZON.CO.UK,02/07/2019,H59620190704TMLVCTIYP-1,39.99,POLLUTION DIVISION-FURNITURE & EQUIPMENT,MISCELLANEOUS AND SPECIALTY RETAIL STORES,GPC
WALSALL COUNCIL,HTTP://OPENDATACOMMUNITIES.ORG/ID/METROPOLITAN-DISTRICT-COUNCIL/WALSALL,30/09/2019,RESOURCES & TRANSFORMATION,TRAVELODGE GB0000,02/07/2019,H59620190704TMNUYYISC-1,426.50,BED & BREAKFAST PAYMENTS-HOTEL ACCOMMODATION-EMPLOYEES,TRAVELODGE,GPC
WALSALL COUNCIL,HTTP://OPENDATACOMMUNITIES.ORG/ID/METROPOLITAN-DISTRICT-COUNCIL/WALSALL,30/09/2019,RESOURCES & TRANSFORMATION,J & S GENERAL STOR,02/07/2019,H59620190704TPVUXQSCU-1,10.50,WALSALL CRISIS SUPPORT SCHEME-CRISIS SUPPORT PAYMENTS,MISCELLANEOUS FOOD STORES & CONVENIENCE STORES,GPC
WALSALL COUNCIL,HTTP://OPENDATACOMMUNITIES.ORG/ID/METROPOLITAN-DISTRICT-COUNCIL/WALSALL,30/09/2019,ECONOMY & ENVIRONMENT,CURRYS ONLINE,02/07/2019,H59620190704TWHBEVVJY-1,130.00,OAK PARK-FURNITURE & EQUIPMENT,ELECTRONIC SALES,GPC
WALSALL COUNCIL,HTTP://OPENDATACOMMUNITIES.ORG/ID/METROPOLITAN-DISTRICT-COUNCIL/WALSALL,30/09/2019,ECONOMY & ENVIRONMENT,TROPICANA HEALTH & FIT,02/07/2019,H59620190704UDPVXBJWD-1,492.94,OAK PARK-FOOD & DRINK SUPPLIES,MISCELLANEOUS FOOD STORES & CONVENIENCE STORES,GPC
WALSALL COUNCIL,HTTP://OPENDATACOMMUNITIES.ORG/ID/METROPOLITAN-DISTRICT-COUNCIL/WALSALL,30/09/2019,RESOURCES & TRANSFORMATION,J & S GENERAL STOR,02/07/2019,H59620190704UIKQUXEDS-1,-10.50,WALSALL CRISIS SUPPORT SCHEME-CRISIS SUPPORT PAYMENTS,MISCELLANEOUS FOOD STORES & CONVENIENCE STORES,GPC
WALSALL COUNCIL,HTTP://OPENDATACOMMUNITIES.ORG/ID/METROPOLITAN-DISTRICT-COUNCIL/WALSALL,30/09/2019,RESOURCES & TRANSFORMATION,SS + JR JOHAL 31968,02/07/2019,H59620190704ULKAFXAEK-1,15.50,ACCOMMODATION SERVICES MANAGEM-FOOD & DRINK SUPPLIES,GROCERY STORES AND SUPERMARKETS,GPC
WALSALL COUNCIL,HTTP://OPENDATACOMMUNITIES.ORG/ID/METROPOLITAN-DISTRICT-COUNCIL/WALSALL,30/09/2019,CHILDRENS SERVICES,HTTP://WWW.FORWARDPRODUC,02/07/2019,H59620190704UMKOIUIHL-1,41.42,ADMINISTRATIVE SUPPLIES-STATIONERY & GENERAL SUPPLIES-OFFICE EXP,"STATIONERY, OFFICE SUPPLIES AND WRITING PAPER",GPC
WALSALL COUNCIL,HTTP://OPENDATACOMMUNITIES.ORG/ID/METROPOLITAN-DISTRICT-COUNCIL/WALSALL,30/09/2019,ECONOMY & ENVIRONMENT,OSCAR NEWS,02/07/2019,H59620190704UPWGHYQZU-1,71.30,BLOXWICH LIBRARY-NEWSPAPERS/PERIODICALS/MAGAZINES/BOOKS,GROCERY STORES AND SUPERMARKETS,GPC
WALSALL COUNCIL,HTTP://OPENDATACOMMUNITIES.ORG/ID/METROPOLITAN-DISTRICT-COUNCIL/WALSALL,30/09/2019,RESOURCES & TRANSFORMATION,ARTHUR BRETT CATER,02/07/2019,H59620190704USNQTISTC-1,154.37,CA RADLEYS PRIMARY SCHOOL-FOOD & DRINK SUPPLIES,MISCELLANEOUS FOOD STORES & CONVENIENCE STORES,GPC
WALSALL COUNCIL,HTTP://OPENDATACOMMUNITIES.ORG/ID/METROPOLITAN-DISTRICT-COUNCIL/WALSALL,30/09/2019,RESOURCES & TRANSFORMATION,ARTHUR BRETT CATER,02/07/2019,H59620190704UURBABOFD-1,73.08,CA ELMWOOD SPECIAL SCHOOL-FOOD & DRINK SUPPLIES,MISCELLANEOUS FOOD STORES & CONVENIENCE STORES,GPC
WALSALL COUNCIL,HTTP://OPENDATACOMMUNITIES.ORG/ID/METROPOLITAN-DISTRICT-COUNCIL/WALSALL,30/09/2019,RESOURCES & TRANSFORMATION,ARTHUR BRETT CATER,02/07/2019,H59620190704UYKHUNOSP-1,88.97,CA WATLING STREET PRIMARY SCHO-FOOD & DRINK SUPPLIES,MISCELLANEOUS FOOD STORES & CONVENIENCE STORES,GPC
WALSALL COUNCIL,HTTP://OPENDATACOMMUNITIES.ORG/ID/METROPOLITAN-DISTRICT-COUNCIL/WALSALL,30/09/2019,RESOURCES & TRANSFORMATION,ARTHUR BRETT CATER,02/07/2019,H59620190704VDNOTZKSW-1,25.11,CA LEIGHSWOOD PRIMARY SCHOOL-FOOD & DRINK SUPPLIES,MISCELLANEOUS FOOD STORES & CONVENIENCE STORES,GPC
WALSALL COUNCIL,HTTP://OPENDATACOMMUNITIES.ORG/ID/METROPOLITAN-DISTRICT-COUNCIL/WALSALL,30/09/2019,RESOURCES & TRANSFORMATION,ARTHUR BRETT CATER,02/07/2019,H59620190704VOSTFOKZD-1,140.79,CA MEADOW VIEW JMI PRIMARY SCH-FOOD & DRINK SUPPLIES,MISCELLANEOUS FOOD STORES & CONVENIENCE STORES,GPC
WALSALL COUNCIL,HTTP://OPENDATACOMMUNITIES.ORG/ID/METROPOLITAN-DISTRICT-COUNCIL/WALSALL,30/09/2019,RESOURCES & TRANSFORMATION,ARTHUR BRETT CATER,02/07/2019,H59620190704VOSVUXQCX-1,34.21,CA JANE LANE SPECIAL SCHOOL-FOOD & DRINK SUPPLIES,MISCELLANEOUS FOOD STORES & CONVENIENCE STORES,GPC
WALSALL COUNCIL,HTTP://OPENDATACOMMUNITIES.ORG/ID/METROPOLITAN-DISTRICT-COUNCIL/WALSALL,30/09/2019,RESOURCES & TRANSFORMATION,ARTHUR BRETT CATER,02/07/2019,H59620190704VOVKLRRGV-1,116.30,CA LINDENS PRIMARY SCHOOL-FOOD & DRINK SUPPLIES,MISCELLANEOUS FOOD STORES & CONVENIENCE STORES,GPC
WALSALL COUNCIL,HTTP://OPENDATACOMMUNITIES.ORG/ID/METROPOLITAN-DISTRICT-COUNCIL/WALSALL,30/09/2019,RESOURCES & TRANSFORMATION,MOVECORP LIMITED,02/07/2019,H59620190704VPXDSPEGN-1,57.60,CA CENTRAL SUPPORT SERVICES-TRANSPORTATION-PRIV CONTRACTOR FEES,MOTOR FREIGHT CARRIERS,GPC
WALSALL COUNCIL,HTTP://OPENDATACOMMUNITIES.ORG/ID/METROPOLITAN-DISTRICT-COUNCIL/WALSALL,30/09/2019,ECONOMY & ENVIRONMENT,WWW.THEWATERDELIVERYCO,02/07/2019,H59620190704VSIVSIOIR-1,618.00,WALSALL GALA CENTRE-FOOD & DRINK SUPPLIES,MISCELLANEOUS FOOD STORES & CONVENIENCE STORES,GPC
WALSALL COUNCIL,HTTP://OPENDATACOMMUNITIES.ORG/ID/METROPOLITAN-DISTRICT-COUNCIL/WALSALL,30/09/2019,CHILDRENS SERVICES,WWW.BANNERUK.COM,02/07/2019,H59620190704VWSNIDHMG-1,133.52,BIRCHILLS CHILDCARE SERVICES-GENERAL MATERIALS,"STATIONERY, OFFICE SUPPLIES AND WRITING PAPER",GPC
WALSALL COUNCIL,HTTP://OPENDATACOMMUNITIES.ORG/ID/METROPOLITAN-DISTRICT-COUNCIL/WALSALL,30/09/2019,CHILDRENS SERVICES,WWW.BANNERUK.COM,02/07/2019,H59620190704VWSNIDHMG-2,6.99,BIRCHILLS CHILDCARE SERVICES-STATIONERY & GENERAL SUPPLIES-OFFICE EXP,"STATIONERY, OFFICE SUPPLIES AND WRITING PAPER",GPC
WALSALL COUNCIL,HTTP://OPENDATACOMMUNITIES.ORG/ID/METROPOLITAN-DISTRICT-COUNCIL/WALSALL,30/09/2019,CHILDRENS SERVICES,AMZNMKTPLACE,02/07/2019,H59620190704WDQUCXIRJ-1,4.40,WEST LOCALITY - SCHOOL READY-EVENTS AND VISUAL ARTS,MISCELLANEOUS AND SPECIALTY RETAIL STORES,GPC
WALSALL COUNCIL,HTTP://OPENDATACOMMUNITIES.ORG/ID/METROPOLITAN-DISTRICT-COUNCIL/WALSALL,30/09/2019,ECONOMY & ENVIRONMENT,LIFESTYLE EXPRESS,02/07/2019,H59620190704WSHEXFEXO-1,98.80,WILLENHALL LIBRARY-NEWSPAPERS/PERIODICALS/MAGAZINES/BOOKS,NEWS DEALERS AND NEWSSTANDS,GPC
WALSALL COUNCIL,HTTP://OPENDATACOMMUNITIES.ORG/ID/METROPOLITAN-DISTRICT-COUNCIL/WALSALL,30/09/2019,RESOURCES & TRANSFORMATION,ARTHUR BRETT CATER,02/07/2019,H59620190704WSUIASUZU-1,38.33,CA LITTLE BLOXWICH CE PRIMARY -FOOD & DRINK SUPPLIES,MISCELLANEOUS FOOD STORES & CONVENIENCE STORES,GPC
WALSALL COUNCIL,HTTP://OPENDATACOMMUNITIES.ORG/ID/METROPOLITAN-DISTRICT-COUNCIL/WALSALL,30/09/2019,RESOURCES & TRANSFORMATION,ARTHUR BRETT CATER,02/07/2019,H59620190704WYWENQWAY-1,27.75,CA ST BERNADETTES CATHOLIC PRI-FOOD & DRINK SUPPLIES,MISCELLANEOUS FOOD STORES & CONVENIENCE STORES,GPC
WALSALL COUNCIL,HTTP://OPENDATACOMMUNITIES.ORG/ID/METROPOLITAN-DISTRICT-COUNCIL/WALSALL,30/09/2019,RESOURCES & TRANSFORMATION,WILKO.COM,02/07/2019,H59620190704WZGYXDLKQ-1,357.00,TENANCY SERVICE-FURNITURE & EQUIPMENT,MISCELLANEOUS GENERAL MERCHANDISE,GPC
WALSALL COUNCIL,HTTP://OPENDATACOMMUNITIES.ORG/ID/METROPOLITAN-DISTRICT-COUNCIL/WALSALL,30/09/2019,CHILDRENS SERVICES (SCHOOLS),AMAZON.CO.UK*M696A8SE4,02/07/2019,H59620190704XKEWSFDZF-1,27.50,E19-GENERAL MATERIALS,OTHER DIRECT MARKETING-OTHER DIRECT MARKETERS,GPC
WALSALL COUNCIL,HTTP://OPENDATACOMMUNITIES.ORG/ID/METROPOLITAN-DISTRICT-COUNCIL/WALSALL,30/09/2019,RESOURCES & TRANSFORMATION,ARTHUR BRETT CATER,02/07/2019,H59620190704XMAIRNDTE-1,63.76,CA BROWNHILLS WEST PRIMARY SCH-FOOD & DRINK SUPPLIES,MISCELLANEOUS FOOD STORES & CONVENIENCE STORES,GPC
WALSALL COUNCIL,HTTP://OPENDATACOMMUNITIES.ORG/ID/METROPOLITAN-DISTRICT-COUNCIL/WALSALL,30/09/2019,RESOURCES & TRANSFORMATION,ADVANTAGE HOTELS(WALSA,02/07/2019,H59620190704XOGLMEMXT-1,507.00,BED & BREAKFAST PAYMENTS-BED & BREAKFAST PAYMENTS,"HOTELS, MOTELS, RESORTS",GPC
WALSALL COUNCIL,HTTP://OPENDATACOMMUNITIES.ORG/ID/METROPOLITAN-DISTRICT-COUNCIL/WALSALL,30/09/2019,RESOURCES & TRANSFORMATION,ARTHUR BRETT CATER,02/07/2019,H59620190704YORVVYONA-1,211.99,CA ST JOHNS C.E. PRIMARY SCHOO-FOOD & DRINK SUPPLIES,MISCELLANEOUS FOOD STORES & CONVENIENCE STORES,GPC
WALSALL COUNCIL,HTTP://OPENDATACOMMUNITIES.ORG/ID/METROPOLITAN-DISTRICT-COUNCIL/WALSALL,30/09/2019,CHILDRENS SERVICES,AMZNMKTPLACE,02/07/2019,H59620190704YRDNJYJPG-1,2.88,WEST LOCALITY - SCHOOL READY-EVENTS AND VISUAL ARTS,MISCELLANEOUS AND SPECIALTY RETAIL STORES,GPC
WALSALL COUNCIL,HTTP://OPENDATACOMMUNITIES.ORG/ID/METROPOLITAN-DISTRICT-COUNCIL/WALSALL,30/09/2019,ECONOMY & ENVIRONMENT,PAYPAL *THEBIGDRAW,02/07/2019,H59620190704YRIESZRTT-1,150.00,AUDIENCE DEVELOPMENT-PUBLICATIONS/ORGANISATIONS-SUBSCRIPTIONS,"ORGANIZATIONS, CHARITABLE AND SOCIAL SERVICE",GPC
WALSALL COUNCIL,HTTP://OPENDATACOMMUNITIES.ORG/ID/METROPOLITAN-DISTRICT-COUNCIL/WALSALL,30/09/2019,RESOURCES & TRANSFORMATION,TRAINLINE,02/07/2019,H59620190705HQDVOXOJL-1,99.35,FINANCE-OFFICER/STAFF-PUBLIC TRANSPORT,PASSENGER RAILWAYS,GPC
WALSALL COUNCIL,HTTP://OPENDATACOMMUNITIES.ORG/ID/METROPOLITAN-DISTRICT-COUNCIL/WALSALL,30/09/2019,CHILDRENS SERVICES,DECATHLON UK VAD,02/07/2019,H59620190705NFVTFJAQL-1,69.98,CONTACT SESSIONAL STAFF-FURNITURE & EQUIPMENT,SPORTING GOODS STORES,GPC
WALSALL COUNCIL,HTTP://OPENDATACOMMUNITIES.ORG/ID/METROPOLITAN-DISTRICT-COUNCIL/WALSALL,30/09/2019,CHILDRENS SERVICES,PAYPAL *IKEALIMITED,02/07/2019,H59620190705ULQJADDGM-1,67.95,YEAR 1 / 2-GENERAL MATERIALS,DEPARTMENT STORES,GPC
WALSALL COUNCIL,HTTP://OPENDATACOMMUNITIES.ORG/ID/METROPOLITAN-DISTRICT-COUNCIL/WALSALL,30/09/2019,RESOURCES & TRANSFORMATION,WWW.SCC.COM,02/07/2019,H59620190705YIYGDEDNQ-1,332.83,RECHARGEABLE EQUIPMENT-COMPUTER EQUIPMENT AND SUPPLIES,"COMPUTERS, COMPUTER PERIPHERAL EQUIPMENT, SOFTWARE",GPC
WALSALL COUNCIL,HTTP://OPENDATACOMMUNITIES.ORG/ID/METROPOLITAN-DISTRICT-COUNCIL/WALSALL,30/09/2019,RESOURCES & TRANSFORMATION,WWW.SCC.COM,02/07/2019,H59620190706HJQGJVRRH-1,392.04,RECHARGEABLE EQUIPMENT-COMPUTER EQUIPMENT AND SUPPLIES,"COMPUTERS, COMPUTER PERIPHERAL EQUIPMENT, SOFTWARE",GPC
WALSALL COUNCIL,HTTP://OPENDATACOMMUNITIES.ORG/ID/METROPOLITAN-DISTRICT-COUNCIL/WALSALL,30/09/2019,RESOURCES & TRANSFORMATION,ARTHUR BRETT CATER,02/07/2019,H59620190706NEQCDQCFE-1,-2.60,CA MEADOW VIEW JMI PRIMARY SCH-FOOD & DRINK SUPPLIES,MISCELLANEOUS FOOD STORES & CONVENIENCE STORES,GPC
WALSALL COUNCIL,HTTP://OPENDATACOMMUNITIES.ORG/ID/METROPOLITAN-DISTRICT-COUNCIL/WALSALL,30/09/2019,RESOURCES & TRANSFORMATION,WWW.SCC.COM,02/07/2019,H59620190709OVFPAWIPD-1,255.00,RECHARGEABLE EQUIPMENT-COMPUTER EQUIPMENT AND SUPPLIES,"COMPUTERS, COMPUTER PERIPHERAL EQUIPMENT, SOFTWARE",GPC
WALSALL COUNCIL,HTTP://OPENDATACOMMUNITIES.ORG/ID/METROPOLITAN-DISTRICT-COUNCIL/WALSALL,30/09/2019,ECONOMY & ENVIRONMENT,BOC GASES,03/07/2019,H59620190705AGIKUKRUU-1,10.08,WALSALL TOWN HALL-CHEMICALS & SCIENTIFIC MATS-MATERIALS,OTHER CHEMICALS AND ALLIED PRODUCTS,GPC
WALSALL COUNCIL,HTTP://OPENDATACOMMUNITIES.ORG/ID/METROPOLITAN-DISTRICT-COUNCIL/WALSALL,30/09/2019,ECONOMY & ENVIRONMENT,AMZNMKTPLACE,03/07/2019,H59620190705AVOGJCIOP-1,12.48,OAK PARK-STATIONERY & GENERAL SUPPLIES-OFFICE EXP,MISCELLANEOUS AND SPECIALTY RETAIL STORES,GPC
WALSALL COUNCIL,HTTP://OPENDATACOMMUNITIES.ORG/ID/METROPOLITAN-DISTRICT-COUNCIL/WALSALL,30/09/2019,RESOURCES & TRANSFORMATION,JOHAL DAIRIES LTD,03/07/2019,H59620190705AYQLHYCKT-1,21.62,CA BROWNHILLS WEST PRIMARY SCH-FOOD & DRINK SUPPLIES,OTHER NONDURABLE GOODS,GPC
WALSALL COUNCIL,HTTP://OPENDATACOMMUNITIES.ORG/ID/METROPOLITAN-DISTRICT-COUNCIL/WALSALL,30/09/2019,RESOURCES & TRANSFORMATION,JOHAL DAIRIES LTD,03/07/2019,H59620190705BSYVGIQTK-1,7.52,CA KINGSHILL SCHOOL-FOOD & DRINK SUPPLIES,OTHER NONDURABLE GOODS,GPC
WALSALL COUNCIL,HTTP://OPENDATACOMMUNITIES.ORG/ID/METROPOLITAN-DISTRICT-COUNCIL/WALSALL,30/09/2019,CHILDRENS SERVICES,TRAINLINE,03/07/2019,H59620190705CFBWGOLUA-1,23.65,DIRECTLY COMMISSIONED NURSING -OTHER-TRAVEL ALLOWANCES,PASSENGER RAILWAYS,GPC
WALSALL COUNCIL,HTTP://OPENDATACOMMUNITIES.ORG/ID/METROPOLITAN-DISTRICT-COUNCIL/WALSALL,30/09/2019,ECONOMY & ENVIRONMENT,LOCKS AND FITTINGS LTD,03/07/2019,H59620190705CVGQLHSVN-1,108.00,OAK PARK-GENERAL MATERIALS,HARDWARE STORES,GPC
WALSALL COUNCIL,HTTP://OPENDATACOMMUNITIES.ORG/ID/METROPOLITAN-DISTRICT-COUNCIL/WALSALL,30/09/2019,ECONOMY & ENVIRONMENT,WWW.BANNERUK.COM,03/07/2019,H59620190705DNDCNLIUR-1,2.30,CENTRALISED STATIONARY-STATIONERY & GENERAL SUPPLIES-OFFICE EXP,"STATIONERY, OFFICE SUPPLIES AND WRITING PAPER",GPC
WALSALL COUNCIL,HTTP://OPENDATACOMMUNITIES.ORG/ID/METROPOLITAN-DISTRICT-COUNCIL/WALSALL,30/09/2019,ECONOMY & ENVIRONMENT,AMZNMKTPLACE,03/07/2019,H59620190705DXAOXEJHO-1,10.36,OAK PARK-STATIONERY & GENERAL SUPPLIES-OFFICE EXP,MISCELLANEOUS AND SPECIALTY RETAIL STORES,GPC
WALSALL COUNCIL,HTTP://OPENDATACOMMUNITIES.ORG/ID/METROPOLITAN-DISTRICT-COUNCIL/WALSALL,30/09/2019,ECONOMY & ENVIRONMENT,EDEN FARM,03/07/2019,H59620190705EHIGYCMTU-1,1000.00,OAK PARK-FOOD & DRINK SUPPLIES,MISCELLANEOUS FOOD STORES & CONVENIENCE STORES,GPC
WALSALL COUNCIL,HTTP://OPENDATACOMMUNITIES.ORG/ID/METROPOLITAN-DISTRICT-COUNCIL/WALSALL,30/09/2019,CHILDRENS SERVICES,POUNDLAND LTD,03/07/2019,H59620190705EIIYLLBFI-1,13.10,VIRTUAL SCHOOL - CENTRAL PUPIL-GENERAL MATERIALS,DISCOUNT STORES,GPC
WALSALL COUNCIL,HTTP://OPENDATACOMMUNITIES.ORG/ID/METROPOLITAN-DISTRICT-COUNCIL/WALSALL,30/09/2019,RESOURCES & TRANSFORMATION,FAST KEY SERVICES LIMI,03/07/2019,H59620190705FDYBUIMRF-1,10.25,MEMBERS EXPENSES-PROFESSIONAL FEES AND SERVICES,OTHER BUSINESS SERVICES,GPC
WALSALL COUNCIL,HTTP://OPENDATACOMMUNITIES.ORG/ID/METROPOLITAN-DISTRICT-COUNCIL/WALSALL,30/09/2019,RESOURCES & TRANSFORMATION,JOHAL DAIRIES LTD,03/07/2019,H59620190705GBBHKQEIO-1,1.78,CA ST JOHNS C.E. PRIMARY SCHOO-FOOD & DRINK SUPPLIES,OTHER NONDURABLE GOODS,GPC
WALSALL COUNCIL,HTTP://OPENDATACOMMUNITIES.ORG/ID/METROPOLITAN-DISTRICT-COUNCIL/WALSALL,30/09/2019,CHILDRENS SERVICES,POUNDLAND,03/07/2019,H59620190705GPFLLNZFG-1,4.00,TARGETED YOUTH WORK-GENERAL MATERIALS,DISCOUNT STORES,GPC
WALSALL COUNCIL,HTTP://OPENDATACOMMUNITIES.ORG/ID/METROPOLITAN-DISTRICT-COUNCIL/WALSALL,30/09/2019,RESOURCES & TRANSFORMATION,JOHAL DAIRIES LTD,03/07/2019,H59620190705GXMAYWRXR-1,35.84,CA MOORCROFT WOOD-FOOD & DRINK SUPPLIES,OTHER NONDURABLE GOODS,GPC
WALSALL COUNCIL,HTTP://OPENDATACOMMUNITIES.ORG/ID/METROPOLITAN-DISTRICT-COUNCIL/WALSALL,30/09/2019,CHILDRENS SERVICES,CITY OF WOLVERHAMPTON,03/07/2019,H59620190705HFIMLQYQK-1,16.00,LOOKED AFTER CHILDRENS SOCIAL -MISC FEES AND EXPENSES,GOVERNMENT SERVICES,GPC
WALSALL COUNCIL,HTTP://OPENDATACOMMUNITIES.ORG/ID/METROPOLITAN-DISTRICT-COUNCIL/WALSALL,30/09/2019,RESOURCES & TRANSFORMATION,JOHAL DAIRIES LTD,03/07/2019,H59620190705HFWTMWDRX-1,23.60,CA BARCROFT D/C-FOOD & DRINK SUPPLIES,OTHER NONDURABLE GOODS,GPC
WALSALL COUNCIL,HTTP://OPENDATACOMMUNITIES.ORG/ID/METROPOLITAN-DISTRICT-COUNCIL/WALSALL,30/09/2019,RESOURCES & TRANSFORMATION,WP ENGINE,03/07/2019,H59620190705HKMJOHOTS-1,277.15,DATA CENTRES-COMPUTER EQUIPMENT AND SUPPLIES,"COMPUTER PROGRAM, SYSTEM DESIGN",GPC
WALSALL COUNCIL,HTTP://OPENDATACOMMUNITIES.ORG/ID/METROPOLITAN-DISTRICT-COUNCIL/WALSALL,30/09/2019,CHILDRENS SERVICES,TRAVEL WEST MIDLAN,03/07/2019,H59620190705HNYOGTKRE-1,220.00,SAFEGUARDING & FAMILY SUPPORT-OFFICER/STAFF-PUBLIC TRANSPORT,BUS LINES,GPC
WALSALL COUNCIL,HTTP://OPENDATACOMMUNITIES.ORG/ID/METROPOLITAN-DISTRICT-COUNCIL/WALSALL,30/09/2019,CHILDRENS SERVICES,TRAVEL WEST MIDLAN,03/07/2019,H59620190705IFWNWPAYQ-1,220.00,SAFEGUARDING & FAMILY SUPPORT-OFFICER/STAFF-PUBLIC TRANSPORT,BUS LINES,GPC
WALSALL COUNCIL,HTTP://OPENDATACOMMUNITIES.ORG/ID/METROPOLITAN-DISTRICT-COUNCIL/WALSALL,30/09/2019,ECONOMY & ENVIRONMENT,EDEN FARM,03/07/2019,H59620190705IWSDDRGPX-1,52.19,OAK PARK-FOOD & DRINK SUPPLIES,MISCELLANEOUS FOOD STORES & CONVENIENCE STORES,GPC
WALSALL COUNCIL,HTTP://OPENDATACOMMUNITIES.ORG/ID/METROPOLITAN-DISTRICT-COUNCIL/WALSALL,30/09/2019,CHILDRENS SERVICES,J D SPORTS 177,03/07/2019,H59620190705IYDESCUEI-1,24.00,57 LICHFIELD ROAD-RESIDENTS PERSONAL EXPENSES-ALLOWANCES TO S/S CLIENTS,SPORTING GOODS STORES,GPC
WALSALL COUNCIL,HTTP://OPENDATACOMMUNITIES.ORG/ID/METROPOLITAN-DISTRICT-COUNCIL/WALSALL,30/09/2019,CHILDRENS SERVICES,TRAINLINE,03/07/2019,H59620190705JEUYWIERP-1,185.50,FAMILY PLACEMENTS-OFFICER/STAFF-PUBLIC TRANSPORT,PASSENGER RAILWAYS,GPC
WALSALL COUNCIL,HTTP://OPENDATACOMMUNITIES.ORG/ID/METROPOLITAN-DISTRICT-COUNCIL/WALSALL,30/09/2019,RESOURCES & TRANSFORMATION,JOHAL DAIRIES LTD,03/07/2019,H59620190705JVWNKLNWL-1,14.78,CA JANE LANE SPECIAL SCHOOL-FOOD & DRINK SUPPLIES,OTHER NONDURABLE GOODS,GPC
WALSALL COUNCIL,HTTP://OPENDATACOMMUNITIES.ORG/ID/METROPOLITAN-DISTRICT-COUNCIL/WALSALL,30/09/2019,RESOURCES & TRANSFORMATION,JOHAL DAIRIES LTD,03/07/2019,H59620190705JWHYXTSQF-1,18.66,CA WATLING STREET PRIMARY SCHO-FOOD & DRINK SUPPLIES,OTHER NONDURABLE GOODS,GPC
WALSALL COUNCIL,HTTP://OPENDATACOMMUNITIES.ORG/ID/METROPOLITAN-DISTRICT-COUNCIL/WALSALL,30/09/2019,ECONOMY & ENVIRONMENT,MIDLANDNEWS.COM,03/07/2019,H59620190705KJSDCSBGL-1,249.84,DEVELOPMENT MANAGEMENT-PUBLICATIONS/ORGANISATIONS-SUBSCRIPTIONS,NEWS DEALERS AND NEWSSTANDS,GPC
WALSALL COUNCIL,HTTP://OPENDATACOMMUNITIES.ORG/ID/METROPOLITAN-DISTRICT-COUNCIL/WALSALL,30/09/2019,ECONOMY & ENVIRONMENT,AMZNMKTPLACE,03/07/2019,H59620190705LLKMSWQHC-1,49.83,GROWTH DEAL - REVENUE-FURNITURE & EQUIPMENT,MISCELLANEOUS AND SPECIALTY RETAIL STORES,GPC
WALSALL COUNCIL,HTTP://OPENDATACOMMUNITIES.ORG/ID/METROPOLITAN-DISTRICT-COUNCIL/WALSALL,30/09/2019,CHILDRENS SERVICES,BESTWAY WALSALL,03/07/2019,H59620190705LSNFRSVGS-1,138.56,GENERAL-GENERAL MATERIALS,DAIRY PRODUCTS STORES,GPC
WALSALL COUNCIL,HTTP://OPENDATACOMMUNITIES.ORG/ID/METROPOLITAN-DISTRICT-COUNCIL/WALSALL,30/09/2019,RESOURCES & TRANSFORMATION,JOHAL DAIRIES LTD,03/07/2019,H59620190705LWNOTABNV-1,-1.78,CA OLD HALL SPECIAL SCHOOL-FOOD & DRINK SUPPLIES,OTHER NONDURABLE GOODS,GPC
WALSALL COUNCIL,HTTP://OPENDATACOMMUNITIES.ORG/ID/METROPOLITAN-DISTRICT-COUNCIL/WALSALL,30/09/2019,RESOURCES & TRANSFORMATION,JOHAL DAIRIES LTD,03/07/2019,H59620190705LWUCJRAHT-1,9.54,CA BEACON PRIMARY SCHOOL-FOOD & DRINK SUPPLIES,OTHER NONDURABLE GOODS,GPC
WALSALL COUNCIL,HTTP://OPENDATACOMMUNITIES.ORG/ID/METROPOLITAN-DISTRICT-COUNCIL/WALSALL,30/09/2019,RESOURCES & TRANSFORMATION,WALSALL COUNCIL,03/07/2019,H59620190705MHVWDYVHJ-1,20.98,ACCOMMODATION SERVICES MANAGEM-OTHER FEES & LICENCES-SERVICES-FEES,GOVERNMENT SERVICES,GPC
WALSALL COUNCIL,HTTP://OPENDATACOMMUNITIES.ORG/ID/METROPOLITAN-DISTRICT-COUNCIL/WALSALL,30/09/2019,ECONOMY & ENVIRONMENT,WALSALL WOOD,03/07/2019,H59620190705MISTOCNTP-1,24.90,INFRASTRUCTURE MAINTENANCE-GENERAL MATERIALS,LUMBER & BUILDING MATERIALS STORES,GPC
WALSALL COUNCIL,HTTP://OPENDATACOMMUNITIES.ORG/ID/METROPOLITAN-DISTRICT-COUNCIL/WALSALL,30/09/2019,RESOURCES & TRANSFORMATION,JOHAL DAIRIES LTD,03/07/2019,H59620190705MJYDISJNC-1,29.06,CA CASTLEFORT JMI SCHOOL-FOOD & DRINK SUPPLIES,OTHER NONDURABLE GOODS,GPC
WALSALL COUNCIL,HTTP://OPENDATACOMMUNITIES.ORG/ID/METROPOLITAN-DISTRICT-COUNCIL/WALSALL,30/09/2019,ECONOMY & ENVIRONMENT,TESCO STORES 6161,03/07/2019,H59620190705MPIJKCISP-1,234.00,GENERAL HEALTH PROTECTION-PAYMENT TO CONTRACTOR,GROCERY STORES AND SUPERMARKETS,GPC
WALSALL COUNCIL,HTTP://OPENDATACOMMUNITIES.ORG/ID/METROPOLITAN-DISTRICT-COUNCIL/WALSALL,30/09/2019,CHILDRENS SERVICES,WEST MIDLAND CARD,03/07/2019,H59620190705MPPDBXHTH-1,3.00,TRANSITION AND LEAVING CARE PL-OFFICER/STAFF-PUBLIC TRANSPORT,BUS LINES,GPC
WALSALL COUNCIL,HTTP://OPENDATACOMMUNITIES.ORG/ID/METROPOLITAN-DISTRICT-COUNCIL/WALSALL,30/09/2019,RESOURCES & TRANSFORMATION,JOHAL DAIRIES LTD,03/07/2019,H59620190705MRMESHNQO-1,51.38,CA BUSILL JONES PRIMARY SCHOOL-FOOD & DRINK SUPPLIES,OTHER NONDURABLE GOODS,GPC
WALSALL COUNCIL,HTTP://OPENDATACOMMUNITIES.ORG/ID/METROPOLITAN-DISTRICT-COUNCIL/WALSALL,30/09/2019,RESOURCES & TRANSFORMATION,JOHAL DAIRIES LTD,03/07/2019,H59620190705NBZPODOOA-1,33.38,CA LINDENS PRIMARY SCHOOL-FOOD & DRINK SUPPLIES,OTHER NONDURABLE GOODS,GPC
WALSALL COUNCIL,HTTP://OPENDATACOMMUNITIES.ORG/ID/METROPOLITAN-DISTRICT-COUNCIL/WALSALL,30/09/2019,ECONOMY & ENVIRONMENT,MCA EASTERN REGION,03/07/2019,H59620190705NRLJHBDQW-1,960.00,WALSALL OUTDOOR ADVENTURE CENT-OTHER FEES & LICENCES-SERVICES-FEES,GOVERNMENT SERVICES,GPC
WALSALL COUNCIL,HTTP://OPENDATACOMMUNITIES.ORG/ID/METROPOLITAN-DISTRICT-COUNCIL/WALSALL,30/09/2019,CHILDRENS SERVICES,WM MORRISONS STORE,03/07/2019,H59620190705NVCOGMJYC-1,51.58,"43A HILTON ROAD, WILLENHALL-FOOD & DRINK SUPPLIES",GROCERY STORES AND SUPERMARKETS,GPC
WALSALL COUNCIL,HTTP://OPENDATACOMMUNITIES.ORG/ID/METROPOLITAN-DISTRICT-COUNCIL/WALSALL,30/09/2019,CHILDRENS SERVICES,WM MORRISONS STORE,03/07/2019,H59620190705NVCOGMJYC-2,126.04,"43A HILTON ROAD, WILLENHALL-FOOD & DRINK SUPPLIES",GROCERY STORES AND SUPERMARKETS,GPC
WALSALL COUNCIL,HTTP://OPENDATACOMMUNITIES.ORG/ID/METROPOLITAN-DISTRICT-COUNCIL/WALSALL,30/09/2019,CHILDRENS SERVICES,HM PASSPORT OFFICE,03/07/2019,H59620190705NXLVJKTVT-1,58.50,SUPPORT UNDER SECT 23 OF THE C-SUPPORT UNDER SECTION 23 OF THE CHILDRENS ACT,GOVERNMENT SERVICES,GPC
WALSALL COUNCIL,HTTP://OPENDATACOMMUNITIES.ORG/ID/METROPOLITAN-DISTRICT-COUNCIL/WALSALL,30/09/2019,CHILDRENS SERVICES,AMAZON.CO.UK*M640S72K4,03/07/2019,H59620190705OLAXEMTCO-1,18.65,LEARNING ENVIRONMENT-GENERAL MATERIALS,OTHER DIRECT MARKETING-OTHER DIRECT MARKETERS,GPC
WALSALL COUNCIL,HTTP://OPENDATACOMMUNITIES.ORG/ID/METROPOLITAN-DISTRICT-COUNCIL/WALSALL,30/09/2019,CHILDRENS SERVICES,HM PASSPORT OFFICE,03/07/2019,H59620190705OPVSEPBFO-1,58.50,SAFEGUARDING & FAMILY SUPPORT-OTHER FEES & LICENCES-SERVICES-FEES,GOVERNMENT SERVICES,GPC
WALSALL COUNCIL,HTTP://OPENDATACOMMUNITIES.ORG/ID/METROPOLITAN-DISTRICT-COUNCIL/WALSALL,30/09/2019,CHILDRENS SERVICES,WWW.SANDWELL.GOV.UK,03/07/2019,H59620190705OVBYDNBEB-1,11.00,SAFEGUARDING & FAMILY SUPPORT-MISC FEES AND EXPENSES,GOVERNMENT SERVICES,GPC
WALSALL COUNCIL,HTTP://OPENDATACOMMUNITIES.ORG/ID/METROPOLITAN-DISTRICT-COUNCIL/WALSALL,30/09/2019,ECONOMY & ENVIRONMENT,WWW.BANNERUK.COM,03/07/2019,H59620190705OXPKKYNPL-1,0.58,NEW ART GALLERY - ADMIN-GENERAL MATERIALS,"STATIONERY, OFFICE SUPPLIES AND WRITING PAPER",GPC
WALSALL COUNCIL,HTTP://OPENDATACOMMUNITIES.ORG/ID/METROPOLITAN-DISTRICT-COUNCIL/WALSALL,30/09/2019,CHILDRENS SERVICES,TAMWORTH CO-OP,03/07/2019,H59620190705PMBIGEADU-1,3.00,FOOD TECHNOLOGY/HOSPITALITY-GENERAL MATERIALS,GROCERY STORES AND SUPERMARKETS,GPC
WALSALL COUNCIL,HTTP://OPENDATACOMMUNITIES.ORG/ID/METROPOLITAN-DISTRICT-COUNCIL/WALSALL,30/09/2019,RESOURCES & TRANSFORMATION,JOHAL DAIRIES LTD,03/07/2019,H59620190705PQCQNVTHE-1,8.65,CA ST BERNADETTES CATHOLIC PRI-FOOD & DRINK SUPPLIES,OTHER NONDURABLE GOODS,GPC
WALSALL COUNCIL,HTTP://OPENDATACOMMUNITIES.ORG/ID/METROPOLITAN-DISTRICT-COUNCIL/WALSALL,30/09/2019,RESOURCES & TRANSFORMATION,JOHAL DAIRIES LTD,03/07/2019,H59620190705PTYSJJOXM-1,22.25,CA RADLEYS PRIMARY SCHOOL-FOOD & DRINK SUPPLIES,OTHER NONDURABLE GOODS,GPC
WALSALL COUNCIL,HTTP://OPENDATACOMMUNITIES.ORG/ID/METROPOLITAN-DISTRICT-COUNCIL/WALSALL,30/09/2019,RESOURCES & TRANSFORMATION,JOHAL DAIRIES LTD,03/07/2019,H59620190705PVIFXBGDN-1,44.50,CA COOPER JORDAN CE PRIMARY SC-FOOD & DRINK SUPPLIES,OTHER NONDURABLE GOODS,GPC
WALSALL COUNCIL,HTTP://OPENDATACOMMUNITIES.ORG/ID/METROPOLITAN-DISTRICT-COUNCIL/WALSALL,30/09/2019,RESOURCES & TRANSFORMATION,FAST KEY SERVICES LIMI,03/07/2019,H59620190705PVJSMGHUA-1,10.25,LABOUR GROUP ROOM EXPENSES-PROFESSIONAL FEES AND SERVICES,OTHER BUSINESS SERVICES,GPC
WALSALL COUNCIL,HTTP://OPENDATACOMMUNITIES.ORG/ID/METROPOLITAN-DISTRICT-COUNCIL/WALSALL,30/09/2019,RESOURCES & TRANSFORMATION,JOHAL DAIRIES LTD,03/07/2019,H59620190705QWWQIUNMN-1,25.12,CA ST GILES C.E. PRIMARY SCHOO-FOOD & DRINK SUPPLIES,OTHER NONDURABLE GOODS,GPC
WALSALL COUNCIL,HTTP://OPENDATACOMMUNITIES.ORG/ID/METROPOLITAN-DISTRICT-COUNCIL/WALSALL,30/09/2019,CHILDRENS SERVICES,AMZNMKTPLACE,03/07/2019,H59620190705RDFVCOUHL-1,14.74,WEST LOCALITY - SCHOOL READY-EVENTS AND VISUAL ARTS,MISCELLANEOUS AND SPECIALTY RETAIL STORES,GPC
WALSALL COUNCIL,HTTP://OPENDATACOMMUNITIES.ORG/ID/METROPOLITAN-DISTRICT-COUNCIL/WALSALL,30/09/2019,ECONOMY & ENVIRONMENT,WWW.BANNERUK.COM,03/07/2019,H59620190705RDKDSXVDU-1,7.79,CENTRALISED STATIONARY-STATIONERY & GENERAL SUPPLIES-OFFICE EXP,"STATIONERY, OFFICE SUPPLIES AND WRITING PAPER",GPC
WALSALL COUNCIL,HTTP://OPENDATACOMMUNITIES.ORG/ID/METROPOLITAN-DISTRICT-COUNCIL/WALSALL,30/09/2019,RESOURCES & TRANSFORMATION,JOHAL DAIRIES LTD,03/07/2019,H59620190705RIKOYQUXN-1,18.72,TOWN HALL RESTAURANT BISTRO-FOOD & DRINK SUPPLIES,OTHER NONDURABLE GOODS,GPC
WALSALL COUNCIL,HTTP://OPENDATACOMMUNITIES.ORG/ID/METROPOLITAN-DISTRICT-COUNCIL/WALSALL,30/09/2019,RESOURCES & TRANSFORMATION,JOHAL DAIRIES LTD,03/07/2019,H59620190705RPBZEFRIX-1,66.80,CA ELMORE GREEN PRIMARY SCHOOL-FOOD & DRINK SUPPLIES,OTHER NONDURABLE GOODS,GPC
WALSALL COUNCIL,HTTP://OPENDATACOMMUNITIES.ORG/ID/METROPOLITAN-DISTRICT-COUNCIL/WALSALL,30/09/2019,CHILDRENS SERVICES,POUNDLAND LTD 1427,03/07/2019,H59620190705RRHOKYLTU-1,2.00,VIRTUAL SCHOOL - CENTRAL PUPIL-GENERAL MATERIALS,DISCOUNT STORES,GPC
WALSALL COUNCIL,HTTP://OPENDATACOMMUNITIES.ORG/ID/METROPOLITAN-DISTRICT-COUNCIL/WALSALL,30/09/2019,CHILDRENS SERVICES (SCHOOLS),AMZNMKTPLACE,03/07/2019,H59620190705RUEHDPWIJ-1,9.99,E19-GENERAL MATERIALS,MISCELLANEOUS AND SPECIALTY RETAIL STORES,GPC
WALSALL COUNCIL,HTTP://OPENDATACOMMUNITIES.ORG/ID/METROPOLITAN-DISTRICT-COUNCIL/WALSALL,30/09/2019,CHILDRENS SERVICES,CITY OF WOLVERHAMPTON,03/07/2019,H59620190705RXWMOWWZJ-1,16.00,TRANSITION AND LEAVING CARE PL-OTHER FEES & LICENCES-SERVICES-FEES,GOVERNMENT SERVICES,GPC
WALSALL COUNCIL,HTTP://OPENDATACOMMUNITIES.ORG/ID/METROPOLITAN-DISTRICT-COUNCIL/WALSALL,30/09/2019,CHILDRENS SERVICES,TRAINLINE.COM,03/07/2019,H59620190705SDGQOTWUJ-1,100.68,SAFEGUARDING & FAMILY SUPPORT-OFFICER/STAFF-PUBLIC TRANSPORT,PASSENGER RAILWAYS,GPC
WALSALL COUNCIL,HTTP://OPENDATACOMMUNITIES.ORG/ID/METROPOLITAN-DISTRICT-COUNCIL/WALSALL,30/09/2019,RESOURCES & TRANSFORMATION,JOHAL DAIRIES LTD,03/07/2019,H59620190705SGUHGSDVL-1,12.48,CA RUSHALL JMI SCHOOL-FOOD & DRINK SUPPLIES,OTHER NONDURABLE GOODS,GPC
WALSALL COUNCIL,HTTP://OPENDATACOMMUNITIES.ORG/ID/METROPOLITAN-DISTRICT-COUNCIL/WALSALL,30/09/2019,ECONOMY & ENVIRONMENT,AMAZON.CO.UK*M67JI02D4,03/07/2019,H59620190705SIHGBRHDZ-1,24.52,OAK PARK-GENERAL MATERIALS,OTHER DIRECT MARKETING-OTHER DIRECT MARKETERS,GPC
WALSALL COUNCIL,HTTP://OPENDATACOMMUNITIES.ORG/ID/METROPOLITAN-DISTRICT-COUNCIL/WALSALL,30/09/2019,CHILDRENS SERVICES (SCHOOLS),WWW.IRONMONGERYANDMORE.CO,03/07/2019,H59620190705SNYOANRXP-1,117.00,CHUCKERY PRIMARY-OPERATIONAL MAINTENANCE,HARDWARE STORES,GPC
WALSALL COUNCIL,HTTP://OPENDATACOMMUNITIES.ORG/ID/METROPOLITAN-DISTRICT-COUNCIL/WALSALL,30/09/2019,RESOURCES & TRANSFORMATION,TRAVELODGE GB0000,03/07/2019,H59620190705SRPMBXRUL-1,524.00,BED & BREAKFAST PAYMENTS-ACCOMMODATION AND RELATED COSTS-ASSISTANCE TO S/S CLIENTS,TRAVELODGE,GPC
WALSALL COUNCIL,HTTP://OPENDATACOMMUNITIES.ORG/ID/METROPOLITAN-DISTRICT-COUNCIL/WALSALL,30/09/2019,RESOURCES & TRANSFORMATION,JOHAL DAIRIES LTD,03/07/2019,H59620190705SWZIESKEJ-1,-3.56,CA RADLEYS PRIMARY SCHOOL-FOOD & DRINK SUPPLIES,OTHER NONDURABLE GOODS,GPC
WALSALL COUNCIL,HTTP://OPENDATACOMMUNITIES.ORG/ID/METROPOLITAN-DISTRICT-COUNCIL/WALSALL,30/09/2019,CHILDRENS SERVICES,HTTP://WWW.FORWARDPRODUC,03/07/2019,H59620190705TFJHUJNYG-1,32.24,ADMINISTRATIVE SUPPLIES-GENERAL MATERIALS,"STATIONERY, OFFICE SUPPLIES AND WRITING PAPER",GPC
WALSALL COUNCIL,HTTP://OPENDATACOMMUNITIES.ORG/ID/METROPOLITAN-DISTRICT-COUNCIL/WALSALL,30/09/2019,ECONOMY & ENVIRONMENT,HEATON CHAPEL STN TO,03/07/2019,H59620190705TWEXXIWGP-1,89.10,NEW ART GALLERY - ADMIN-OFFICER/STAFF-PUBLIC TRANSPORT,PASSENGER RAILWAYS,GPC
WALSALL COUNCIL,HTTP://OPENDATACOMMUNITIES.ORG/ID/METROPOLITAN-DISTRICT-COUNCIL/WALSALL,30/09/2019,CHILDRENS SERVICES,TRAINLINE,03/07/2019,H59620190705UBBJUDYQV-1,23.65,DIRECTLY COMMISSIONED NURSING -OTHER-TRAVEL ALLOWANCES,PASSENGER RAILWAYS,GPC
WALSALL COUNCIL,HTTP://OPENDATACOMMUNITIES.ORG/ID/METROPOLITAN-DISTRICT-COUNCIL/WALSALL,30/09/2019,RESOURCES & TRANSFORMATION,JOHAL DAIRIES LTD,03/07/2019,H59620190705UEATFLDCI-1,32.64,CA ST MICHAELS C.E. PRIMARY SC-FOOD & DRINK SUPPLIES,OTHER NONDURABLE GOODS,GPC
WALSALL COUNCIL,HTTP://OPENDATACOMMUNITIES.ORG/ID/METROPOLITAN-DISTRICT-COUNCIL/WALSALL,30/09/2019,RESOURCES & TRANSFORMATION,JOHAL DAIRIES LTD,03/07/2019,H59620190705UGSWIYZBV-1,26.32,CA LEIGHSWOOD PRIMARY SCHOOL-FOOD & DRINK SUPPLIES,OTHER NONDURABLE GOODS,GPC
WALSALL COUNCIL,HTTP://OPENDATACOMMUNITIES.ORG/ID/METROPOLITAN-DISTRICT-COUNCIL/WALSALL,30/09/2019,RESOURCES & TRANSFORMATION,JOHAL DAIRIES LTD,03/07/2019,H59620190705UHYRWRXRI-1,6.87,CA OLD HALL SPECIAL SCHOOL-FOOD & DRINK SUPPLIES,OTHER NONDURABLE GOODS,GPC
WALSALL COUNCIL,HTTP://OPENDATACOMMUNITIES.ORG/ID/METROPOLITAN-DISTRICT-COUNCIL/WALSALL,30/09/2019,CHILDRENS SERVICES,CITY OF WOLVERHAMPTON,03/07/2019,H59620190705ULCWFMFSV-1,16.00,SAFEGUARDING & FAMILY SUPPORT-OTHER FEES & LICENCES-SERVICES-FEES,GOVERNMENT SERVICES,GPC
WALSALL COUNCIL,HTTP://OPENDATACOMMUNITIES.ORG/ID/METROPOLITAN-DISTRICT-COUNCIL/WALSALL,30/09/2019,CHILDRENS SERVICES,WWW.BARRBEACON.WALSALL,03/07/2019,H59620190705ULSTJTJYR-1,15.00,REDRUTH ROAD-FOOD & DRINK SUPPLIES,"SCHOOLS, ELEMENTARY AND SECONDARY",GPC
WALSALL COUNCIL,HTTP://OPENDATACOMMUNITIES.ORG/ID/METROPOLITAN-DISTRICT-COUNCIL/WALSALL,30/09/2019,ECONOMY & ENVIRONMENT,IOMA CLOTHING CO LTD,03/07/2019,H59620190705UMILUFMQO-1,71.52,WALSALL GALA CENTRE-CLOTHING & LAUNDRY,MENS AND WOMENS CLOTHING STORES,GPC
WALSALL COUNCIL,HTTP://OPENDATACOMMUNITIES.ORG/ID/METROPOLITAN-DISTRICT-COUNCIL/WALSALL,30/09/2019,ECONOMY & ENVIRONMENT,WWW.BANNERUK.COM,03/07/2019,H59620190705UMQIHVUZG-1,35.34,CENTRALISED STATIONARY-STATIONERY & GENERAL SUPPLIES-OFFICE EXP,"STATIONERY, OFFICE SUPPLIES AND WRITING PAPER",GPC
WALSALL COUNCIL,HTTP://OPENDATACOMMUNITIES.ORG/ID/METROPOLITAN-DISTRICT-COUNCIL/WALSALL,30/09/2019,CHILDRENS SERVICES,WM MORRISONS STORE,03/07/2019,H59620190705UMSWBDPYN-1,5.05,57 LICHFIELD ROAD-FOOD & DRINK SUPPLIES,GROCERY STORES AND SUPERMARKETS,GPC
WALSALL COUNCIL,HTTP://OPENDATACOMMUNITIES.ORG/ID/METROPOLITAN-DISTRICT-COUNCIL/WALSALL,30/09/2019,CHILDRENS SERVICES,WM MORRISONS STORE,03/07/2019,H59620190705UMSWBDPYN-2,2.15,57 LICHFIELD ROAD-FOOD & DRINK SUPPLIES,GROCERY STORES AND SUPERMARKETS,GPC
WALSALL COUNCIL,HTTP://OPENDATACOMMUNITIES.ORG/ID/METROPOLITAN-DISTRICT-COUNCIL/WALSALL,30/09/2019,ECONOMY & ENVIRONMENT,TRAINLINE,03/07/2019,H59620190705UQCZACCRK-1,11.95,DEVELOPMENT MANAGEMENT-OFFICER/STAFF-PUBLIC TRANSPORT,PASSENGER RAILWAYS,GPC
WALSALL COUNCIL,HTTP://OPENDATACOMMUNITIES.ORG/ID/METROPOLITAN-DISTRICT-COUNCIL/WALSALL,30/09/2019,CHILDRENS SERVICES,WWW.PARENTMAIL.CO.,03/07/2019,H59620190705UUMNGXOGF-1,15.00,REDRUTH ROAD-FOOD & DRINK SUPPLIES,OTHER SCHOOLS AND EDUCATIONAL SERVICES,GPC
WALSALL COUNCIL,HTTP://OPENDATACOMMUNITIES.ORG/ID/METROPOLITAN-DISTRICT-COUNCIL/WALSALL,30/09/2019,CHILDRENS SERVICES,WWW.BANNERUK.COM,03/07/2019,H59620190705UUTPHSLCM-1,52.81,SAFEGUARDING & FAMILY SUPPORT-STATIONERY & GENERAL SUPPLIES-OFFICE EXP,"STATIONERY, OFFICE SUPPLIES AND WRITING PAPER",GPC
WALSALL COUNCIL,HTTP://OPENDATACOMMUNITIES.ORG/ID/METROPOLITAN-DISTRICT-COUNCIL/WALSALL,30/09/2019,CHILDRENS SERVICES,WWW.BANNERUK.COM,03/07/2019,H59620190705UUTPHSLCM-2,52.81,FAMILY PLACEMENTS-STATIONERY & GENERAL SUPPLIES-OFFICE EXP,"STATIONERY, OFFICE SUPPLIES AND WRITING PAPER",GPC
WALSALL COUNCIL,HTTP://OPENDATACOMMUNITIES.ORG/ID/METROPOLITAN-DISTRICT-COUNCIL/WALSALL,30/09/2019,ECONOMY & ENVIRONMENT,AMZNMKTPLACE AMAZON.CO.UK,03/07/2019,H59620190705VDYYOYTRT-1,14.48,OAK PARK-STATIONERY & GENERAL SUPPLIES-OFFICE EXP,MISCELLANEOUS AND SPECIALTY RETAIL STORES,GPC
WALSALL COUNCIL,HTTP://OPENDATACOMMUNITIES.ORG/ID/METROPOLITAN-DISTRICT-COUNCIL/WALSALL,30/09/2019,ECONOMY & ENVIRONMENT,WWW.EXERCISEREGISTER.O,03/07/2019,H59620190705VFTGQWRMX-1,40.00,ACTIVE ENGLAND-PROFESSIONAL FEES AND SERVICES,"CLUBS COUNTRY CLUBS, MEMBERSHIP",GPC
WALSALL COUNCIL,HTTP://OPENDATACOMMUNITIES.ORG/ID/METROPOLITAN-DISTRICT-COUNCIL/WALSALL,30/09/2019,CHILDRENS SERVICES,BCC REGISTER OFFIC,03/07/2019,H59620190705VNCJTTDPF-1,13.50,SAFEGUARDING & FAMILY SUPPORT-MISC FEES AND EXPENSES,GOVERNMENT SERVICES,GPC
WALSALL COUNCIL,HTTP://OPENDATACOMMUNITIES.ORG/ID/METROPOLITAN-DISTRICT-COUNCIL/WALSALL,30/09/2019,CHILDRENS SERVICES,FARMFOODS- WALSALL,03/07/2019,H59620190705VNOUGCRWH-1,14.00,TARGETED YOUTH WORK-FOOD & DRINK SUPPLIES,GROCERY STORES AND SUPERMARKETS,GPC
WALSALL COUNCIL,HTTP://OPENDATACOMMUNITIES.ORG/ID/METROPOLITAN-DISTRICT-COUNCIL/WALSALL,30/09/2019,CHILDRENS SERVICES,JOHAL DAIRIES LTD,03/07/2019,H59620190705WCGKXDMOO-1,7.20,57 LICHFIELD ROAD-FOOD & DRINK SUPPLIES,OTHER NONDURABLE GOODS,GPC
WALSALL COUNCIL,HTTP://OPENDATACOMMUNITIES.ORG/ID/METROPOLITAN-DISTRICT-COUNCIL/WALSALL,30/09/2019,RESOURCES & TRANSFORMATION,JOHAL DAIRIES LTD,03/07/2019,H59620190705WJKZIJHPD-1,-5.34,CA RADLEYS PRIMARY SCHOOL-FOOD & DRINK SUPPLIES,OTHER NONDURABLE GOODS,GPC
WALSALL COUNCIL,HTTP://OPENDATACOMMUNITIES.ORG/ID/METROPOLITAN-DISTRICT-COUNCIL/WALSALL,30/09/2019,CHILDRENS SERVICES,HM PASSPORT OFFICE,03/07/2019,H59620190705WRXZPJKQU-1,85.00,SUPPORT UNDER SECT 23 OF THE C-SUPPORT UNDER SECTION 23 OF THE CHILDRENS ACT,GOVERNMENT SERVICES,GPC
WALSALL COUNCIL,HTTP://OPENDATACOMMUNITIES.ORG/ID/METROPOLITAN-DISTRICT-COUNCIL/WALSALL,30/09/2019,CHILDRENS SERVICES,WILKO RETAIL LIMITED,03/07/2019,H59620190705XENFTDTCS-1,9.65,VIRTUAL SCHOOL - CENTRAL PUPIL-GENERAL MATERIALS,MISCELLANEOUS GENERAL MERCHANDISE,GPC
WALSALL COUNCIL,HTTP://OPENDATACOMMUNITIES.ORG/ID/METROPOLITAN-DISTRICT-COUNCIL/WALSALL,30/09/2019,RESOURCES & TRANSFORMATION,JOHAL DAIRIES LTD,03/07/2019,H59620190705XITVIBQWF-1,26.89,CA ABBEY PRIMARY SCHOOL-FOOD & DRINK SUPPLIES,OTHER NONDURABLE GOODS,GPC
WALSALL COUNCIL,HTTP://OPENDATACOMMUNITIES.ORG/ID/METROPOLITAN-DISTRICT-COUNCIL/WALSALL,30/09/2019,RESOURCES & TRANSFORMATION,JOHAL DAIRIES LTD,03/07/2019,H59620190705XMMWVVHUX-1,5.39,CA ELMWOOD SPECIAL SCHOOL-FOOD & DRINK SUPPLIES,OTHER NONDURABLE GOODS,GPC
WALSALL COUNCIL,HTTP://OPENDATACOMMUNITIES.ORG/ID/METROPOLITAN-DISTRICT-COUNCIL/WALSALL,30/09/2019,RESOURCES & TRANSFORMATION,CO-OPERATIVE FOOD,03/07/2019,H59620190705XPHKCUBFW-1,10.00,WALSALL CRISIS SUPPORT SCHEME-CRISIS SUPPORT PAYMENTS,GROCERY STORES AND SUPERMARKETS,GPC
WALSALL COUNCIL,HTTP://OPENDATACOMMUNITIES.ORG/ID/METROPOLITAN-DISTRICT-COUNCIL/WALSALL,30/09/2019,ECONOMY & ENVIRONMENT,AMZNMKTPLACE,03/07/2019,H59620190705XRHQCFMYJ-1,13.40,CEMETERIES CENTRAL ADMINISTRAT-GENERAL MATERIALS,MISCELLANEOUS AND SPECIALTY RETAIL STORES,GPC
WALSALL COUNCIL,HTTP://OPENDATACOMMUNITIES.ORG/ID/METROPOLITAN-DISTRICT-COUNCIL/WALSALL,30/09/2019,CHILDRENS SERVICES,WWW.NEWSSTAND.CO.UK,03/07/2019,H59620190705XSCZUBIBH-1,76.92,VIRTUAL SCHOOL - CENTRAL PUPIL-NEWSPAPERS/PERIODICALS/MAGAZINES/BOOKS,BOOK STORES,GPC
WALSALL COUNCIL,HTTP://OPENDATACOMMUNITIES.ORG/ID/METROPOLITAN-DISTRICT-COUNCIL/WALSALL,30/09/2019,RESOURCES & TRANSFORMATION,TRAVELODGE GB0000,03/07/2019,H59620190705YENEGFHBD-1,322.00,BED & BREAKFAST PAYMENTS-BED & BREAKFAST PAYMENTS,TRAVELODGE,GPC
WALSALL COUNCIL,HTTP://OPENDATACOMMUNITIES.ORG/ID/METROPOLITAN-DISTRICT-COUNCIL/WALSALL,30/09/2019,RESOURCES & TRANSFORMATION,JOHAL DAIRIES LTD,03/07/2019,H59620190705YHNQHINUT-1,10.68,CA LITTLE BLOXWICH CE PRIMARY -FOOD & DRINK SUPPLIES,OTHER NONDURABLE GOODS,GPC
WALSALL COUNCIL,HTTP://OPENDATACOMMUNITIES.ORG/ID/METROPOLITAN-DISTRICT-COUNCIL/WALSALL,30/09/2019,CHILDRENS SERVICES,SIMPLY TRAINING AND DEVEL,03/07/2019,H59620190705YJMEOMQYA-1,18.00,WHITEHALL JUNIOR COMMUNITY SCH-EXTERNAL TRAINING,OTHER SCHOOLS AND EDUCATIONAL SERVICES,GPC
WALSALL COUNCIL,HTTP://OPENDATACOMMUNITIES.ORG/ID/METROPOLITAN-DISTRICT-COUNCIL/WALSALL,30/09/2019,RESOURCES & TRANSFORMATION,JOHAL DAIRIES LTD,03/07/2019,H59620190705YXFYJEJHQ-1,3.56,CA WALSALL WOOD PRIMARY SCHOOL-FOOD & DRINK SUPPLIES,OTHER NONDURABLE GOODS,GPC
WALSALL COUNCIL,HTTP://OPENDATACOMMUNITIES.ORG/ID/METROPOLITAN-DISTRICT-COUNCIL/WALSALL,30/09/2019,CHILDRENS SERVICES,AMAZON.CO.UK*M63KL4254,03/07/2019,H59620190705ZGBLUNJSW-1,10.99,SCIENCE-GENERAL MATERIALS,OTHER DIRECT MARKETING-OTHER DIRECT MARKETERS,GPC
WALSALL COUNCIL,HTTP://OPENDATACOMMUNITIES.ORG/ID/METROPOLITAN-DISTRICT-COUNCIL/WALSALL,30/09/2019,CHILDRENS SERVICES,TESCO STORES 6161,03/07/2019,H59620190705ZKWPNWRJM-1,4.99,LOOKED AFTER CHILDRENS SOCIAL -SUPPORT UNDER SECTION 23 OF THE CHILDRENS ACT,GROCERY STORES AND SUPERMARKETS,GPC
WALSALL COUNCIL,HTTP://OPENDATACOMMUNITIES.ORG/ID/METROPOLITAN-DISTRICT-COUNCIL/WALSALL,30/09/2019,CHILDRENS SERVICES,TESCO STORES 6161,03/07/2019,H59620190705ZKWPNWRJM-2,10.00,LOOKED AFTER CHILDRENS SOCIAL -SUPPORT UNDER SECTION 23 OF THE CHILDRENS ACT,GROCERY STORES AND SUPERMARKETS,GPC
WALSALL COUNCIL,HTTP://OPENDATACOMMUNITIES.ORG/ID/METROPOLITAN-DISTRICT-COUNCIL/WALSALL,30/09/2019,CHILDRENS SERVICES,PRIMARK 690,03/07/2019,H59620190706CAFMTCYOR-1,11.00,57 LICHFIELD ROAD-RESIDENTS PERSONAL EXPENSES-ALLOWANCES TO S/S CLIENTS,CLOTHING STORES,GPC
WALSALL COUNCIL,HTTP://OPENDATACOMMUNITIES.ORG/ID/METROPOLITAN-DISTRICT-COUNCIL/WALSALL,30/09/2019,ECONOMY & ENVIRONMENT,B4 PARKING,03/07/2019,H59620190706XUWCKRHUR-1,14.00,EMERGENCY PLANNING-OTHER-TRAVEL ALLOWANCES,AUTOMOBILE PARKING LOTS AND GARAGES,GPC
WALSALL COUNCIL,HTTP://OPENDATACOMMUNITIES.ORG/ID/METROPOLITAN-DISTRICT-COUNCIL/WALSALL,30/09/2019,RESOURCES & TRANSFORMATION,FOREIGN EXCHANGE FEE,04/07/2019,H59620190705JPWKCBPQZ-1,7.62,APPLICATIONS-COMPUTER EQUIPMENT AND SUPPLIES,,GPC
WALSALL COUNCIL,HTTP://OPENDATACOMMUNITIES.ORG/ID/METROPOLITAN-DISTRICT-COUNCIL/WALSALL,30/09/2019,RESOURCES & TRANSFORMATION,BLAKEMORE FOODSERVICE,04/07/2019,H59620190706ATOXYSOUV-1,-9.87,CA OLD HALL SPECIAL SCHOOL-FOOD & DRINK SUPPLIES,CATERERS,GPC
WALSALL COUNCIL,HTTP://OPENDATACOMMUNITIES.ORG/ID/METROPOLITAN-DISTRICT-COUNCIL/WALSALL,30/09/2019,CHILDRENS SERVICES (SCHOOLS),AMAZON.CO.UK*M62Y477T4,04/07/2019,H59620190706BXHJVPVCY-1,44.94,E19-LIBRARY BOOKS,OTHER DIRECT MARKETING-OTHER DIRECT MARKETERS,GPC
WALSALL COUNCIL,HTTP://OPENDATACOMMUNITIES.ORG/ID/METROPOLITAN-DISTRICT-COUNCIL/WALSALL,30/09/2019,RESOURCES & TRANSFORMATION,BLAKEMORE FOODSERVICE,04/07/2019,H59620190706BYFNNWXKK-1,188.61,CA KINGSHILL SCHOOL-FOOD & DRINK SUPPLIES,CATERERS,GPC
WALSALL COUNCIL,HTTP://OPENDATACOMMUNITIES.ORG/ID/METROPOLITAN-DISTRICT-COUNCIL/WALSALL,30/09/2019,ECONOMY & ENVIRONMENT,WWW.BANNERUK.COM,04/07/2019,H59620190706CATPDOTOH-1,56.02,CENTRALISED STATIONARY-STATIONERY & GENERAL SUPPLIES-OFFICE EXP,"STATIONERY, OFFICE SUPPLIES AND WRITING PAPER",GPC
WALSALL COUNCIL,HTTP://OPENDATACOMMUNITIES.ORG/ID/METROPOLITAN-DISTRICT-COUNCIL/WALSALL,30/09/2019,RESOURCES & TRANSFORMATION,BLAKEMORE FOODSERVICE,04/07/2019,H59620190706CGQRWPOJF-1,17.66,CA MEADOW VIEW JMI PRIMARY SCH-FOOD & DRINK SUPPLIES,CATERERS,GPC
WALSALL COUNCIL,HTTP://OPENDATACOMMUNITIES.ORG/ID/METROPOLITAN-DISTRICT-COUNCIL/WALSALL,30/09/2019,RESOURCES & TRANSFORMATION,BLAKEMORE FOODSERVICE,04/07/2019,H59620190706CGQRWPOJF-2,234.69,CA MEADOW VIEW JMI PRIMARY SCH-FOOD & DRINK SUPPLIES,CATERERS,GPC
WALSALL COUNCIL,HTTP://OPENDATACOMMUNITIES.ORG/ID/METROPOLITAN-DISTRICT-COUNCIL/WALSALL,30/09/2019,CHILDRENS SERVICES,POUNDLAND LTD,04/07/2019,H59620190706CMTJHVEPE-1,10.00,VIRTUAL SCHOOL - CENTRAL PUPIL-FOOD & DRINK SUPPLIES,DISCOUNT STORES,GPC
WALSALL COUNCIL,HTTP://OPENDATACOMMUNITIES.ORG/ID/METROPOLITAN-DISTRICT-COUNCIL/WALSALL,30/09/2019,RESOURCES & TRANSFORMATION,HTTP://WEBEX.COM,04/07/2019,H59620190706CRCXMEMPP-1,14.40,APPLICATIONS-COMPUTER EQUIPMENT AND SUPPLIES,OTHER BUSINESS SERVICES,GPC
WALSALL COUNCIL,HTTP://OPENDATACOMMUNITIES.ORG/ID/METROPOLITAN-DISTRICT-COUNCIL/WALSALL,30/09/2019,RESOURCES & TRANSFORMATION,BLAKEMORE FOODSERVICE,04/07/2019,H59620190706CRNXLBTNF-1,102.39,CA BEACON PRIMARY SCHOOL-FOOD & DRINK SUPPLIES,CATERERS,GPC
WALSALL COUNCIL,HTTP://OPENDATACOMMUNITIES.ORG/ID/METROPOLITAN-DISTRICT-COUNCIL/WALSALL,30/09/2019,ECONOMY & ENVIRONMENT,WWW.BANNERUK.COM,04/07/2019,H59620190706CTINKJQNI-1,99.78,DARLASTON LEISURE CENTRE-STATIONERY & GENERAL SUPPLIES-OFFICE EXP,"STATIONERY, OFFICE SUPPLIES AND WRITING PAPER",GPC
WALSALL COUNCIL,HTTP://OPENDATACOMMUNITIES.ORG/ID/METROPOLITAN-DISTRICT-COUNCIL/WALSALL,30/09/2019,RESOURCES & TRANSFORMATION,BLAKEMORE FOODSERVICE,04/07/2019,H59620190706DAOOIDVNR-1,179.47,CA CASTLEFORT JMI SCHOOL-FOOD & DRINK SUPPLIES,CATERERS,GPC
WALSALL COUNCIL,HTTP://OPENDATACOMMUNITIES.ORG/ID/METROPOLITAN-DISTRICT-COUNCIL/WALSALL,30/09/2019,RESOURCES & TRANSFORMATION,BLAKEMORE FOODSERVICE,04/07/2019,H59620190706DAOOIDVNR-2,32.26,CA CASTLEFORT JMI SCHOOL-FOOD & DRINK SUPPLIES,CATERERS,GPC
WALSALL COUNCIL,HTTP://OPENDATACOMMUNITIES.ORG/ID/METROPOLITAN-DISTRICT-COUNCIL/WALSALL,30/09/2019,CHILDRENS SERVICES,W M MORRISON STORE,04/07/2019,H59620190706DGITGBIVX-1,-13.00,MEADOW VIEW JMI PRIMARY SCHOOL-FOOD & DRINK SUPPLIES,GROCERY STORES AND SUPERMARKETS,GPC
WALSALL COUNCIL,HTTP://OPENDATACOMMUNITIES.ORG/ID/METROPOLITAN-DISTRICT-COUNCIL/WALSALL,30/09/2019,CHILDRENS SERVICES,ASDA STORES 5130,04/07/2019,H59620190706DUYOSSTFT-1,3.79,PARENTING TEAM-FOOD & DRINK SUPPLIES,GROCERY STORES AND SUPERMARKETS,GPC
WALSALL COUNCIL,HTTP://OPENDATACOMMUNITIES.ORG/ID/METROPOLITAN-DISTRICT-COUNCIL/WALSALL,30/09/2019,ECONOMY & ENVIRONMENT,RINGGO,04/07/2019,H59620190706DVDCYILUH-1,13.11,ACTIVE ENGLAND-GENERAL MATERIALS,AUTOMOBILE PARKING LOTS AND GARAGES,GPC
WALSALL COUNCIL,HTTP://OPENDATACOMMUNITIES.ORG/ID/METROPOLITAN-DISTRICT-COUNCIL/WALSALL,30/09/2019,CHILDRENS SERVICES,POUNDLAND LTD 1427,04/07/2019,H59620190706EEVTGCSHI-1,10.10,VIRTUAL SCHOOL - CENTRAL PUPIL-GENERAL MATERIALS,DISCOUNT STORES,GPC
WALSALL COUNCIL,HTTP://OPENDATACOMMUNITIES.ORG/ID/METROPOLITAN-DISTRICT-COUNCIL/WALSALL,30/09/2019,CHILDRENS SERVICES,TESCO STORES 6161,04/07/2019,H59620190706EGAGTEECI-1,12.00,VIRTUAL SCHOOL - CENTRAL PUPIL-GENERAL MATERIALS,GROCERY STORES AND SUPERMARKETS,GPC
WALSALL COUNCIL,HTTP://OPENDATACOMMUNITIES.ORG/ID/METROPOLITAN-DISTRICT-COUNCIL/WALSALL,30/09/2019,CHILDRENS SERVICES,TESCO STORES 6161,04/07/2019,H59620190706EGAGTEECI-2,9.80,VIRTUAL SCHOOL - CENTRAL PUPIL-FOOD & DRINK SUPPLIES,GROCERY STORES AND SUPERMARKETS,GPC
WALSALL COUNCIL,HTTP://OPENDATACOMMUNITIES.ORG/ID/METROPOLITAN-DISTRICT-COUNCIL/WALSALL,30/09/2019,RESOURCES & TRANSFORMATION,BLAKEMORE FOODSERVICE,04/07/2019,H59620190706EOMRSNUSB-1,44.16,CA LEIGHSWOOD PRIMARY SCHOOL-FOOD & DRINK SUPPLIES,CATERERS,GPC
WALSALL COUNCIL,HTTP://OPENDATACOMMUNITIES.ORG/ID/METROPOLITAN-DISTRICT-COUNCIL/WALSALL,30/09/2019,RESOURCES & TRANSFORMATION,BLAKEMORE FOODSERVICE,04/07/2019,H59620190706EOMRSNUSB-2,203.00,CA LEIGHSWOOD PRIMARY SCHOOL-FOOD & DRINK SUPPLIES,CATERERS,GPC
WALSALL COUNCIL,HTTP://OPENDATACOMMUNITIES.ORG/ID/METROPOLITAN-DISTRICT-COUNCIL/WALSALL,30/09/2019,CHILDRENS SERVICES,WM MORRISON FOOD.COM,04/07/2019,H59620190706ESUJPETXR-1,-5.80,PELSALL VILLAGE SCHOOL-FOOD & DRINK SUPPLIES,GROCERY STORES AND SUPERMARKETS,GPC
WALSALL COUNCIL,HTTP://OPENDATACOMMUNITIES.ORG/ID/METROPOLITAN-DISTRICT-COUNCIL/WALSALL,30/09/2019,RESOURCES & TRANSFORMATION,BLAKEMORE FOODSERVICE,04/07/2019,H59620190706FCXAYRXQE-1,-9.10,CA RADLEYS PRIMARY SCHOOL-FOOD & DRINK SUPPLIES,CATERERS,GPC
WALSALL COUNCIL,HTTP://OPENDATACOMMUNITIES.ORG/ID/METROPOLITAN-DISTRICT-COUNCIL/WALSALL,30/09/2019,CHILDRENS SERVICES,WWW.BANNERUK.COM,04/07/2019,H59620190706FJQZODQTG-1,15.21,SAFEGUARDING & FAMILY SUPPORT-STATIONERY & GENERAL SUPPLIES-OFFICE EXP,"STATIONERY, OFFICE SUPPLIES AND WRITING PAPER",GPC
WALSALL COUNCIL,HTTP://OPENDATACOMMUNITIES.ORG/ID/METROPOLITAN-DISTRICT-COUNCIL/WALSALL,30/09/2019,CHILDRENS SERVICES,W M MORRISON STORE,04/07/2019,H59620190706FPKEYPXCU-1,13.00,MEADOW VIEW JMI PRIMARY SCHOOL-FOOD & DRINK SUPPLIES,GROCERY STORES AND SUPERMARKETS,GPC
WALSALL COUNCIL,HTTP://OPENDATACOMMUNITIES.ORG/ID/METROPOLITAN-DISTRICT-COUNCIL/WALSALL,30/09/2019,CHILDRENS SERVICES,AMZNMKTPLACE,04/07/2019,H59620190706GQCEKCNAO-1,15.20,SCIENCE-GENERAL MATERIALS,MISCELLANEOUS AND SPECIALTY RETAIL STORES,GPC
WALSALL COUNCIL,HTTP://OPENDATACOMMUNITIES.ORG/ID/METROPOLITAN-DISTRICT-COUNCIL/WALSALL,30/09/2019,RESOURCES & TRANSFORMATION,BLAKEMORE FOODSERVICE,04/07/2019,H59620190706GWTLBYHOO-1,111.36,CA RUSHALL JMI SCHOOL-FOOD & DRINK SUPPLIES,CATERERS,GPC
WALSALL COUNCIL,HTTP://OPENDATACOMMUNITIES.ORG/ID/METROPOLITAN-DISTRICT-COUNCIL/WALSALL,30/09/2019,ECONOMY & ENVIRONMENT,WILKO RETAIL LIMITED,04/07/2019,H59620190706HHPYAPZSQ-1,2.00,LEATHER MUSEUM-GENERAL MATERIALS,MISCELLANEOUS GENERAL MERCHANDISE,GPC
WALSALL COUNCIL,HTTP://OPENDATACOMMUNITIES.ORG/ID/METROPOLITAN-DISTRICT-COUNCIL/WALSALL,30/09/2019,CHILDRENS SERVICES,BCC REGISTER OFFIC,04/07/2019,H59620190706HPHGPUIWQ-1,13.50,SAFEGUARDING & FAMILY SUPPORT-SECTION 1/17CHILD CARE ACT 1989-ASSISTANCE TO S/S CLIENTS,GOVERNMENT SERVICES,GPC
WALSALL COUNCIL,HTTP://OPENDATACOMMUNITIES.ORG/ID/METROPOLITAN-DISTRICT-COUNCIL/WALSALL,30/09/2019,RESOURCES & TRANSFORMATION,BLAKEMORE FOODSERVICE,04/07/2019,H59620190706HVYWJEBEG-1,-2.26,CA ST JOHNS C.E. PRIMARY SCHOO-FOOD & DRINK SUPPLIES,CATERERS,GPC
WALSALL COUNCIL,HTTP://OPENDATACOMMUNITIES.ORG/ID/METROPOLITAN-DISTRICT-COUNCIL/WALSALL,30/09/2019,CHILDRENS SERVICES,WALSALL STN T/O,04/07/2019,H59620190706HXXPVXJWY-1,305.30,CONTACT SESSIONAL STAFF-OFFICER/STAFF-PUBLIC TRANSPORT,PASSENGER RAILWAYS,GPC
WALSALL COUNCIL,HTTP://OPENDATACOMMUNITIES.ORG/ID/METROPOLITAN-DISTRICT-COUNCIL/WALSALL,30/09/2019,CHILDRENS SERVICES,W M MORRISON STORE,04/07/2019,H59620190706IXTDHDTQL-1,8.02,MEADOW VIEW JMI PRIMARY SCHOOL-FOOD & DRINK SUPPLIES,GROCERY STORES AND SUPERMARKETS,GPC
WALSALL COUNCIL,HTTP://OPENDATACOMMUNITIES.ORG/ID/METROPOLITAN-DISTRICT-COUNCIL/WALSALL,30/09/2019,CHILDRENS SERVICES,W M MORRISON STORE,04/07/2019,H59620190706IXTDHDTQL-2,3.30,MEADOW VIEW JMI PRIMARY SCHOOL-FOOD & DRINK SUPPLIES,GROCERY STORES AND SUPERMARKETS,GPC
WALSALL COUNCIL,HTTP://OPENDATACOMMUNITIES.ORG/ID/METROPOLITAN-DISTRICT-COUNCIL/WALSALL,30/09/2019,RESOURCES & TRANSFORMATION,BLAKEMORE FOODSERVICE,04/07/2019,H59620190706IYSCEOYFO-1,58.42,CA ST JOHNS C.E. PRIMARY SCHOO-FOOD & DRINK SUPPLIES,CATERERS,GPC
WALSALL COUNCIL,HTTP://OPENDATACOMMUNITIES.ORG/ID/METROPOLITAN-DISTRICT-COUNCIL/WALSALL,30/09/2019,RESOURCES & TRANSFORMATION,BLAKEMORE FOODSERVICE,04/07/2019,H59620190706IYSCEOYFO-2,176.34,CA ST JOHNS C.E. PRIMARY SCHOO-FOOD & DRINK SUPPLIES,CATERERS,GPC
WALSALL COUNCIL,HTTP://OPENDATACOMMUNITIES.ORG/ID/METROPOLITAN-DISTRICT-COUNCIL/WALSALL,30/09/2019,CHILDRENS SERVICES,WM MORRISONS STORE,04/07/2019,H59620190706JKBYRWAJE-1,12.30,WATLING STREET PRIMARY SCHOOL-FOOD & DRINK SUPPLIES,GROCERY STORES AND SUPERMARKETS,GPC
WALSALL COUNCIL,HTTP://OPENDATACOMMUNITIES.ORG/ID/METROPOLITAN-DISTRICT-COUNCIL/WALSALL,30/09/2019,CHILDRENS SERVICES,WM MORRISONS STORE,04/07/2019,H59620190706JKBYRWAJE-2,13.95,WATLING STREET PRIMARY SCHOOL-FOOD & DRINK SUPPLIES,GROCERY STORES AND SUPERMARKETS,GPC
WALSALL COUNCIL,HTTP://OPENDATACOMMUNITIES.ORG/ID/METROPOLITAN-DISTRICT-COUNCIL/WALSALL,30/09/2019,ECONOMY & ENVIRONMENT,AMZNMKTPLACE,04/07/2019,H59620190706JNDYEAHFI-1,12.70,EH DIV GENERAL COSTS-GENERAL MATERIALS,MISCELLANEOUS AND SPECIALTY RETAIL STORES,GPC
WALSALL COUNCIL,HTTP://OPENDATACOMMUNITIES.ORG/ID/METROPOLITAN-DISTRICT-COUNCIL/WALSALL,30/09/2019,RESOURCES & TRANSFORMATION,BLAKEMORE FOODSERVICE,04/07/2019,H59620190706KAJDFHHDQ-1,133.76,CA JANE LANE SPECIAL SCHOOL-FOOD & DRINK SUPPLIES,CATERERS,GPC
WALSALL COUNCIL,HTTP://OPENDATACOMMUNITIES.ORG/ID/METROPOLITAN-DISTRICT-COUNCIL/WALSALL,30/09/2019,RESOURCES & TRANSFORMATION,BLAKEMORE FOODSERVICE,04/07/2019,H59620190706KDNHPCNIB-1,22.25,CA OLD HALL SPECIAL SCHOOL-FOOD & DRINK SUPPLIES,CATERERS,GPC
WALSALL COUNCIL,HTTP://OPENDATACOMMUNITIES.ORG/ID/METROPOLITAN-DISTRICT-COUNCIL/WALSALL,30/09/2019,RESOURCES & TRANSFORMATION,BLAKEMORE FOODSERVICE,04/07/2019,H59620190706KVVYHPHYH-1,223.11,CA COOPER JORDAN CE PRIMARY SC-FOOD & DRINK SUPPLIES,CATERERS,GPC
WALSALL COUNCIL,HTTP://OPENDATACOMMUNITIES.ORG/ID/METROPOLITAN-DISTRICT-COUNCIL/WALSALL,30/09/2019,RESOURCES & TRANSFORMATION,BLAKEMORE FOODSERVICE,04/07/2019,H59620190706KVVYHPHYH-2,17.67,CA COOPER JORDAN CE PRIMARY SC-FOOD & DRINK SUPPLIES,CATERERS,GPC
WALSALL COUNCIL,HTTP://OPENDATACOMMUNITIES.ORG/ID/METROPOLITAN-DISTRICT-COUNCIL/WALSALL,30/09/2019,CHILDRENS SERVICES,WWW.ARGOS.CO.UK,04/07/2019,H59620190706LBXJXYEDG-1,354.95,TRANSITION AND LEAVING CARE PL-FURNITURE & EQUIPMENT,DISCOUNT STORES,GPC
WALSALL COUNCIL,HTTP://OPENDATACOMMUNITIES.ORG/ID/METROPOLITAN-DISTRICT-COUNCIL/WALSALL,30/09/2019,RESOURCES & TRANSFORMATION,BLAKEMORE FOODSERVICE,04/07/2019,H59620190706LCQKEBERV-1,-3.03,CA MOORCROFT WOOD-FOOD & DRINK SUPPLIES,CATERERS,GPC
WALSALL COUNCIL,HTTP://OPENDATACOMMUNITIES.ORG/ID/METROPOLITAN-DISTRICT-COUNCIL/WALSALL,30/09/2019,RESOURCES & TRANSFORMATION,NOBISCO LIMITED,04/07/2019,H59620190706LPOVQSVPN-1,73.33,CA ELMORE GREEN PRIMARY SCHOOL-FOOD & DRINK SUPPLIES,OTHER INDUSTRIAL SUPPLIES,GPC
WALSALL COUNCIL,HTTP://OPENDATACOMMUNITIES.ORG/ID/METROPOLITAN-DISTRICT-COUNCIL/WALSALL,30/09/2019,CHILDRENS SERVICES (SCHOOLS),SPORTS DIRECTORY,04/07/2019,H59620190706MIXSXDLJU-1,141.95,E19-GENERAL MATERIALS,SPORTING GOODS STORES,GPC
WALSALL COUNCIL,HTTP://OPENDATACOMMUNITIES.ORG/ID/METROPOLITAN-DISTRICT-COUNCIL/WALSALL,30/09/2019,CHILDRENS SERVICES,ARGOS WALSALL CROW,04/07/2019,H59620190706MOWORNKHA-1,44.99,SUPPORT UNDER SECT 23 OF THE C-SUPPORT UNDER SECTION 23 OF THE CHILDRENS ACT,DISCOUNT STORES,GPC
WALSALL COUNCIL,HTTP://OPENDATACOMMUNITIES.ORG/ID/METROPOLITAN-DISTRICT-COUNCIL/WALSALL,30/09/2019,CHILDRENS SERVICES,CARD FACTORY,04/07/2019,H59620190706NQONLORZU-1,2.97,VIRTUAL SCHOOL - CENTRAL PUPIL-GENERAL MATERIALS,"CARD, GIFT, NOVELTY, AND SOUVENIR SHOPS",GPC
WALSALL COUNCIL,HTTP://OPENDATACOMMUNITIES.ORG/ID/METROPOLITAN-DISTRICT-COUNCIL/WALSALL,30/09/2019,CHILDRENS SERVICES,AMZNMKTPLACE,04/07/2019,H59620190706OBQVNCPGK-1,11.96,OUTDOOR EDUCATION-GENERAL MATERIALS,MISCELLANEOUS AND SPECIALTY RETAIL STORES,GPC
WALSALL COUNCIL,HTTP://OPENDATACOMMUNITIES.ORG/ID/METROPOLITAN-DISTRICT-COUNCIL/WALSALL,30/09/2019,RESOURCES & TRANSFORMATION,BLAKEMORE FOODSERVICE,04/07/2019,H59620190706ODJPGYIEF-1,321.97,CA RADLEYS PRIMARY SCHOOL-FOOD & DRINK SUPPLIES,CATERERS,GPC
WALSALL COUNCIL,HTTP://OPENDATACOMMUNITIES.ORG/ID/METROPOLITAN-DISTRICT-COUNCIL/WALSALL,30/09/2019,RESOURCES & TRANSFORMATION,BLAKEMORE FOODSERVICE,04/07/2019,H59620190706ONDMEKFVR-1,26.50,CA WATLING STREET PRIMARY SCHO-FOOD & DRINK SUPPLIES,CATERERS,GPC
WALSALL COUNCIL,HTTP://OPENDATACOMMUNITIES.ORG/ID/METROPOLITAN-DISTRICT-COUNCIL/WALSALL,30/09/2019,RESOURCES & TRANSFORMATION,BLAKEMORE FOODSERVICE,04/07/2019,H59620190706ONDMEKFVR-2,122.73,CA WATLING STREET PRIMARY SCHO-FOOD & DRINK SUPPLIES,CATERERS,GPC
WALSALL COUNCIL,HTTP://OPENDATACOMMUNITIES.ORG/ID/METROPOLITAN-DISTRICT-COUNCIL/WALSALL,30/09/2019,CHILDRENS SERVICES,WALSALL STN T/O,04/07/2019,H59620190706OOVDAXCXE-1,98.75,LOOKED AFTER CHILDRENS SOCIAL -SECTION 34 (CONTACT),PASSENGER RAILWAYS,GPC
WALSALL COUNCIL,HTTP://OPENDATACOMMUNITIES.ORG/ID/METROPOLITAN-DISTRICT-COUNCIL/WALSALL,30/09/2019,CHILDRENS SERVICES,SNOWCHAINS.CO.UK,04/07/2019,H59620190706OPCSBKIGW-1,25.90,SPINDLETREE-OPERATIONAL MAINTENANCE,"AUTOMOTIVE PARTS, ACCESSORIES STORES",GPC
WALSALL COUNCIL,HTTP://OPENDATACOMMUNITIES.ORG/ID/METROPOLITAN-DISTRICT-COUNCIL/WALSALL,30/09/2019,CHILDRENS SERVICES,WWW.ARGOS.CO.UK,04/07/2019,H59620190706PIUQFOSUJ-1,51.98,TRANSITION AND LEAVING CARE PL-FURNITURE & EQUIPMENT,DISCOUNT STORES,GPC
WALSALL COUNCIL,HTTP://OPENDATACOMMUNITIES.ORG/ID/METROPOLITAN-DISTRICT-COUNCIL/WALSALL,30/09/2019,RESOURCES & TRANSFORMATION,BLAKEMORE FOODSERVICE,04/07/2019,H59620190706PNWPFTHKQ-1,52.64,CA ST MICHAELS C.E. PRIMARY SC-FOOD & DRINK SUPPLIES,CATERERS,GPC
WALSALL COUNCIL,HTTP://OPENDATACOMMUNITIES.ORG/ID/METROPOLITAN-DISTRICT-COUNCIL/WALSALL,30/09/2019,RESOURCES & TRANSFORMATION,BLAKEMORE FOODSERVICE,04/07/2019,H59620190706PNWPFTHKQ-2,161.61,CA ST MICHAELS C.E. PRIMARY SC-FOOD & DRINK SUPPLIES,CATERERS,GPC
WALSALL COUNCIL,HTTP://OPENDATACOMMUNITIES.ORG/ID/METROPOLITAN-DISTRICT-COUNCIL/WALSALL,30/09/2019,ECONOMY & ENVIRONMENT,TOOLSTATION LTD,04/07/2019,H59620190706PTNWBYVMN-1,42.83,INFRASTRUCTURE MAINTENANCE-GENERAL MATERIALS,HARDWARE STORES,GPC
WALSALL COUNCIL,HTTP://OPENDATACOMMUNITIES.ORG/ID/METROPOLITAN-DISTRICT-COUNCIL/WALSALL,30/09/2019,RESOURCES & TRANSFORMATION,THE GREAT BARR,04/07/2019,H59620190706QEHXVNIMU-1,315.00,BED & BREAKFAST PAYMENTS-HOTEL ACCOMMODATION-EMPLOYEES,"HOTELS, MOTELS, RESORTS",GPC
WALSALL COUNCIL,HTTP://OPENDATACOMMUNITIES.ORG/ID/METROPOLITAN-DISTRICT-COUNCIL/WALSALL,30/09/2019,RESOURCES & TRANSFORMATION,WILKO RETAIL LIMITED,04/07/2019,H59620190706QETMNRAKQ-1,55.60,WALSALL CRISIS SUPPORT SCHEME-CRISIS SUPPORT PAYMENTS,MISCELLANEOUS GENERAL MERCHANDISE,GPC
WALSALL COUNCIL,HTTP://OPENDATACOMMUNITIES.ORG/ID/METROPOLITAN-DISTRICT-COUNCIL/WALSALL,30/09/2019,RESOURCES & TRANSFORMATION,BLAKEMORE FOODSERVICE,04/07/2019,H59620190706QIHGJFOWG-1,186.57,CA BROWNHILLS WEST PRIMARY SCH-FOOD & DRINK SUPPLIES,CATERERS,GPC
WALSALL COUNCIL,HTTP://OPENDATACOMMUNITIES.ORG/ID/METROPOLITAN-DISTRICT-COUNCIL/WALSALL,30/09/2019,RESOURCES & TRANSFORMATION,BLAKEMORE FOODSERVICE,04/07/2019,H59620190706QIHGJFOWG-2,17.66,CA BROWNHILLS WEST PRIMARY SCH-FOOD & DRINK SUPPLIES,CATERERS,GPC
WALSALL COUNCIL,HTTP://OPENDATACOMMUNITIES.ORG/ID/METROPOLITAN-DISTRICT-COUNCIL/WALSALL,30/09/2019,CHILDRENS SERVICES,WALSALL STN T/O,04/07/2019,H59620190706QLCRYMMOI-1,310.60,CONTACT SESSIONAL STAFF-OFFICER/STAFF-PUBLIC TRANSPORT,PASSENGER RAILWAYS,GPC
WALSALL COUNCIL,HTTP://OPENDATACOMMUNITIES.ORG/ID/METROPOLITAN-DISTRICT-COUNCIL/WALSALL,30/09/2019,RESOURCES & TRANSFORMATION,TRAVELODGE GB0000,04/07/2019,H59620190706RANPJCPGO-1,110.25,BED & BREAKFAST PAYMENTS-BED & BREAKFAST PAYMENTS,TRAVELODGE,GPC
WALSALL COUNCIL,HTTP://OPENDATACOMMUNITIES.ORG/ID/METROPOLITAN-DISTRICT-COUNCIL/WALSALL,30/09/2019,RESOURCES & TRANSFORMATION,TRAVELODGE GB0000,04/07/2019,H59620190706RANPJCPGO-2,328.00,BED & BREAKFAST PAYMENTS-BED & BREAKFAST PAYMENTS,TRAVELODGE,GPC
WALSALL COUNCIL,HTTP://OPENDATACOMMUNITIES.ORG/ID/METROPOLITAN-DISTRICT-COUNCIL/WALSALL,30/09/2019,RESOURCES & TRANSFORMATION,BLAKEMORE FOODSERVICE,04/07/2019,H59620190706RFESRTBHQ-1,-13.31,CA BARCROFT D/C-FOOD & DRINK SUPPLIES,CATERERS,GPC
WALSALL COUNCIL,HTTP://OPENDATACOMMUNITIES.ORG/ID/METROPOLITAN-DISTRICT-COUNCIL/WALSALL,30/09/2019,RESOURCES & TRANSFORMATION,BLAKEMORE FOODSERVICE,04/07/2019,H59620190706RJUHKPPJQ-1,26.50,CA LINDENS PRIMARY SCHOOL-FOOD & DRINK SUPPLIES,CATERERS,GPC
WALSALL COUNCIL,HTTP://OPENDATACOMMUNITIES.ORG/ID/METROPOLITAN-DISTRICT-COUNCIL/WALSALL,30/09/2019,RESOURCES & TRANSFORMATION,BLAKEMORE FOODSERVICE,04/07/2019,H59620190706RJUHKPPJQ-2,80.25,CA LINDENS PRIMARY SCHOOL-FOOD & DRINK SUPPLIES,CATERERS,GPC
WALSALL COUNCIL,HTTP://OPENDATACOMMUNITIES.ORG/ID/METROPOLITAN-DISTRICT-COUNCIL/WALSALL,30/09/2019,RESOURCES & TRANSFORMATION,BLAKEMORE FOODSERVICE,04/07/2019,H59620190706RTSBPCVUG-1,8.83,CA OLD HALL SPECIAL SCHOOL-FOOD & DRINK SUPPLIES,CATERERS,GPC
WALSALL COUNCIL,HTTP://OPENDATACOMMUNITIES.ORG/ID/METROPOLITAN-DISTRICT-COUNCIL/WALSALL,30/09/2019,RESOURCES & TRANSFORMATION,BLAKEMORE FOODSERVICE,04/07/2019,H59620190706RTSBPCVUG-2,110.26,CA OLD HALL SPECIAL SCHOOL-FOOD & DRINK SUPPLIES,CATERERS,GPC
WALSALL COUNCIL,HTTP://OPENDATACOMMUNITIES.ORG/ID/METROPOLITAN-DISTRICT-COUNCIL/WALSALL,30/09/2019,RESOURCES & TRANSFORMATION,NOBISCO LIMITED,04/07/2019,H59620190706RUIXCDSRV-1,105.54,CA BUSILL JONES PRIMARY SCHOOL-FURNITURE & EQUIPMENT,OTHER INDUSTRIAL SUPPLIES,GPC
WALSALL COUNCIL,HTTP://OPENDATACOMMUNITIES.ORG/ID/METROPOLITAN-DISTRICT-COUNCIL/WALSALL,30/09/2019,RESOURCES & TRANSFORMATION,BLAKEMORE FOODSERVICE,04/07/2019,H59620190706RVWARSGUF-1,152.63,CA BUSILL JONES PRIMARY SCHOOL-CATERING,CATERERS,GPC
WALSALL COUNCIL,HTTP://OPENDATACOMMUNITIES.ORG/ID/METROPOLITAN-DISTRICT-COUNCIL/WALSALL,30/09/2019,ECONOMY & ENVIRONMENT,AMZNMKTPLACE,04/07/2019,H59620190706SQJUDJLMX-1,23.50,RES-WALSALL WORKS-FURNITURE & EQUIPMENT,MISCELLANEOUS AND SPECIALTY RETAIL STORES,GPC
WALSALL COUNCIL,HTTP://OPENDATACOMMUNITIES.ORG/ID/METROPOLITAN-DISTRICT-COUNCIL/WALSALL,30/09/2019,CHILDRENS SERVICES,WALSALL STN T/O,04/07/2019,H59620190706SWXCOLFGS-1,-305.30,CONTACT SESSIONAL STAFF-OFFICER/STAFF-PUBLIC TRANSPORT,PASSENGER RAILWAYS,GPC
WALSALL COUNCIL,HTTP://OPENDATACOMMUNITIES.ORG/ID/METROPOLITAN-DISTRICT-COUNCIL/WALSALL,30/09/2019,RESOURCES & TRANSFORMATION,NOBISCO LIMITED,04/07/2019,H59620190706SZPWECSUQ-1,32.36,CA ELMWOOD SPECIAL SCHOOL-FOOD & DRINK SUPPLIES,OTHER INDUSTRIAL SUPPLIES,GPC
WALSALL COUNCIL,HTTP://OPENDATACOMMUNITIES.ORG/ID/METROPOLITAN-DISTRICT-COUNCIL/WALSALL,30/09/2019,RESOURCES & TRANSFORMATION,BLAKEMORE FOODSERVICE,04/07/2019,H59620190706TFJBDLWEL-1,-17.13,CA ST MICHAELS C.E. PRIMARY SC-FOOD & DRINK SUPPLIES,CATERERS,GPC
WALSALL COUNCIL,HTTP://OPENDATACOMMUNITIES.ORG/ID/METROPOLITAN-DISTRICT-COUNCIL/WALSALL,30/09/2019,RESOURCES & TRANSFORMATION,BLAKEMORE FOODSERVICE,04/07/2019,H59620190706TSTMFJTXJ-1,29.21,CA OAKWOOD SPECIAL SCHOOL-FOOD & DRINK SUPPLIES,CATERERS,GPC
WALSALL COUNCIL,HTTP://OPENDATACOMMUNITIES.ORG/ID/METROPOLITAN-DISTRICT-COUNCIL/WALSALL,30/09/2019,RESOURCES & TRANSFORMATION,BLAKEMORE FOODSERVICE,04/07/2019,H59620190706TSTMFJTXJ-2,82.91,CA OAKWOOD SPECIAL SCHOOL-FOOD & DRINK SUPPLIES,CATERERS,GPC
WALSALL COUNCIL,HTTP://OPENDATACOMMUNITIES.ORG/ID/METROPOLITAN-DISTRICT-COUNCIL/WALSALL,30/09/2019,CHILDRENS SERVICES,TESCO STORES 6161,04/07/2019,H59620190706TVPECHGYU-1,65.05,VIRTUAL SCHOOL - CENTRAL PUPIL-FOOD & DRINK SUPPLIES,GROCERY STORES AND SUPERMARKETS,GPC
WALSALL COUNCIL,HTTP://OPENDATACOMMUNITIES.ORG/ID/METROPOLITAN-DISTRICT-COUNCIL/WALSALL,30/09/2019,CHILDRENS SERVICES,TESCO STORES 6161,04/07/2019,H59620190706TVPECHGYU-2,25.50,VIRTUAL SCHOOL - CENTRAL PUPIL-FOOD & DRINK SUPPLIES,GROCERY STORES AND SUPERMARKETS,GPC
WALSALL COUNCIL,HTTP://OPENDATACOMMUNITIES.ORG/ID/METROPOLITAN-DISTRICT-COUNCIL/WALSALL,30/09/2019,CHILDRENS SERVICES,TESCO STORES 6161,04/07/2019,H59620190706UBSUJMEHQ-1,20.00,VIRTUAL SCHOOL - CENTRAL PUPIL-GENERAL MATERIALS,GROCERY STORES AND SUPERMARKETS,GPC
WALSALL COUNCIL,HTTP://OPENDATACOMMUNITIES.ORG/ID/METROPOLITAN-DISTRICT-COUNCIL/WALSALL,30/09/2019,RESOURCES & TRANSFORMATION,BLAKEMORE FOODSERVICE,04/07/2019,H59620190706UBWOICRAL-1,-13.22,CA ST MICHAELS C.E. PRIMARY SC-FOOD & DRINK SUPPLIES,CATERERS,GPC
WALSALL COUNCIL,HTTP://OPENDATACOMMUNITIES.ORG/ID/METROPOLITAN-DISTRICT-COUNCIL/WALSALL,30/09/2019,RESOURCES & TRANSFORMATION,BLAKEMORE FOODSERVICE,04/07/2019,H59620190706UCGSUKTNH-1,241.81,CA ELMORE GREEN PRIMARY SCHOOL-FOOD & DRINK SUPPLIES,CATERERS,GPC
WALSALL COUNCIL,HTTP://OPENDATACOMMUNITIES.ORG/ID/METROPOLITAN-DISTRICT-COUNCIL/WALSALL,30/09/2019,RESOURCES & TRANSFORMATION,BLAKEMORE FOODSERVICE,04/07/2019,H59620190706UCGSUKTNH-2,58.42,CA ELMORE GREEN PRIMARY SCHOOL-FOOD & DRINK SUPPLIES,CATERERS,GPC
WALSALL COUNCIL,HTTP://OPENDATACOMMUNITIES.ORG/ID/METROPOLITAN-DISTRICT-COUNCIL/WALSALL,30/09/2019,RESOURCES & TRANSFORMATION,BLAKEMORE FOODSERVICE,04/07/2019,H59620190706UHTWXCMOS-1,-8.51,CA CASTLEFORT JMI SCHOOL-FOOD & DRINK SUPPLIES,CATERERS,GPC
WALSALL COUNCIL,HTTP://OPENDATACOMMUNITIES.ORG/ID/METROPOLITAN-DISTRICT-COUNCIL/WALSALL,30/09/2019,RESOURCES & TRANSFORMATION,BLAKEMORE FOODSERVICE,04/07/2019,H59620190706UJQVYJSML-1,502.30,CA BUSILL JONES PRIMARY SCHOOL-FOOD & DRINK SUPPLIES,CATERERS,GPC
WALSALL COUNCIL,HTTP://OPENDATACOMMUNITIES.ORG/ID/METROPOLITAN-DISTRICT-COUNCIL/WALSALL,30/09/2019,RESOURCES & TRANSFORMATION,BLAKEMORE FOODSERVICE,04/07/2019,H59620190706UJQVYJSML-2,128.27,CA BUSILL JONES PRIMARY SCHOOL-FOOD & DRINK SUPPLIES,CATERERS,GPC
WALSALL COUNCIL,HTTP://OPENDATACOMMUNITIES.ORG/ID/METROPOLITAN-DISTRICT-COUNCIL/WALSALL,30/09/2019,CHILDRENS SERVICES,WWW.BANNERUK.COM,04/07/2019,H59620190706UXBPOYLCO-1,167.55,CHILD PROTECTION & REVIEW SERV-STATIONERY & GENERAL SUPPLIES-OFFICE EXP,"STATIONERY, OFFICE SUPPLIES AND WRITING PAPER",GPC
WALSALL COUNCIL,HTTP://OPENDATACOMMUNITIES.ORG/ID/METROPOLITAN-DISTRICT-COUNCIL/WALSALL,30/09/2019,ECONOMY & ENVIRONMENT,AGRI-SUPPLY UK,04/07/2019,H59620190706VLJITYBES-1,57.90,FLEET-GENERAL MATERIALS,MISCELLANEOUS GENERAL MERCHANDISE,GPC
WALSALL COUNCIL,HTTP://OPENDATACOMMUNITIES.ORG/ID/METROPOLITAN-DISTRICT-COUNCIL/WALSALL,30/09/2019,CHILDRENS SERVICES,WALSALL STN T/O,04/07/2019,H59620190706VRPYEKRSU-1,267.50,CONTACT SESSIONAL STAFF-OFFICER/STAFF-PUBLIC TRANSPORT,PASSENGER RAILWAYS,GPC
WALSALL COUNCIL,HTTP://OPENDATACOMMUNITIES.ORG/ID/METROPOLITAN-DISTRICT-COUNCIL/WALSALL,30/09/2019,ECONOMY & ENVIRONMENT,THE BEST FUN LIMIT,04/07/2019,H59620190706VXJELQDEN-1,48.00,OAK PARK-OTHER FEES & LICENCES-SERVICES-FEES,OTHER RECREATION SERVICES,GPC
WALSALL COUNCIL,HTTP://OPENDATACOMMUNITIES.ORG/ID/METROPOLITAN-DISTRICT-COUNCIL/WALSALL,30/09/2019,RESOURCES & TRANSFORMATION,BLAKEMORE FOODSERVICE,04/07/2019,H59620190706WBMVXIPKO-1,242.09,CA ELMORE GREEN PRIMARY SCHOOL-FOOD & DRINK SUPPLIES,CATERERS,GPC
WALSALL COUNCIL,HTTP://OPENDATACOMMUNITIES.ORG/ID/METROPOLITAN-DISTRICT-COUNCIL/WALSALL,30/09/2019,RESOURCES & TRANSFORMATION,BLAKEMORE FOODSERVICE,04/07/2019,H59620190706WBMVXIPKO-2,91.62,CA ELMORE GREEN PRIMARY SCHOOL-FOOD & DRINK SUPPLIES,CATERERS,GPC
WALSALL COUNCIL,HTTP://OPENDATACOMMUNITIES.ORG/ID/METROPOLITAN-DISTRICT-COUNCIL/WALSALL,30/09/2019,CHILDRENS SERVICES,ASDA,04/07/2019,H59620190706WSERBWTNM-1,3.85,VIRTUAL SCHOOL - CENTRAL PUPIL-FOOD & DRINK SUPPLIES,GROCERY STORES AND SUPERMARKETS,GPC
WALSALL COUNCIL,HTTP://OPENDATACOMMUNITIES.ORG/ID/METROPOLITAN-DISTRICT-COUNCIL/WALSALL,30/09/2019,RESOURCES & TRANSFORMATION,BLAKEMORE FOODSERVICE,04/07/2019,H59620190706WYVHMUKNQ-1,30.54,CA ELMWOOD SPECIAL SCHOOL-FOOD & DRINK SUPPLIES,CATERERS,GPC
WALSALL COUNCIL,HTTP://OPENDATACOMMUNITIES.ORG/ID/METROPOLITAN-DISTRICT-COUNCIL/WALSALL,30/09/2019,RESOURCES & TRANSFORMATION,BLAKEMORE FOODSERVICE,04/07/2019,H59620190706WYVHMUKNQ-2,213.63,CA ELMWOOD SPECIAL SCHOOL-FOOD & DRINK SUPPLIES,CATERERS,GPC
WALSALL COUNCIL,HTTP://OPENDATACOMMUNITIES.ORG/ID/METROPOLITAN-DISTRICT-COUNCIL/WALSALL,30/09/2019,CHILDRENS SERVICES,TESCO STORES 6161,04/07/2019,H59620190706XIIYQEWNZ-1,33.50,VIRTUAL SCHOOL - CENTRAL PUPIL-FOOD & DRINK SUPPLIES,GROCERY STORES AND SUPERMARKETS,GPC
WALSALL COUNCIL,HTTP://OPENDATACOMMUNITIES.ORG/ID/METROPOLITAN-DISTRICT-COUNCIL/WALSALL,30/09/2019,RESOURCES & TRANSFORMATION,BLAKEMORE FOODSERVICE,04/07/2019,H59620190706XRFQOUJBW-1,-3.91,CA ST GILES C.E. PRIMARY SCHOO-FOOD & DRINK SUPPLIES,CATERERS,GPC
WALSALL COUNCIL,HTTP://OPENDATACOMMUNITIES.ORG/ID/METROPOLITAN-DISTRICT-COUNCIL/WALSALL,30/09/2019,CHILDRENS SERVICES,POUNDLAND LTD 1427,04/07/2019,H59620190706XTMPPQWCN-1,23.00,VIRTUAL SCHOOL - CENTRAL PUPIL-GENERAL MATERIALS,DISCOUNT STORES,GPC
WALSALL COUNCIL,HTTP://OPENDATACOMMUNITIES.ORG/ID/METROPOLITAN-DISTRICT-COUNCIL/WALSALL,30/09/2019,RESOURCES & TRANSFORMATION,BLAKEMORE FOODSERVICE,04/07/2019,H59620190706XYIUOKDLC-1,26.50,CA ST GILES C.E. PRIMARY SCHOO-FOOD & DRINK SUPPLIES,CATERERS,GPC
WALSALL COUNCIL,HTTP://OPENDATACOMMUNITIES.ORG/ID/METROPOLITAN-DISTRICT-COUNCIL/WALSALL,30/09/2019,RESOURCES & TRANSFORMATION,BLAKEMORE FOODSERVICE,04/07/2019,H59620190706XYIUOKDLC-2,267.81,CA ST GILES C.E. PRIMARY SCHOO-FOOD & DRINK SUPPLIES,CATERERS,GPC
WALSALL COUNCIL,HTTP://OPENDATACOMMUNITIES.ORG/ID/METROPOLITAN-DISTRICT-COUNCIL/WALSALL,30/09/2019,CHILDRENS SERVICES,ASDA SUPERSTORE,04/07/2019,H59620190706YJQGRPXZK-1,6.50,REDRUTH ROAD-FOOD & DRINK SUPPLIES,GROCERY STORES AND SUPERMARKETS,GPC
WALSALL COUNCIL,HTTP://OPENDATACOMMUNITIES.ORG/ID/METROPOLITAN-DISTRICT-COUNCIL/WALSALL,30/09/2019,CHILDRENS SERVICES,ASDA SUPERSTORE,04/07/2019,H59620190706YJQGRPXZK-2,58.73,REDRUTH ROAD-FOOD & DRINK SUPPLIES,GROCERY STORES AND SUPERMARKETS,GPC
WALSALL COUNCIL,HTTP://OPENDATACOMMUNITIES.ORG/ID/METROPOLITAN-DISTRICT-COUNCIL/WALSALL,30/09/2019,CHILDRENS SERVICES (SCHOOLS),BT BILL PAYMENT 2,04/07/2019,H59620190706YMHMZWQYM-1,93.96,ADMINISTRATIVE SUPPLIES-TELEPHONES MOBILE/PAGERS-TELEPHONES,TELECOMMUNICATION EQUIPMENT & SALES,GPC
WALSALL COUNCIL,HTTP://OPENDATACOMMUNITIES.ORG/ID/METROPOLITAN-DISTRICT-COUNCIL/WALSALL,30/09/2019,RESOURCES & TRANSFORMATION,BLAKEMORE FOODSERVICE,04/07/2019,H59620190706YOUHRUEFK-1,17.66,CA ELMWOOD SPECIAL SCHOOL-FOOD & DRINK SUPPLIES,CATERERS,GPC
WALSALL COUNCIL,HTTP://OPENDATACOMMUNITIES.ORG/ID/METROPOLITAN-DISTRICT-COUNCIL/WALSALL,30/09/2019,RESOURCES & TRANSFORMATION,BLAKEMORE FOODSERVICE,04/07/2019,H59620190706YOUHRUEFK-2,86.07,CA ELMWOOD SPECIAL SCHOOL-FOOD & DRINK SUPPLIES,CATERERS,GPC
WALSALL COUNCIL,HTTP://OPENDATACOMMUNITIES.ORG/ID/METROPOLITAN-DISTRICT-COUNCIL/WALSALL,30/09/2019,CHILDRENS SERVICES,ONE STOP 6322,04/07/2019,H59620190706YYRVVNKMN-1,6.00,PARENTING TEAM-FOOD & DRINK SUPPLIES,GROCERY STORES AND SUPERMARKETS,GPC
WALSALL COUNCIL,HTTP://OPENDATACOMMUNITIES.ORG/ID/METROPOLITAN-DISTRICT-COUNCIL/WALSALL,30/09/2019,RESOURCES & TRANSFORMATION,BLAKEMORE FOODSERVICE,04/07/2019,H59620190706ZERMPMNUU-1,19.44,CA BEACON PRIMARY SCHOOL-FOOD & DRINK SUPPLIES,CATERERS,GPC
WALSALL COUNCIL,HTTP://OPENDATACOMMUNITIES.ORG/ID/METROPOLITAN-DISTRICT-COUNCIL/WALSALL,30/09/2019,RESOURCES & TRANSFORMATION,SPORTSDIRECT.COM,04/07/2019,H59620190709ASREGCJAX-1,21.98,WALSALL CRISIS SUPPORT SCHEME-CRISIS SUPPORT PAYMENTS,SPORTING GOODS STORES,GPC
WALSALL COUNCIL,HTTP://OPENDATACOMMUNITIES.ORG/ID/METROPOLITAN-DISTRICT-COUNCIL/WALSALL,30/09/2019,CHILDRENS SERVICES,AMZNMKTPLACE AMAZON.CO.UK,04/07/2019,H59620190709GCRBOVCNK-1,27.99,VIRTUAL SCHOOL - CENTRAL PUPIL-OTHER EXPENSES-EXPENSES,MISCELLANEOUS AND SPECIALTY RETAIL STORES,GPC
WALSALL COUNCIL,HTTP://OPENDATACOMMUNITIES.ORG/ID/METROPOLITAN-DISTRICT-COUNCIL/WALSALL,30/09/2019,CHILDRENS SERVICES (SCHOOLS),WWW.POSTOFFICESHOP.CO.UK,04/07/2019,H59620190709GRNMKURQN-1,9.16,E19-STATIONERY & GENERAL SUPPLIES-OFFICE EXP,"STATIONERY, OFFICE SUPPLIES AND WRITING PAPER",GPC
WALSALL COUNCIL,HTTP://OPENDATACOMMUNITIES.ORG/ID/METROPOLITAN-DISTRICT-COUNCIL/WALSALL,30/09/2019,CHILDRENS SERVICES,AMAZON.CO.UK*M67816K84 AM,04/07/2019,H59620190709OPXBQTPLC-1,7.56,SIXTH FORM - YEAR 12-GENERAL MATERIALS,MISCELLANEOUS AND SPECIALTY RETAIL STORES,GPC
WALSALL COUNCIL,HTTP://OPENDATACOMMUNITIES.ORG/ID/METROPOLITAN-DISTRICT-COUNCIL/WALSALL,30/09/2019,CHILDRENS SERVICES,AMAZON.CO.UK*M67816K84 AM,04/07/2019,H59620190709OPXBQTPLC-2,9.43,SIXTH FORM - YEAR 12-GENERAL MATERIALS,MISCELLANEOUS AND SPECIALTY RETAIL STORES,GPC
WALSALL COUNCIL,HTTP://OPENDATACOMMUNITIES.ORG/ID/METROPOLITAN-DISTRICT-COUNCIL/WALSALL,30/09/2019,CHILDRENS SERVICES (SCHOOLS),WWW.POSTOFFICESHOP.CO.UK,04/07/2019,H59620190709RBSAYGYYB-1,92.52,E19-STATIONERY & GENERAL SUPPLIES-OFFICE EXP,"STATIONERY, OFFICE SUPPLIES AND WRITING PAPER",GPC
WALSALL COUNCIL,HTTP://OPENDATACOMMUNITIES.ORG/ID/METROPOLITAN-DISTRICT-COUNCIL/WALSALL,30/09/2019,ECONOMY & ENVIRONMENT,AMZNMKTPLACE AMAZON.CO.UK,04/07/2019,H59620190709SNBRWMYGS-1,7.99,BLOXWICH LEISURE CENTRE-GENERAL MATERIALS,MISCELLANEOUS AND SPECIALTY RETAIL STORES,GPC
WALSALL COUNCIL,HTTP://OPENDATACOMMUNITIES.ORG/ID/METROPOLITAN-DISTRICT-COUNCIL/WALSALL,30/09/2019,ECONOMY & ENVIRONMENT,AMZNMKTPLACE AMAZON.CO.UK,04/07/2019,H59620190709YQJXRRUMO-1,-12.92,BLOXWICH LEISURE CENTRE-STATIONERY & GENERAL SUPPLIES-OFFICE EXP,MISCELLANEOUS AND SPECIALTY RETAIL STORES,GPC
WALSALL COUNCIL,HTTP://OPENDATACOMMUNITIES.ORG/ID/METROPOLITAN-DISTRICT-COUNCIL/WALSALL,30/09/2019,RESOURCES & TRANSFORMATION,WWW.SCC.COM,04/07/2019,H59620190713LDWLVMBSK-1,2925.80,RECHARGEABLE EQUIPMENT-COMPUTER EQUIPMENT AND SUPPLIES,"COMPUTERS, COMPUTER PERIPHERAL EQUIPMENT, SOFTWARE",GPC
WALSALL COUNCIL,HTTP://OPENDATACOMMUNITIES.ORG/ID/METROPOLITAN-DISTRICT-COUNCIL/WALSALL,30/09/2019,RESOURCES & TRANSFORMATION,TESCO STORES 6161,05/07/2019,H59620190709APJDJFEDY-1,20.00,ACCOMMODATION SERVICES MANAGEM-FOOD & DRINK SUPPLIES,GROCERY STORES AND SUPERMARKETS,GPC
WALSALL COUNCIL,HTTP://OPENDATACOMMUNITIES.ORG/ID/METROPOLITAN-DISTRICT-COUNCIL/WALSALL,30/09/2019,RESOURCES & TRANSFORMATION,TESCO STORES 6161,05/07/2019,H59620190709APJDJFEDY-2,9.98,ACCOMMODATION SERVICES MANAGEM-FOOD & DRINK SUPPLIES,GROCERY STORES AND SUPERMARKETS,GPC
WALSALL COUNCIL,HTTP://OPENDATACOMMUNITIES.ORG/ID/METROPOLITAN-DISTRICT-COUNCIL/WALSALL,30/09/2019,RESOURCES & TRANSFORMATION,ADVANTAGE HOTELS(WALSA,05/07/2019,H59620190709BRTJQTOCC-1,85.20,ACCOMMODATION SERVICES MANAGEM-BED & BREAKFAST PAYMENTS,"HOTELS, MOTELS, RESORTS",GPC
WALSALL COUNCIL,HTTP://OPENDATACOMMUNITIES.ORG/ID/METROPOLITAN-DISTRICT-COUNCIL/WALSALL,30/09/2019,RESOURCES & TRANSFORMATION,AMAZON.CO.UK*M60ZY47I4,05/07/2019,H59620190709BUEDQXIEM-1,18.84,PRINTING SERVICES-GENERAL MATERIALS,OTHER DIRECT MARKETING-OTHER DIRECT MARKETERS,GPC
WALSALL COUNCIL,HTTP://OPENDATACOMMUNITIES.ORG/ID/METROPOLITAN-DISTRICT-COUNCIL/WALSALL,30/09/2019,ECONOMY & ENVIRONMENT,TROPICANA HEALTH & FIT,05/07/2019,H59620190709CDQLFHKPO-1,69.08,BLOXWICH LEISURE CENTRE-FOOD & DRINK SUPPLIES,MISCELLANEOUS FOOD STORES & CONVENIENCE STORES,GPC
WALSALL COUNCIL,HTTP://OPENDATACOMMUNITIES.ORG/ID/METROPOLITAN-DISTRICT-COUNCIL/WALSALL,30/09/2019,CHILDRENS SERVICES,AMAZON.CO.UK*M61JJ9KO4,05/07/2019,H59620190709CIXDYCRKI-1,21.60,BASIC STOCK-GENERAL MATERIALS,OTHER DIRECT MARKETING-OTHER DIRECT MARKETERS,GPC
WALSALL COUNCIL,HTTP://OPENDATACOMMUNITIES.ORG/ID/METROPOLITAN-DISTRICT-COUNCIL/WALSALL,30/09/2019,ECONOMY & ENVIRONMENT,SECURITY INDUSTRY,05/07/2019,H59620190709CWERPJWDB-1,165.00,YEI ESF FUNDING-PROFESSIONAL FEES AND SERVICES,"DETECTIVE AGENCIES, PROTECTIVE AGENCIES, SECURITY ",GPC
WALSALL COUNCIL,HTTP://OPENDATACOMMUNITIES.ORG/ID/METROPOLITAN-DISTRICT-COUNCIL/WALSALL,30/09/2019,ECONOMY & ENVIRONMENT,SECURITY INDUSTRY,05/07/2019,H59620190709CWERPJWDB-2,165.00,YEI (IMPACT) PROGRAMME-PROFESSIONAL FEES AND SERVICES,"DETECTIVE AGENCIES, PROTECTIVE AGENCIES, SECURITY ",GPC
WALSALL COUNCIL,HTTP://OPENDATACOMMUNITIES.ORG/ID/METROPOLITAN-DISTRICT-COUNCIL/WALSALL,30/09/2019,RESOURCES & TRANSFORMATION,AMAZON.CO.UK*M62Z12724,05/07/2019,H59620190709DSKUSXGJO-1,6.28,PRINTING SERVICES-GENERAL MATERIALS,OTHER DIRECT MARKETING-OTHER DIRECT MARKETERS,GPC
WALSALL COUNCIL,HTTP://OPENDATACOMMUNITIES.ORG/ID/METROPOLITAN-DISTRICT-COUNCIL/WALSALL,30/09/2019,CHILDRENS SERVICES,W M MORRISONS.COM,05/07/2019,H59620190709DXMOBIFLP-1,40.62,BLUEBELLS-FOOD & DRINK SUPPLIES,GROCERY STORES AND SUPERMARKETS,GPC
WALSALL COUNCIL,HTTP://OPENDATACOMMUNITIES.ORG/ID/METROPOLITAN-DISTRICT-COUNCIL/WALSALL,30/09/2019,CHILDRENS SERVICES,W M MORRISONS.COM,05/07/2019,H59620190709DXMOBIFLP-2,104.35,BLUEBELLS-FOOD & DRINK SUPPLIES,GROCERY STORES AND SUPERMARKETS,GPC
WALSALL COUNCIL,HTTP://OPENDATACOMMUNITIES.ORG/ID/METROPOLITAN-DISTRICT-COUNCIL/WALSALL,30/09/2019,RESOURCES & TRANSFORMATION,WILKO RETAIL LIMITED,05/07/2019,H59620190709ENYGQXAGD-1,63.65,WALSALL CRISIS SUPPORT SCHEME-CRISIS SUPPORT PAYMENTS,MISCELLANEOUS GENERAL MERCHANDISE,GPC
WALSALL COUNCIL,HTTP://OPENDATACOMMUNITIES.ORG/ID/METROPOLITAN-DISTRICT-COUNCIL/WALSALL,30/09/2019,RESOURCES & TRANSFORMATION,HOLIDAY INNS,05/07/2019,H59620190709FSUHFGGWK-1,758.00,ACCOMMODATION SERVICES MANAGEM-BED & BREAKFAST PAYMENTS,HOLIDAY INNS,GPC
WALSALL COUNCIL,HTTP://OPENDATACOMMUNITIES.ORG/ID/METROPOLITAN-DISTRICT-COUNCIL/WALSALL,30/09/2019,RESOURCES & TRANSFORMATION,ADVANTAGE HOTELS(WALSA,05/07/2019,H59620190709GJLMRXQUJ-1,-1.60,ACCOMMODATION SERVICES MANAGEM-BED & BREAKFAST PAYMENTS,"HOTELS, MOTELS, RESORTS",GPC
WALSALL COUNCIL,HTTP://OPENDATACOMMUNITIES.ORG/ID/METROPOLITAN-DISTRICT-COUNCIL/WALSALL,30/09/2019,CHILDRENS SERVICES,WWW.BANNERUK.COM,05/07/2019,H59620190709GYDVCDTET-1,-19.20,BIRCHILLS CHILDCARE SERVICES-STATIONERY & GENERAL SUPPLIES-OFFICE EXP,"STATIONERY, OFFICE SUPPLIES AND WRITING PAPER",GPC
WALSALL COUNCIL,HTTP://OPENDATACOMMUNITIES.ORG/ID/METROPOLITAN-DISTRICT-COUNCIL/WALSALL,30/09/2019,CHILDRENS SERVICES,TESCO STORES 6161,05/07/2019,H59620190709HLTNHWCTG-1,65.80,TRANSITION AND LEAVING CARE PL-FURNITURE & EQUIPMENT,GROCERY STORES AND SUPERMARKETS,GPC
WALSALL COUNCIL,HTTP://OPENDATACOMMUNITIES.ORG/ID/METROPOLITAN-DISTRICT-COUNCIL/WALSALL,30/09/2019,CHILDRENS SERVICES,TESCO STORES 6161,05/07/2019,H59620190709HQCJWODXJ-1,0.52,57 LICHFIELD ROAD-FOOD & DRINK SUPPLIES,GROCERY STORES AND SUPERMARKETS,GPC
WALSALL COUNCIL,HTTP://OPENDATACOMMUNITIES.ORG/ID/METROPOLITAN-DISTRICT-COUNCIL/WALSALL,30/09/2019,CHILDRENS SERVICES,TESCO STORES 6161,05/07/2019,H59620190709HQCJWODXJ-2,11.85,57 LICHFIELD ROAD-FOOD & DRINK SUPPLIES,GROCERY STORES AND SUPERMARKETS,GPC
WALSALL COUNCIL,HTTP://OPENDATACOMMUNITIES.ORG/ID/METROPOLITAN-DISTRICT-COUNCIL/WALSALL,30/09/2019,RESOURCES & TRANSFORMATION,TESCO STORES 6161,05/07/2019,H59620190709ILFTDCNXJ-1,30.00,WALSALL CRISIS SUPPORT SCHEME-FOOD & DRINK SUPPLIES,GROCERY STORES AND SUPERMARKETS,GPC
WALSALL COUNCIL,HTTP://OPENDATACOMMUNITIES.ORG/ID/METROPOLITAN-DISTRICT-COUNCIL/WALSALL,30/09/2019,CHILDRENS SERVICES,AMZNMKTPLACE,05/07/2019,H59620190709IWZZPBSRY-1,63.67,WEST LOCALITY - SCHOOL READY-EVENTS AND VISUAL ARTS,MISCELLANEOUS AND SPECIALTY RETAIL STORES,GPC
WALSALL COUNCIL,HTTP://OPENDATACOMMUNITIES.ORG/ID/METROPOLITAN-DISTRICT-COUNCIL/WALSALL,30/09/2019,CHILDRENS SERVICES (SCHOOLS),CUNNINHAM CASH REGISTE,05/07/2019,H59620190709JEWCVSRXR-1,60.00,CHUCKERY PRIMARY-FOOD & DRINK SUPPLIES,"COMPUTERS, COMPUTER PERIPHERAL EQUIPMENT, SOFTWARE",GPC
WALSALL COUNCIL,HTTP://OPENDATACOMMUNITIES.ORG/ID/METROPOLITAN-DISTRICT-COUNCIL/WALSALL,30/09/2019,CHILDRENS SERVICES (SCHOOLS),AMZNMKTPLACE,05/07/2019,H59620190709JGWGLCGQU-1,14.95,CHUCKERY PRIMARY-OPERATIONAL MAINTENANCE,MISCELLANEOUS AND SPECIALTY RETAIL STORES,GPC
WALSALL COUNCIL,HTTP://OPENDATACOMMUNITIES.ORG/ID/METROPOLITAN-DISTRICT-COUNCIL/WALSALL,30/09/2019,RESOURCES & TRANSFORMATION,ARTHUR BRETT CATER,05/07/2019,H59620190709JISUGWCRH-1,56.77,CA LEIGHSWOOD PRIMARY SCHOOL-FOOD & DRINK SUPPLIES,MISCELLANEOUS FOOD STORES & CONVENIENCE STORES,GPC
WALSALL COUNCIL,HTTP://OPENDATACOMMUNITIES.ORG/ID/METROPOLITAN-DISTRICT-COUNCIL/WALSALL,30/09/2019,CHILDRENS SERVICES,ESPO,05/07/2019,H59620190709JMUJKMLSV-1,63.17,BLUEBELLS-CLEANING MATERIALS,GOVERNMENT SERVICES,GPC
WALSALL COUNCIL,HTTP://OPENDATACOMMUNITIES.ORG/ID/METROPOLITAN-DISTRICT-COUNCIL/WALSALL,30/09/2019,ECONOMY & ENVIRONMENT,AMZNMKTPLACE AMAZON.CO.UK,05/07/2019,H59620190709LTWAYDDXI-1,16.99,NAG - FAMILY GALLERY-FURNITURE & EQUIPMENT,MISCELLANEOUS AND SPECIALTY RETAIL STORES,GPC
WALSALL COUNCIL,HTTP://OPENDATACOMMUNITIES.ORG/ID/METROPOLITAN-DISTRICT-COUNCIL/WALSALL,30/09/2019,CHILDRENS SERVICES,WEST MIDLAND CARD,05/07/2019,H59620190709LYLHBAXAN-1,3.00,TRANSITION AND LEAVING CARE PL-OFFICER/STAFF-PUBLIC TRANSPORT,BUS LINES,GPC
WALSALL COUNCIL,HTTP://OPENDATACOMMUNITIES.ORG/ID/METROPOLITAN-DISTRICT-COUNCIL/WALSALL,30/09/2019,CHILDRENS SERVICES,TRAVEL WEST MIDLAN,05/07/2019,H59620190709MMOROCGIX-1,40.00,TRANSITION AND LEAVING CARE PL-OTHER EXPENSES-EXPENSES,BUS LINES,GPC
WALSALL COUNCIL,HTTP://OPENDATACOMMUNITIES.ORG/ID/METROPOLITAN-DISTRICT-COUNCIL/WALSALL,30/09/2019,RESOURCES & TRANSFORMATION,ADVANTAGE HOTELS(WALSA,05/07/2019,H59620190709NOUYXEAIG-1,20.00,ACCOMMODATION SERVICES MANAGEM-BED & BREAKFAST PAYMENTS,"HOTELS, MOTELS, RESORTS",GPC
WALSALL COUNCIL,HTTP://OPENDATACOMMUNITIES.ORG/ID/METROPOLITAN-DISTRICT-COUNCIL/WALSALL,30/09/2019,ECONOMY & ENVIRONMENT,MIDLANDNEWS.COM,05/07/2019,H59620190709OGVAPVZJQ-1,210.60,DEVELOPMENT MANAGEMENT-PUBLICATIONS/ORGANISATIONS-SUBSCRIPTIONS,NEWS DEALERS AND NEWSSTANDS,GPC
WALSALL COUNCIL,HTTP://OPENDATACOMMUNITIES.ORG/ID/METROPOLITAN-DISTRICT-COUNCIL/WALSALL,30/09/2019,CHILDRENS SERVICES,WWW.ARGOS.CO.UK,05/07/2019,H59620190709OWMGODKKK-1,86.94,"43A HILTON ROAD, WILLENHALL-RESIDENTS PERSONAL EXPENSES-ALLOWANCES TO S/S CLIENTS",DISCOUNT STORES,GPC
WALSALL COUNCIL,HTTP://OPENDATACOMMUNITIES.ORG/ID/METROPOLITAN-DISTRICT-COUNCIL/WALSALL,30/09/2019,RESOURCES & TRANSFORMATION,TRAINLINE,05/07/2019,H59620190709OXFRYNBNP-1,38.10,INTEGRATED COMMUNITIES PROGRAM-OFFICER/STAFF-PUBLIC TRANSPORT,PASSENGER RAILWAYS,GPC
WALSALL COUNCIL,HTTP://OPENDATACOMMUNITIES.ORG/ID/METROPOLITAN-DISTRICT-COUNCIL/WALSALL,30/09/2019,RESOURCES & TRANSFORMATION,TRAVELODGE GB0000,05/07/2019,H59620190709OYBUSLFOW-1,129.00,BED & BREAKFAST PAYMENTS-BED & BREAKFAST PAYMENTS,TRAVELODGE,GPC
WALSALL COUNCIL,HTTP://OPENDATACOMMUNITIES.ORG/ID/METROPOLITAN-DISTRICT-COUNCIL/WALSALL,30/09/2019,RESOURCES & TRANSFORMATION,TESCO STORES 6161,05/07/2019,H59620190709PPDXKNPSJ-1,46.00,WALSALL CRISIS SUPPORT SCHEME-CRISIS SUPPORT PAYMENTS,GROCERY STORES AND SUPERMARKETS,GPC
WALSALL COUNCIL,HTTP://OPENDATACOMMUNITIES.ORG/ID/METROPOLITAN-DISTRICT-COUNCIL/WALSALL,30/09/2019,CHILDRENS SERVICES,TRAINLINE.COM,05/07/2019,H59620190709QBVCPHEDX-1,164.25,GENERAL MANAGEMENT SUPPORT (IN-OFFICER/STAFF-PUBLIC TRANSPORT,PASSENGER RAILWAYS,GPC
WALSALL COUNCIL,HTTP://OPENDATACOMMUNITIES.ORG/ID/METROPOLITAN-DISTRICT-COUNCIL/WALSALL,30/09/2019,CHILDRENS SERVICES,HM PASSPORT OFFICE,05/07/2019,H59620190709QJLJXCEOI-1,85.00,SUPPORT UNDER SECT 23 OF THE C-SUPPORT UNDER SECTION 23 OF THE CHILDRENS ACT,GOVERNMENT SERVICES,GPC
WALSALL COUNCIL,HTTP://OPENDATACOMMUNITIES.ORG/ID/METROPOLITAN-DISTRICT-COUNCIL/WALSALL,30/09/2019,RESOURCES & TRANSFORMATION,WM MORRISONS STORE,05/07/2019,H59620190709QKSHGXUPY-1,3.50,YOUNG PERSONS HOMELESS SERVICE-FOOD & DRINK SUPPLIES,GROCERY STORES AND SUPERMARKETS,GPC
WALSALL COUNCIL,HTTP://OPENDATACOMMUNITIES.ORG/ID/METROPOLITAN-DISTRICT-COUNCIL/WALSALL,30/09/2019,CHILDRENS SERVICES,AMAZON.CO.UK*M614T8KJ4,05/07/2019,H59620190709QQPPQFVUF-1,27.50,WALSALL WOOD PRIMARY SCHOOL-OPERATIONAL MAINTENANCE,OTHER DIRECT MARKETING-OTHER DIRECT MARKETERS,GPC
WALSALL COUNCIL,HTTP://OPENDATACOMMUNITIES.ORG/ID/METROPOLITAN-DISTRICT-COUNCIL/WALSALL,30/09/2019,ECONOMY & ENVIRONMENT,TESCO STORES 6161,05/07/2019,H59620190709QQXXDBWEX-1,16.05,YEI (IMPACT) PROGRAMME-PROFESSIONAL FEES AND SERVICES,GROCERY STORES AND SUPERMARKETS,GPC
WALSALL COUNCIL,HTTP://OPENDATACOMMUNITIES.ORG/ID/METROPOLITAN-DISTRICT-COUNCIL/WALSALL,30/09/2019,ECONOMY & ENVIRONMENT,TESCO STORES 6161,05/07/2019,H59620190709QQXXDBWEX-2,16.05,YEI ESF FUNDING-PROFESSIONAL FEES AND SERVICES,GROCERY STORES AND SUPERMARKETS,GPC
WALSALL COUNCIL,HTTP://OPENDATACOMMUNITIES.ORG/ID/METROPOLITAN-DISTRICT-COUNCIL/WALSALL,30/09/2019,CHILDRENS SERVICES,AMZNMKTPLACE,05/07/2019,H59620190709QRDEPIEIH-1,15.90,PSHE / SEAL-GENERAL MATERIALS,MISCELLANEOUS AND SPECIALTY RETAIL STORES,GPC
WALSALL COUNCIL,HTTP://OPENDATACOMMUNITIES.ORG/ID/METROPOLITAN-DISTRICT-COUNCIL/WALSALL,30/09/2019,ECONOMY & ENVIRONMENT,WWW.SERVOCHEM.UK.COM,05/07/2019,H59620190709RHXVRSSFQ-1,142.30,WALSALL GALA CENTRE-CLEANING MATERIALS,OTHER CHEMICALS AND ALLIED PRODUCTS,GPC
WALSALL COUNCIL,HTTP://OPENDATACOMMUNITIES.ORG/ID/METROPOLITAN-DISTRICT-COUNCIL/WALSALL,30/09/2019,ECONOMY & ENVIRONMENT,HEATON CHAPEL SST,05/07/2019,H59620190709RJNGWBBOL-1,5.10,NEW ART GALLERY - ADMIN-OFFICER/STAFF-PUBLIC TRANSPORT,PASSENGER RAILWAYS,GPC
WALSALL COUNCIL,HTTP://OPENDATACOMMUNITIES.ORG/ID/METROPOLITAN-DISTRICT-COUNCIL/WALSALL,30/09/2019,ECONOMY & ENVIRONMENT,VESTA VODAFONE,05/07/2019,H59620190709RZOOCDPFI-1,70.82,POLLUTION DIVISION-LANDLINE PHONES,TELECOMMUNICATION SERVICES,GPC
WALSALL COUNCIL,HTTP://OPENDATACOMMUNITIES.ORG/ID/METROPOLITAN-DISTRICT-COUNCIL/WALSALL,30/09/2019,CHILDRENS SERVICES,TRAINLINE.COM,05/07/2019,H59620190709SIPCTBFXG-1,102.21,DIRECTLY COMMISSIONED NURSING -OTHER-TRAVEL ALLOWANCES,PASSENGER RAILWAYS,GPC
WALSALL COUNCIL,HTTP://OPENDATACOMMUNITIES.ORG/ID/METROPOLITAN-DISTRICT-COUNCIL/WALSALL,30/09/2019,ECONOMY & ENVIRONMENT,TRAINLINE,05/07/2019,H59620190709SOFIVGZMX-1,192.80,STRATEGIC TRANSPORTATION-OFFICER/STAFF-PUBLIC TRANSPORT,PASSENGER RAILWAYS,GPC
WALSALL COUNCIL,HTTP://OPENDATACOMMUNITIES.ORG/ID/METROPOLITAN-DISTRICT-COUNCIL/WALSALL,30/09/2019,CHILDRENS SERVICES,WWW.TES.COM,05/07/2019,H59620190709SSWREYVUC-1,3.00,ADMINISTRATIVE SUPPLIES-GENERAL MATERIALS,"COLLEGES, UNIVERSITIES, PROFESSIONAL SCHOOLS",GPC
WALSALL COUNCIL,HTTP://OPENDATACOMMUNITIES.ORG/ID/METROPOLITAN-DISTRICT-COUNCIL/WALSALL,30/09/2019,RESOURCES & TRANSFORMATION,TRAVELODGE GB0000,05/07/2019,H59620190709SWSHQGUEY-1,344.75,BED & BREAKFAST PAYMENTS-BED & BREAKFAST PAYMENTS,TRAVELODGE,GPC
WALSALL COUNCIL,HTTP://OPENDATACOMMUNITIES.ORG/ID/METROPOLITAN-DISTRICT-COUNCIL/WALSALL,30/09/2019,CHILDRENS SERVICES,HOME BARGAINS,05/07/2019,H59620190709UAUTIVLGX-1,6.98,"43A HILTON ROAD, WILLENHALL-RESIDENTS PERSONAL EXPENSES-ALLOWANCES TO S/S CLIENTS",HARDWARE STORES,GPC
WALSALL COUNCIL,HTTP://OPENDATACOMMUNITIES.ORG/ID/METROPOLITAN-DISTRICT-COUNCIL/WALSALL,30/09/2019,RESOURCES & TRANSFORMATION,ARTHUR BRETT CATER,05/07/2019,H59620190709UGZRBUIRU-1,17.90,CA ALUMWELL INFANT SCHOOL-FOOD & DRINK SUPPLIES,MISCELLANEOUS FOOD STORES & CONVENIENCE STORES,GPC
WALSALL COUNCIL,HTTP://OPENDATACOMMUNITIES.ORG/ID/METROPOLITAN-DISTRICT-COUNCIL/WALSALL,30/09/2019,CHILDRENS SERVICES,WWW.ARGOS.CO.UK,05/07/2019,H59620190709UTJVOIHSB-1,18.94,"43A HILTON ROAD, WILLENHALL-RESIDENTS PERSONAL EXPENSES-ALLOWANCES TO S/S CLIENTS",DISCOUNT STORES,GPC
WALSALL COUNCIL,HTTP://OPENDATACOMMUNITIES.ORG/ID/METROPOLITAN-DISTRICT-COUNCIL/WALSALL,30/09/2019,CHILDRENS SERVICES,AMZNMKTPLACE,05/07/2019,H59620190709UYSKNDTMR-1,7.79,OUTDOOR EDUCATION-GENERAL MATERIALS,MISCELLANEOUS AND SPECIALTY RETAIL STORES,GPC
WALSALL COUNCIL,HTTP://OPENDATACOMMUNITIES.ORG/ID/METROPOLITAN-DISTRICT-COUNCIL/WALSALL,30/09/2019,RESOURCES & TRANSFORMATION,ARTHUR BRETT CATER,05/07/2019,H59620190709VDGYHXOSG-1,97.18,CA BUSILL JONES PRIMARY SCHOOL-FOOD & DRINK SUPPLIES,MISCELLANEOUS FOOD STORES & CONVENIENCE STORES,GPC
WALSALL COUNCIL,HTTP://OPENDATACOMMUNITIES.ORG/ID/METROPOLITAN-DISTRICT-COUNCIL/WALSALL,30/09/2019,RESOURCES & TRANSFORMATION,ARTHUR BRETT CATER,05/07/2019,H59620190709VMPJCKLBK-1,50.79,CA ST JOHNS C.E. PRIMARY SCHOO-FOOD & DRINK SUPPLIES,MISCELLANEOUS FOOD STORES & CONVENIENCE STORES,GPC
WALSALL COUNCIL,HTTP://OPENDATACOMMUNITIES.ORG/ID/METROPOLITAN-DISTRICT-COUNCIL/WALSALL,30/09/2019,RESOURCES & TRANSFORMATION,TESCO STORES 6161,05/07/2019,H59620190709XPGYMXIQL-1,20.00,ACCOMMODATION SERVICES MANAGEM-FOOD & DRINK SUPPLIES,GROCERY STORES AND SUPERMARKETS,GPC
WALSALL COUNCIL,HTTP://OPENDATACOMMUNITIES.ORG/ID/METROPOLITAN-DISTRICT-COUNCIL/WALSALL,30/09/2019,RESOURCES & TRANSFORMATION,TESCO STORES 6161,05/07/2019,H59620190709XPGYMXIQL-2,9.98,ACCOMMODATION SERVICES MANAGEM-FOOD & DRINK SUPPLIES,GROCERY STORES AND SUPERMARKETS,GPC
WALSALL COUNCIL,HTTP://OPENDATACOMMUNITIES.ORG/ID/METROPOLITAN-DISTRICT-COUNCIL/WALSALL,30/09/2019,ECONOMY & ENVIRONMENT,MACHINE MART LTD,05/07/2019,H59620190709XRWWPVBSE-1,22.78,INFRASTRUCTURE MAINTENANCE-GENERAL MATERIALS,HOUSEHOLD APPLIANCE STORES,GPC
WALSALL COUNCIL,HTTP://OPENDATACOMMUNITIES.ORG/ID/METROPOLITAN-DISTRICT-COUNCIL/WALSALL,30/09/2019,RESOURCES & TRANSFORMATION,TESCO STORES 6161,05/07/2019,H59620190709YBXBQDODN-1,188.70,WALSALL CRISIS SUPPORT SCHEME-CRISIS SUPPORT PAYMENTS,GROCERY STORES AND SUPERMARKETS,GPC
WALSALL COUNCIL,HTTP://OPENDATACOMMUNITIES.ORG/ID/METROPOLITAN-DISTRICT-COUNCIL/WALSALL,30/09/2019,CHILDRENS SERVICES,AMZNMKTPLACE AMAZON.CO.UK,05/07/2019,H59620190709YHVPTMHPA-1,16.99,OUTDOOR EDUCATION-GENERAL MATERIALS,MISCELLANEOUS AND SPECIALTY RETAIL STORES,GPC
WALSALL COUNCIL,HTTP://OPENDATACOMMUNITIES.ORG/ID/METROPOLITAN-DISTRICT-COUNCIL/WALSALL,30/09/2019,ECONOMY & ENVIRONMENT,AMZ*CLARIS,05/07/2019,H59620190709YNMGHHEED-1,-13.98,WALSALL ARENA AND ARTS CENTRE-STATIONERY & GENERAL SUPPLIES-OFFICE EXP,MISCELLANEOUS AND SPECIALTY RETAIL STORES,GPC
WALSALL COUNCIL,HTTP://OPENDATACOMMUNITIES.ORG/ID/METROPOLITAN-DISTRICT-COUNCIL/WALSALL,30/09/2019,CHILDRENS SERVICES (SCHOOLS),E J MCGANN /HARDWARE,05/07/2019,H59620190709ZHVYOBTUQ-1,34.99,CADMUS FEDERATION-GENERAL MATERIALS,HARDWARE STORES,GPC
WALSALL COUNCIL,HTTP://OPENDATACOMMUNITIES.ORG/ID/METROPOLITAN-DISTRICT-COUNCIL/WALSALL,30/09/2019,RESOURCES & TRANSFORMATION,WWW.SCC.COM,05/07/2019,H59620190711KATGBGFSA-1,153.96,RECHARGEABLE EQUIPMENT-COMPUTER EQUIPMENT AND SUPPLIES,"COMPUTERS, COMPUTER PERIPHERAL EQUIPMENT, SOFTWARE",GPC
WALSALL COUNCIL,HTTP://OPENDATACOMMUNITIES.ORG/ID/METROPOLITAN-DISTRICT-COUNCIL/WALSALL,30/09/2019,CHILDRENS SERVICES (SCHOOLS),123 REG R/T,06/07/2019,H59620190709DVGMOKZCX-1,11.99,ADMINISTRATIVE SUPPLIES-GENERAL MATERIALS,DIRECT MARKETING CONTINUITY SUBSCRIPTION MERCHANTS,GPC
WALSALL COUNCIL,HTTP://OPENDATACOMMUNITIES.ORG/ID/METROPOLITAN-DISTRICT-COUNCIL/WALSALL,30/09/2019,CHILDRENS SERVICES,HM PASSPORT OFFICE,06/07/2019,H59620190709FCGZWYRSL-1,85.00,LOOKED AFTER CHILDRENS SOCIAL -MISC FEES AND EXPENSES,GOVERNMENT SERVICES,GPC
WALSALL COUNCIL,HTTP://OPENDATACOMMUNITIES.ORG/ID/METROPOLITAN-DISTRICT-COUNCIL/WALSALL,30/09/2019,CHILDRENS SERVICES,HM PASSPORT OFFICE,06/07/2019,H59620190709FHLBVUDJX-1,58.50,LOOKED AFTER CHILDRENS SOCIAL -MISC FEES AND EXPENSES,GOVERNMENT SERVICES,GPC
WALSALL COUNCIL,HTTP://OPENDATACOMMUNITIES.ORG/ID/METROPOLITAN-DISTRICT-COUNCIL/WALSALL,30/09/2019,CHILDRENS SERVICES,THE POST OFFICE,06/07/2019,H59620190709GQTKHSRAF-1,4.96,ADMIN-POSTAGES AND COURIER SERVICES,POSTAL SERVICES - GOVERNMENT ONLY,GPC
WALSALL COUNCIL,HTTP://OPENDATACOMMUNITIES.ORG/ID/METROPOLITAN-DISTRICT-COUNCIL/WALSALL,30/09/2019,CHILDRENS SERVICES,E T DAVIES PROPERTY ACCOU,06/07/2019,H59620190709IOKFFVHAL-1,165.00,SAFEGUARDING & FAMILY SUPPORT-ACCOMMODATION AND RELATED COSTS-ASSISTANCE TO S/S CLIENTS,"HOTELS, MOTELS, RESORTS",GPC
WALSALL COUNCIL,HTTP://OPENDATACOMMUNITIES.ORG/ID/METROPOLITAN-DISTRICT-COUNCIL/WALSALL,30/09/2019,CHILDRENS SERVICES,HM PASSPORT OFFICE,06/07/2019,H59620190709LMMPRWHOV-1,58.50,LOOKED AFTER CHILDRENS SOCIAL -MISC FEES AND EXPENSES,GOVERNMENT SERVICES,GPC
WALSALL COUNCIL,HTTP://OPENDATACOMMUNITIES.ORG/ID/METROPOLITAN-DISTRICT-COUNCIL/WALSALL,30/09/2019,ECONOMY & ENVIRONMENT,FACEBK *C5XVHKJW82,06/07/2019,H59620190709PZWIXSWQH-1,1.84,WALSALL WORKS-PUBLICITY & ADVERTISING (NOT STAFF),ADVERTISING SERVICES,GPC
WALSALL COUNCIL,HTTP://OPENDATACOMMUNITIES.ORG/ID/METROPOLITAN-DISTRICT-COUNCIL/WALSALL,30/09/2019,ECONOMY & ENVIRONMENT,TESCO STORES 6161,06/07/2019,H59620190709SUZPJOCKM-1,1.94,LEATHER MUSEUM-FOOD & DRINK SUPPLIES,GROCERY STORES AND SUPERMARKETS,GPC
WALSALL COUNCIL,HTTP://OPENDATACOMMUNITIES.ORG/ID/METROPOLITAN-DISTRICT-COUNCIL/WALSALL,30/09/2019,CHILDRENS SERVICES,IKEA LTD 142 BIRMINGHAM M,06/07/2019,H59620190710HPKIQEQBF-1,6.00,REDRUTH ROAD-FURNITURE & EQUIPMENT,"EQUIPMENT, FURNITURE, AND HOME FURNISHINGS STORES ",GPC
WALSALL COUNCIL,HTTP://OPENDATACOMMUNITIES.ORG/ID/METROPOLITAN-DISTRICT-COUNCIL/WALSALL,30/09/2019,CHILDRENS SERVICES,WWW.THERANGE.CO.UK,07/07/2019,H59620190709CDSWUYDOK-1,20.85,LEARNING ENVIRONMENT-GENERAL MATERIALS,"EQUIPMENT, FURNITURE, AND HOME FURNISHINGS STORES ",GPC
WALSALL COUNCIL,HTTP://OPENDATACOMMUNITIES.ORG/ID/METROPOLITAN-DISTRICT-COUNCIL/WALSALL,30/09/2019,ECONOMY & ENVIRONMENT,AMAZON.CO.UK*M62HA89L4,07/07/2019,H59620190709CRYVRYTFB-1,14.99,WALSALL ARENA AND ARTS CENTRE-STATIONERY & GENERAL SUPPLIES-OFFICE EXP,OTHER DIRECT MARKETING-OTHER DIRECT MARKETERS,GPC
WALSALL COUNCIL,HTTP://OPENDATACOMMUNITIES.ORG/ID/METROPOLITAN-DISTRICT-COUNCIL/WALSALL,30/09/2019,CHILDRENS SERVICES,THE RANGE,07/07/2019,H59620190709LVMCTTFNL-1,35.40,LEARNING ENVIRONMENT-GENERAL MATERIALS,DEPARTMENT STORES,GPC
WALSALL COUNCIL,HTTP://OPENDATACOMMUNITIES.ORG/ID/METROPOLITAN-DISTRICT-COUNCIL/WALSALL,30/09/2019,CHILDRENS SERVICES,AMZNMKTPLACE,07/07/2019,H59620190709MDSWBZJHS-1,44.29,WEST LOCALITY - SCHOOL READY-EVENTS AND VISUAL ARTS,MISCELLANEOUS AND SPECIALTY RETAIL STORES,GPC
WALSALL COUNCIL,HTTP://OPENDATACOMMUNITIES.ORG/ID/METROPOLITAN-DISTRICT-COUNCIL/WALSALL,30/09/2019,CHILDRENS SERVICES,FARMFOODS- KINGSTA,07/07/2019,H59620190709RDSJHMPUB-1,28.00,REDRUTH ROAD-CLEANING MATERIALS,GROCERY STORES AND SUPERMARKETS,GPC
WALSALL COUNCIL,HTTP://OPENDATACOMMUNITIES.ORG/ID/METROPOLITAN-DISTRICT-COUNCIL/WALSALL,30/09/2019,CHILDRENS SERVICES,AMZNMKTPLACE,07/07/2019,H59620190709RYRGSOWQS-1,70.02,WEST LOCALITY - SCHOOL READY-EVENTS AND VISUAL ARTS,MISCELLANEOUS AND SPECIALTY RETAIL STORES,GPC
WALSALL COUNCIL,HTTP://OPENDATACOMMUNITIES.ORG/ID/METROPOLITAN-DISTRICT-COUNCIL/WALSALL,30/09/2019,CHILDRENS SERVICES (SCHOOLS),BUZZ CONNECT,07/07/2019,H59620190709SVUZSDVKU-1,12.96,ADMINISTRATIVE SUPPLIES-GENERAL MATERIALS,TELECOMMUNICATION SERVICES,GPC
WALSALL COUNCIL,HTTP://OPENDATACOMMUNITIES.ORG/ID/METROPOLITAN-DISTRICT-COUNCIL/WALSALL,30/09/2019,CHILDRENS SERVICES,AMAZON.CO.UK*M66CJ1KM4,07/07/2019,H59620190709TADVIDZJV-1,46.86,CONTACT SESSIONAL STAFF-GENERAL MATERIALS,OTHER DIRECT MARKETING-OTHER DIRECT MARKETERS,GPC
WALSALL COUNCIL,HTTP://OPENDATACOMMUNITIES.ORG/ID/METROPOLITAN-DISTRICT-COUNCIL/WALSALL,30/09/2019,CHILDRENS SERVICES,VALLEY CYCLES,07/07/2019,H59620190709VBGYZDRLC-1,7.50,REDRUTH ROAD-RESIDENTS PERSONAL EXPENSES-ALLOWANCES TO S/S CLIENTS,MISCELLANEOUS REPAIR SHOPS AND RELATED SERVICES,GPC
WALSALL COUNCIL,HTTP://OPENDATACOMMUNITIES.ORG/ID/METROPOLITAN-DISTRICT-COUNCIL/WALSALL,30/09/2019,CHILDRENS SERVICES,J D SPORTS,07/07/2019,H59620190709VSOJDNLUO-1,40.00,REDRUTH ROAD-RESIDENTS PERSONAL EXPENSES-ALLOWANCES TO S/S CLIENTS,SPORTING GOODS STORES,GPC
WALSALL COUNCIL,HTTP://OPENDATACOMMUNITIES.ORG/ID/METROPOLITAN-DISTRICT-COUNCIL/WALSALL,30/09/2019,CHILDRENS SERVICES,AMAZON.CO.UK*M63KZ19O4,07/07/2019,H59620190709WKTHBRLML-1,22.00,ADMINISTRATIVE SUPPLIES-GENERAL MATERIALS,OTHER DIRECT MARKETING-OTHER DIRECT MARKETERS,GPC
WALSALL COUNCIL,HTTP://OPENDATACOMMUNITIES.ORG/ID/METROPOLITAN-DISTRICT-COUNCIL/WALSALL,30/09/2019,CHILDRENS SERVICES,SPORTSDIRECT.COM,07/07/2019,H59620190709YPRVBEPDZ-1,76.48,REDRUTH ROAD-RESIDENTS PERSONAL EXPENSES-ALLOWANCES TO S/S CLIENTS,SPORTING GOODS STORES,GPC
WALSALL COUNCIL,HTTP://OPENDATACOMMUNITIES.ORG/ID/METROPOLITAN-DISTRICT-COUNCIL/WALSALL,30/09/2019,CHILDRENS SERVICES,SPORTSDIRECT.COM,07/07/2019,H59620190709ZQVVCLRMJ-1,77.98,REDRUTH ROAD-RESIDENTS PERSONAL EXPENSES-ALLOWANCES TO S/S CLIENTS,SPORTING GOODS STORES,GPC
WALSALL COUNCIL,HTTP://OPENDATACOMMUNITIES.ORG/ID/METROPOLITAN-DISTRICT-COUNCIL/WALSALL,30/09/2019,ECONOMY & ENVIRONMENT,AMZNMKTPLACE AMAZON.CO.UK,07/07/2019,H59620190710DBGERLGJX-1,26.98,NAG - TEMPORARY EXHIBITIONS-GENERAL MATERIALS,MISCELLANEOUS AND SPECIALTY RETAIL STORES,GPC
WALSALL COUNCIL,HTTP://OPENDATACOMMUNITIES.ORG/ID/METROPOLITAN-DISTRICT-COUNCIL/WALSALL,30/09/2019,RESOURCES & TRANSFORMATION,ARGOS RETAIL GROUP,08/07/2019,H59620190710AXKXTGILY-1,79.98,WALSALL CRISIS SUPPORT SCHEME-CRISIS SUPPORT PAYMENTS,DISCOUNT STORES,GPC
WALSALL COUNCIL,HTTP://OPENDATACOMMUNITIES.ORG/ID/METROPOLITAN-DISTRICT-COUNCIL/WALSALL,30/09/2019,CHILDRENS SERVICES,WM MORRISON FOOD.COM,08/07/2019,H59620190710BGERIMZEZ-1,28.92,BIRCHILLS CHILDCARE SERVICES-FOOD & DRINK SUPPLIES,GROCERY STORES AND SUPERMARKETS,GPC
WALSALL COUNCIL,HTTP://OPENDATACOMMUNITIES.ORG/ID/METROPOLITAN-DISTRICT-COUNCIL/WALSALL,30/09/2019,CHILDRENS SERVICES,WM MORRISON FOOD.COM,08/07/2019,H59620190710BGERIMZEZ-2,134.99,BIRCHILLS CHILDCARE SERVICES-FOOD & DRINK SUPPLIES,GROCERY STORES AND SUPERMARKETS,GPC
WALSALL COUNCIL,HTTP://OPENDATACOMMUNITIES.ORG/ID/METROPOLITAN-DISTRICT-COUNCIL/WALSALL,30/09/2019,CHILDRENS SERVICES,W M MORRISONS.COM,08/07/2019,H59620190710BWIKECHWO-1,26.16,REDRUTH ROAD-FOOD & DRINK SUPPLIES,GROCERY STORES AND SUPERMARKETS,GPC
WALSALL COUNCIL,HTTP://OPENDATACOMMUNITIES.ORG/ID/METROPOLITAN-DISTRICT-COUNCIL/WALSALL,30/09/2019,CHILDRENS SERVICES,W M MORRISONS.COM,08/07/2019,H59620190710BWIKECHWO-2,109.99,REDRUTH ROAD-FOOD & DRINK SUPPLIES,GROCERY STORES AND SUPERMARKETS,GPC
WALSALL COUNCIL,HTTP://OPENDATACOMMUNITIES.ORG/ID/METROPOLITAN-DISTRICT-COUNCIL/WALSALL,30/09/2019,RESOURCES & TRANSFORMATION,BLAKEMORE FOODSERVICE,08/07/2019,H59620190710CDDDOYWOV-1,93.74,CA ST JOHNS C.E. PRIMARY SCHOO-FOOD & DRINK SUPPLIES,CATERERS,GPC
WALSALL COUNCIL,HTTP://OPENDATACOMMUNITIES.ORG/ID/METROPOLITAN-DISTRICT-COUNCIL/WALSALL,30/09/2019,RESOURCES & TRANSFORMATION,BLAKEMORE FOODSERVICE,08/07/2019,H59620190710CDDDOYWOV-2,208.51,CA ST JOHNS C.E. PRIMARY SCHOO-FOOD & DRINK SUPPLIES,CATERERS,GPC
WALSALL COUNCIL,HTTP://OPENDATACOMMUNITIES.ORG/ID/METROPOLITAN-DISTRICT-COUNCIL/WALSALL,30/09/2019,CHILDRENS SERVICES,AMAZON.CO.UK*M66ZT0IK4,08/07/2019,H59620190710CLSVJIFLQ-1,53.97,FOUNDATION STAGE-GENERAL MATERIALS,OTHER DIRECT MARKETING-OTHER DIRECT MARKETERS,GPC
WALSALL COUNCIL,HTTP://OPENDATACOMMUNITIES.ORG/ID/METROPOLITAN-DISTRICT-COUNCIL/WALSALL,30/09/2019,CHILDRENS SERVICES,TESCO STORES 6161,08/07/2019,H59620190710CQIDWHSOK-1,14.99,57 LICHFIELD ROAD-FURNITURE & EQUIPMENT,GROCERY STORES AND SUPERMARKETS,GPC
WALSALL COUNCIL,HTTP://OPENDATACOMMUNITIES.ORG/ID/METROPOLITAN-DISTRICT-COUNCIL/WALSALL,30/09/2019,CHILDRENS SERVICES (SCHOOLS),ESSENTIALS FOR EDUCATION,08/07/2019,H59620190710CRVDILXUG-1,144.23,E19-GENERAL MATERIALS,"CARD, GIFT, NOVELTY, AND SOUVENIR SHOPS",GPC
WALSALL COUNCIL,HTTP://OPENDATACOMMUNITIES.ORG/ID/METROPOLITAN-DISTRICT-COUNCIL/WALSALL,30/09/2019,ECONOMY & ENVIRONMENT,ST JOHN AMBULANCE,08/07/2019,H59620190710CSYNTXSFR-1,-360.00,ENGINEERING MANAGEMENT-COMPUTER EQUIPMENT AND SUPPLIES,"ORGANIZATIONS, CHARITABLE AND SOCIAL SERVICE",GPC
WALSALL COUNCIL,HTTP://OPENDATACOMMUNITIES.ORG/ID/METROPOLITAN-DISTRICT-COUNCIL/WALSALL,30/09/2019,CHILDRENS SERVICES (SCHOOLS),BAKER ROSS,08/07/2019,H59620190710CUPUKPRIL-1,228.35,E19-GENERAL MATERIALS,"ARTIST SUPPLY STORES, CRAFT SHOPS",GPC
WALSALL COUNCIL,HTTP://OPENDATACOMMUNITIES.ORG/ID/METROPOLITAN-DISTRICT-COUNCIL/WALSALL,30/09/2019,RESOURCES & TRANSFORMATION,WILKO RETAIL LIMITED,08/07/2019,H59620190710DHTJPNABC-1,20.05,WALSALL CRISIS SUPPORT SCHEME-FURNITURE & EQUIPMENT,MISCELLANEOUS GENERAL MERCHANDISE,GPC
WALSALL COUNCIL,HTTP://OPENDATACOMMUNITIES.ORG/ID/METROPOLITAN-DISTRICT-COUNCIL/WALSALL,30/09/2019,ECONOMY & ENVIRONMENT,ST JOHN AMBULANCE,08/07/2019,H59620190710DIISHIPTS-1,360.00,ENGINEERING MANAGEMENT-COMPUTER EQUIPMENT AND SUPPLIES,"ORGANIZATIONS, CHARITABLE AND SOCIAL SERVICE",GPC
WALSALL COUNCIL,HTTP://OPENDATACOMMUNITIES.ORG/ID/METROPOLITAN-DISTRICT-COUNCIL/WALSALL,30/09/2019,RESOURCES & TRANSFORMATION,BLAKEMORE FOODSERVICE,08/07/2019,H59620190710DITIXSAMC-1,61.08,CA LINDENS PRIMARY SCHOOL-FOOD & DRINK SUPPLIES,CATERERS,GPC
WALSALL COUNCIL,HTTP://OPENDATACOMMUNITIES.ORG/ID/METROPOLITAN-DISTRICT-COUNCIL/WALSALL,30/09/2019,RESOURCES & TRANSFORMATION,BLAKEMORE FOODSERVICE,08/07/2019,H59620190710DITIXSAMC-2,101.20,CA LINDENS PRIMARY SCHOOL-FOOD & DRINK SUPPLIES,CATERERS,GPC
WALSALL COUNCIL,HTTP://OPENDATACOMMUNITIES.ORG/ID/METROPOLITAN-DISTRICT-COUNCIL/WALSALL,30/09/2019,RESOURCES & TRANSFORMATION,BLAKEMORE FOODSERVICE,08/07/2019,H59620190710EJMNNQVAB-1,143.17,CA CASTLEFORT JMI SCHOOL-FOOD & DRINK SUPPLIES,CATERERS,GPC
WALSALL COUNCIL,HTTP://OPENDATACOMMUNITIES.ORG/ID/METROPOLITAN-DISTRICT-COUNCIL/WALSALL,30/09/2019,CHILDRENS SERVICES,WM MORRISON FOOD.COM,08/07/2019,H59620190710ELSGZFOPO-1,56.39,PELSALL VILLAGE SCHOOL-FOOD & DRINK SUPPLIES,GROCERY STORES AND SUPERMARKETS,GPC
WALSALL COUNCIL,HTTP://OPENDATACOMMUNITIES.ORG/ID/METROPOLITAN-DISTRICT-COUNCIL/WALSALL,30/09/2019,CHILDRENS SERVICES,WM MORRISON FOOD.COM,08/07/2019,H59620190710ELSGZFOPO-2,8.10,PELSALL VILLAGE SCHOOL-FOOD & DRINK SUPPLIES,GROCERY STORES AND SUPERMARKETS,GPC
WALSALL COUNCIL,HTTP://OPENDATACOMMUNITIES.ORG/ID/METROPOLITAN-DISTRICT-COUNCIL/WALSALL,30/09/2019,RESOURCES & TRANSFORMATION,BLAKEMORE FOODSERVICE,08/07/2019,H59620190710EPRYRNOSQ-1,18.32,CA RUSHALL JMI SCHOOL-FOOD & DRINK SUPPLIES,CATERERS,GPC
WALSALL COUNCIL,HTTP://OPENDATACOMMUNITIES.ORG/ID/METROPOLITAN-DISTRICT-COUNCIL/WALSALL,30/09/2019,RESOURCES & TRANSFORMATION,BLAKEMORE FOODSERVICE,08/07/2019,H59620190710EPRYRNOSQ-2,190.37,CA RUSHALL JMI SCHOOL-FOOD & DRINK SUPPLIES,CATERERS,GPC
WALSALL COUNCIL,HTTP://OPENDATACOMMUNITIES.ORG/ID/METROPOLITAN-DISTRICT-COUNCIL/WALSALL,30/09/2019,CHILDRENS SERVICES (SCHOOLS),POST OFFICE COUNTER,08/07/2019,H59620190710ERVXEVSXH-1,4.07,ADMINISTRATIVE SUPPLIES-POSTAGES AND COURIER SERVICES,POSTAL SERVICES - GOVERNMENT ONLY,GPC
WALSALL COUNCIL,HTTP://OPENDATACOMMUNITIES.ORG/ID/METROPOLITAN-DISTRICT-COUNCIL/WALSALL,30/09/2019,RESOURCES & TRANSFORMATION,BLAKEMORE FOODSERVICE,08/07/2019,H59620190710FPHTNYEEQ-1,138.68,CA COOPER JORDAN CE PRIMARY SC-FOOD & DRINK SUPPLIES,CATERERS,GPC
WALSALL COUNCIL,HTTP://OPENDATACOMMUNITIES.ORG/ID/METROPOLITAN-DISTRICT-COUNCIL/WALSALL,30/09/2019,RESOURCES & TRANSFORMATION,BLAKEMORE FOODSERVICE,08/07/2019,H59620190710FPHTNYEEQ-2,48.86,CA COOPER JORDAN CE PRIMARY SC-FOOD & DRINK SUPPLIES,CATERERS,GPC
WALSALL COUNCIL,HTTP://OPENDATACOMMUNITIES.ORG/ID/METROPOLITAN-DISTRICT-COUNCIL/WALSALL,30/09/2019,RESOURCES & TRANSFORMATION,BLAKEMORE FOODSERVICE,08/07/2019,H59620190710GAFSEXGNL-1,91.62,CA LEIGHSWOOD PRIMARY SCHOOL-FOOD & DRINK SUPPLIES,CATERERS,GPC
WALSALL COUNCIL,HTTP://OPENDATACOMMUNITIES.ORG/ID/METROPOLITAN-DISTRICT-COUNCIL/WALSALL,30/09/2019,RESOURCES & TRANSFORMATION,BLAKEMORE FOODSERVICE,08/07/2019,H59620190710GAFSEXGNL-2,248.76,CA LEIGHSWOOD PRIMARY SCHOOL-FOOD & DRINK SUPPLIES,CATERERS,GPC
WALSALL COUNCIL,HTTP://OPENDATACOMMUNITIES.ORG/ID/METROPOLITAN-DISTRICT-COUNCIL/WALSALL,30/09/2019,RESOURCES & TRANSFORMATION,TRAINLINE,08/07/2019,H59620190710GTBVNIWKP-1,54.30,INTEGRATED COMMUNITIES PROGRAM-OFFICER/STAFF-PUBLIC TRANSPORT,PASSENGER RAILWAYS,GPC
WALSALL COUNCIL,HTTP://OPENDATACOMMUNITIES.ORG/ID/METROPOLITAN-DISTRICT-COUNCIL/WALSALL,30/09/2019,CHILDRENS SERVICES,TRAINLINE.COM,08/07/2019,H59620190710HEEOERPUG-1,53.90,GENERAL MANAGEMENT SUPPORT (IN-OFFICER/STAFF-PUBLIC TRANSPORT,PASSENGER RAILWAYS,GPC
WALSALL COUNCIL,HTTP://OPENDATACOMMUNITIES.ORG/ID/METROPOLITAN-DISTRICT-COUNCIL/WALSALL,30/09/2019,ECONOMY & ENVIRONMENT,MAX SPIELMANN LTD,08/07/2019,H59620190710HIOSKWTVM-1,5.00,YEI (IMPACT) PROGRAMME-EXTERNAL PRINTING SERVICES,PHOTOGRAPHIC STUDIOS,GPC
WALSALL COUNCIL,HTTP://OPENDATACOMMUNITIES.ORG/ID/METROPOLITAN-DISTRICT-COUNCIL/WALSALL,30/09/2019,ECONOMY & ENVIRONMENT,MAX SPIELMANN LTD,08/07/2019,H59620190710HIOSKWTVM-2,4.99,YEI ESF FUNDING-EXTERNAL PRINTING SERVICES,PHOTOGRAPHIC STUDIOS,GPC
WALSALL COUNCIL,HTTP://OPENDATACOMMUNITIES.ORG/ID/METROPOLITAN-DISTRICT-COUNCIL/WALSALL,30/09/2019,RESOURCES & TRANSFORMATION,BLAKEMORE FOODSERVICE,08/07/2019,H59620190710HKZEZTTOI-1,238.35,CA BARCROFT D/C-FOOD & DRINK SUPPLIES,CATERERS,GPC
WALSALL COUNCIL,HTTP://OPENDATACOMMUNITIES.ORG/ID/METROPOLITAN-DISTRICT-COUNCIL/WALSALL,30/09/2019,RESOURCES & TRANSFORMATION,BLAKEMORE FOODSERVICE,08/07/2019,H59620190710HKZEZTTOI-2,26.50,CA BARCROFT D/C-FOOD & DRINK SUPPLIES,CATERERS,GPC
WALSALL COUNCIL,HTTP://OPENDATACOMMUNITIES.ORG/ID/METROPOLITAN-DISTRICT-COUNCIL/WALSALL,30/09/2019,RESOURCES & TRANSFORMATION,BLAKEMORE FOODSERVICE,08/07/2019,H59620190710HOJTFRBOM-1,159.89,CA CROFT COMMUNITY PRIMARY SCH-FOOD & DRINK SUPPLIES,CATERERS,GPC
WALSALL COUNCIL,HTTP://OPENDATACOMMUNITIES.ORG/ID/METROPOLITAN-DISTRICT-COUNCIL/WALSALL,30/09/2019,RESOURCES & TRANSFORMATION,BLAKEMORE FOODSERVICE,08/07/2019,H59620190710HOJTFRBOM-2,17.66,CA CROFT COMMUNITY PRIMARY SCH-FOOD & DRINK SUPPLIES,CATERERS,GPC
WALSALL COUNCIL,HTTP://OPENDATACOMMUNITIES.ORG/ID/METROPOLITAN-DISTRICT-COUNCIL/WALSALL,30/09/2019,CHILDRENS SERVICES,BACKCARE SOLUTIONS LTD,08/07/2019,H59620190710HWDCXLVLW-1,1252.79,LOOKED AFTER CHILDRENS SOCIAL -GENERAL MATERIALS,DENTAL/LABORATORY/MEDICAL EQUIPMENT & SUPPLIES,GPC
WALSALL COUNCIL,HTTP://OPENDATACOMMUNITIES.ORG/ID/METROPOLITAN-DISTRICT-COUNCIL/WALSALL,30/09/2019,CHILDRENS SERVICES,CITY DIRECT,08/07/2019,H59620190710IKCNXNGME-1,40.00,GENERAL MANAGEMENT SUPPORT (IN-STATIONERY & GENERAL SUPPLIES-OFFICE EXP,OTHER SCHOOLS AND EDUCATIONAL SERVICES,GPC
WALSALL COUNCIL,HTTP://OPENDATACOMMUNITIES.ORG/ID/METROPOLITAN-DISTRICT-COUNCIL/WALSALL,30/09/2019,ECONOMY & ENVIRONMENT,WWW.HOBBYCRAFT.CO.UK,08/07/2019,H59620190710IXFVIGWJE-1,10.00,LEATHER MUSEUM-GENERAL MATERIALS,"ARTIST SUPPLY STORES, CRAFT SHOPS",GPC
WALSALL COUNCIL,HTTP://OPENDATACOMMUNITIES.ORG/ID/METROPOLITAN-DISTRICT-COUNCIL/WALSALL,30/09/2019,RESOURCES & TRANSFORMATION,TRAVELODGE WALSALL,08/07/2019,H59620190710IZSJNCBHN-1,260.00,ACCOMMODATION SERVICES MANAGEM-BED & BREAKFAST PAYMENTS,TRAVELODGE,GPC
WALSALL COUNCIL,HTTP://OPENDATACOMMUNITIES.ORG/ID/METROPOLITAN-DISTRICT-COUNCIL/WALSALL,30/09/2019,CHILDRENS SERVICES,G E COLLIS SONS,08/07/2019,H59620190710JMRSDJKIH-1,145.31,WATLING STREET PRIMARY SCHOOL-OPERATIONAL MAINTENANCE,LUMBER & BUILDING MATERIALS STORES,GPC
WALSALL COUNCIL,HTTP://OPENDATACOMMUNITIES.ORG/ID/METROPOLITAN-DISTRICT-COUNCIL/WALSALL,30/09/2019,RESOURCES & TRANSFORMATION,BLAKEMORE FOODSERVICE,08/07/2019,H59620190710JYOKLJEGY-1,162.92,CA RADLEYS PRIMARY SCHOOL-FOOD & DRINK SUPPLIES,CATERERS,GPC
WALSALL COUNCIL,HTTP://OPENDATACOMMUNITIES.ORG/ID/METROPOLITAN-DISTRICT-COUNCIL/WALSALL,30/09/2019,RESOURCES & TRANSFORMATION,METRO INNS WALSALL,08/07/2019,H59620190710KECQMAFVD-1,266.00,WALSALL CRISIS SUPPORT SCHEME-HOTEL ACCOMMODATION-EMPLOYEES,"HOTELS, MOTELS, RESORTS",GPC
WALSALL COUNCIL,HTTP://OPENDATACOMMUNITIES.ORG/ID/METROPOLITAN-DISTRICT-COUNCIL/WALSALL,30/09/2019,CHILDRENS SERVICES,W M MORRISONS.COM,08/07/2019,H59620190710KLZPCNUFD-1,58.86,57 LICHFIELD ROAD-FOOD & DRINK SUPPLIES,GROCERY STORES AND SUPERMARKETS,GPC
WALSALL COUNCIL,HTTP://OPENDATACOMMUNITIES.ORG/ID/METROPOLITAN-DISTRICT-COUNCIL/WALSALL,30/09/2019,CHILDRENS SERVICES,W M MORRISONS.COM,08/07/2019,H59620190710KLZPCNUFD-2,34.83,57 LICHFIELD ROAD-FOOD & DRINK SUPPLIES,GROCERY STORES AND SUPERMARKETS,GPC
WALSALL COUNCIL,HTTP://OPENDATACOMMUNITIES.ORG/ID/METROPOLITAN-DISTRICT-COUNCIL/WALSALL,30/09/2019,RESOURCES & TRANSFORMATION,BLAKEMORE FOODSERVICE,08/07/2019,H59620190710KQBSKDSQX-1,267.22,CA ST JOHNS C.E. PRIMARY SCHOO-FOOD & DRINK SUPPLIES,CATERERS,GPC
WALSALL COUNCIL,HTTP://OPENDATACOMMUNITIES.ORG/ID/METROPOLITAN-DISTRICT-COUNCIL/WALSALL,30/09/2019,RESOURCES & TRANSFORMATION,BLAKEMORE FOODSERVICE,08/07/2019,H59620190710KUTQTZLGF-1,73.30,CA ST MICHAELS C.E. PRIMARY SC-FOOD & DRINK SUPPLIES,CATERERS,GPC
WALSALL COUNCIL,HTTP://OPENDATACOMMUNITIES.ORG/ID/METROPOLITAN-DISTRICT-COUNCIL/WALSALL,30/09/2019,RESOURCES & TRANSFORMATION,BLAKEMORE FOODSERVICE,08/07/2019,H59620190710KUTQTZLGF-2,118.03,CA ST MICHAELS C.E. PRIMARY SC-FOOD & DRINK SUPPLIES,CATERERS,GPC
WALSALL COUNCIL,HTTP://OPENDATACOMMUNITIES.ORG/ID/METROPOLITAN-DISTRICT-COUNCIL/WALSALL,30/09/2019,ECONOMY & ENVIRONMENT,AMZNMKTPLACE,08/07/2019,H59620190710KZXYWKIGY-1,35.24,LLPG ICT PROJECT COSTS-STATIONERY & GENERAL SUPPLIES-OFFICE EXP,MISCELLANEOUS AND SPECIALTY RETAIL STORES,GPC
WALSALL COUNCIL,HTTP://OPENDATACOMMUNITIES.ORG/ID/METROPOLITAN-DISTRICT-COUNCIL/WALSALL,30/09/2019,ECONOMY & ENVIRONMENT,L & S ENGINEERS LTD,08/07/2019,H59620190710LGRAMTGXI-1,4.44,INFRASTRUCTURE MAINTENANCE-GENERAL MATERIALS,HARDWARE STORES,GPC
WALSALL COUNCIL,HTTP://OPENDATACOMMUNITIES.ORG/ID/METROPOLITAN-DISTRICT-COUNCIL/WALSALL,30/09/2019,ECONOMY & ENVIRONMENT,TOOLSTATION LTD,08/07/2019,H59620190710MIRTNCQWX-1,99.25,NAG - MAINTENANCE-FURNITURE & EQUIPMENT,HARDWARE STORES,GPC
WALSALL COUNCIL,HTTP://OPENDATACOMMUNITIES.ORG/ID/METROPOLITAN-DISTRICT-COUNCIL/WALSALL,30/09/2019,CHILDRENS SERVICES,AMZNMKTPLACE,08/07/2019,H59620190710MJIVVGHYW-1,7.29,FOUNDATION STAGE-GENERAL MATERIALS,MISCELLANEOUS AND SPECIALTY RETAIL STORES,GPC
WALSALL COUNCIL,HTTP://OPENDATACOMMUNITIES.ORG/ID/METROPOLITAN-DISTRICT-COUNCIL/WALSALL,30/09/2019,RESOURCES & TRANSFORMATION,TRAVELODGE GB0000,08/07/2019,H59620190710MJYHKSOYD-1,73.50,BED & BREAKFAST PAYMENTS-HOTEL ACCOMMODATION-EMPLOYEES,TRAVELODGE,GPC
WALSALL COUNCIL,HTTP://OPENDATACOMMUNITIES.ORG/ID/METROPOLITAN-DISTRICT-COUNCIL/WALSALL,30/09/2019,RESOURCES & TRANSFORMATION,TRAVELODGE GB0000,08/07/2019,H59620190710MJYHKSOYD-2,383.00,BED & BREAKFAST PAYMENTS-HOTEL ACCOMMODATION-EMPLOYEES,TRAVELODGE,GPC
WALSALL COUNCIL,HTTP://OPENDATACOMMUNITIES.ORG/ID/METROPOLITAN-DISTRICT-COUNCIL/WALSALL,30/09/2019,RESOURCES & TRANSFORMATION,BLAKEMORE FOODSERVICE,08/07/2019,H59620190710MLETTDCTF-1,193.87,CA KINGSHILL SCHOOL-FOOD & DRINK SUPPLIES,CATERERS,GPC
WALSALL COUNCIL,HTTP://OPENDATACOMMUNITIES.ORG/ID/METROPOLITAN-DISTRICT-COUNCIL/WALSALL,30/09/2019,RESOURCES & TRANSFORMATION,MONTROSE GLASS,08/07/2019,H59620190710MOAKNOCSE-1,474.00,CENTRALISED MAINTENANCE-OPERATIONAL MAINTENANCE,SPECIAL TRADE CONTRACTORS,GPC
WALSALL COUNCIL,HTTP://OPENDATACOMMUNITIES.ORG/ID/METROPOLITAN-DISTRICT-COUNCIL/WALSALL,30/09/2019,RESOURCES & TRANSFORMATION,NOBISCO LIMITED,08/07/2019,H59620190710MRRNIWJOB-1,40.82,CA MOORCROFT WOOD-FURNITURE & EQUIPMENT,OTHER INDUSTRIAL SUPPLIES,GPC
WALSALL COUNCIL,HTTP://OPENDATACOMMUNITIES.ORG/ID/METROPOLITAN-DISTRICT-COUNCIL/WALSALL,30/09/2019,CHILDRENS SERVICES,AMAZON.CO.UK*M65991IX4,08/07/2019,H59620190710MWDWIUBAV-1,53.97,FOUNDATION STAGE-GENERAL MATERIALS,OTHER DIRECT MARKETING-OTHER DIRECT MARKETERS,GPC
WALSALL COUNCIL,HTTP://OPENDATACOMMUNITIES.ORG/ID/METROPOLITAN-DISTRICT-COUNCIL/WALSALL,30/09/2019,CHILDRENS SERVICES,AMZN MKTP UK*M60254UR4,08/07/2019,H59620190710MZQKDFNVG-1,29.16,FOUNDATION STAGE-GENERAL MATERIALS,BOOK STORES,GPC
WALSALL COUNCIL,HTTP://OPENDATACOMMUNITIES.ORG/ID/METROPOLITAN-DISTRICT-COUNCIL/WALSALL,30/09/2019,RESOURCES & TRANSFORMATION,WWW.WMCA.ORG.UK,08/07/2019,H59620190710NLMNQBOVW-1,40.00,LAW LIBRARY-EXTERNAL BARRISTERS-SERVICES-FEES,LOCAL AND SUBURBAN COMMUTER TRANSPORTATION,GPC
WALSALL COUNCIL,HTTP://OPENDATACOMMUNITIES.ORG/ID/METROPOLITAN-DISTRICT-COUNCIL/WALSALL,30/09/2019,RESOURCES & TRANSFORMATION,PAYPAL *TRAINING,08/07/2019,H59620190710OFDYCNYIG-1,52.74,LEARNING & MANAGEMENT DEVELOPM-GENERAL MATERIALS,"GAME, TOY, AND HOBBY SHOPS",GPC
WALSALL COUNCIL,HTTP://OPENDATACOMMUNITIES.ORG/ID/METROPOLITAN-DISTRICT-COUNCIL/WALSALL,30/09/2019,RESOURCES & TRANSFORMATION,BLAKEMORE FOODSERVICE,08/07/2019,H59620190710OIFBWVDIS-1,369.25,CA MEADOW VIEW JMI PRIMARY SCH-FOOD & DRINK SUPPLIES,CATERERS,GPC
WALSALL COUNCIL,HTTP://OPENDATACOMMUNITIES.ORG/ID/METROPOLITAN-DISTRICT-COUNCIL/WALSALL,30/09/2019,RESOURCES & TRANSFORMATION,BLAKEMORE FOODSERVICE,08/07/2019,H59620190710OLEDKDWVT-1,-22.15,CA RUSHALL JMI SCHOOL-FOOD & DRINK SUPPLIES,CATERERS,GPC
WALSALL COUNCIL,HTTP://OPENDATACOMMUNITIES.ORG/ID/METROPOLITAN-DISTRICT-COUNCIL/WALSALL,30/09/2019,RESOURCES & TRANSFORMATION,ERG FACILITIES LIM,08/07/2019,H59620190710ORBLGUIDB-1,150.00,ACCOMMODATION SERVICES MANAGEM-OPERATIONAL MAINTENANCE,"AIR CONDITIONING, HEATING, PLUMBING CONTRACTORS",GPC
WALSALL COUNCIL,HTTP://OPENDATACOMMUNITIES.ORG/ID/METROPOLITAN-DISTRICT-COUNCIL/WALSALL,30/09/2019,RESOURCES & TRANSFORMATION,BLAKEMORE FOODSERVICE,08/07/2019,H59620190710OSGOKZYQQ-1,73.30,CA WATLING STREET PRIMARY SCHO-FOOD & DRINK SUPPLIES,CATERERS,GPC
WALSALL COUNCIL,HTTP://OPENDATACOMMUNITIES.ORG/ID/METROPOLITAN-DISTRICT-COUNCIL/WALSALL,30/09/2019,RESOURCES & TRANSFORMATION,BLAKEMORE FOODSERVICE,08/07/2019,H59620190710OSGOKZYQQ-2,257.76,CA WATLING STREET PRIMARY SCHO-FOOD & DRINK SUPPLIES,CATERERS,GPC
WALSALL COUNCIL,HTTP://OPENDATACOMMUNITIES.ORG/ID/METROPOLITAN-DISTRICT-COUNCIL/WALSALL,30/09/2019,CHILDRENS SERVICES,AMZNMKTPLACE AMAZON.CO.UK,08/07/2019,H59620190710OSQYDHQVB-1,22.27,LEARNING ENVIRONMENT-GENERAL MATERIALS,MISCELLANEOUS AND SPECIALTY RETAIL STORES,GPC
WALSALL COUNCIL,HTTP://OPENDATACOMMUNITIES.ORG/ID/METROPOLITAN-DISTRICT-COUNCIL/WALSALL,30/09/2019,CHILDRENS SERVICES,BAKER ROSS,08/07/2019,H59620190710OSSMYEUGD-1,201.53,EARLY HELP HUB-EVENTS AND VISUAL ARTS,"ARTIST SUPPLY STORES, CRAFT SHOPS",GPC
WALSALL COUNCIL,HTTP://OPENDATACOMMUNITIES.ORG/ID/METROPOLITAN-DISTRICT-COUNCIL/WALSALL,30/09/2019,ECONOMY & ENVIRONMENT,HOLE IN THE WALL C,08/07/2019,H59620190710PBTMFCMCU-1,7.98,LEATHER MUSEUM-GENERAL MATERIALS,"FURNITURE-REUPHOLSTERY AND REPAIR, REFINISHING",GPC
WALSALL COUNCIL,HTTP://OPENDATACOMMUNITIES.ORG/ID/METROPOLITAN-DISTRICT-COUNCIL/WALSALL,30/09/2019,CHILDRENS SERVICES,HM PASSPORT OFFICE,08/07/2019,H59620190710PDSIDPTQZ-1,58.50,SUPPORT UNDER SECT 23 OF THE C-SUPPORT UNDER SECTION 23 OF THE CHILDRENS ACT,GOVERNMENT SERVICES,GPC
WALSALL COUNCIL,HTTP://OPENDATACOMMUNITIES.ORG/ID/METROPOLITAN-DISTRICT-COUNCIL/WALSALL,30/09/2019,ECONOMY & ENVIRONMENT,IMMEDIATE MEDIA CO,08/07/2019,H59620190710QJVVKIHDD-1,234.00,NAG - DIGITAL MEDIA/IT-PUBLICITY & ADVERTISING (NOT STAFF),"BOOKS, PERIODICALS AND NEWSPAPERS",GPC
WALSALL COUNCIL,HTTP://OPENDATACOMMUNITIES.ORG/ID/METROPOLITAN-DISTRICT-COUNCIL/WALSALL,30/09/2019,ECONOMY & ENVIRONMENT,TOOLSTATION LTD,08/07/2019,H59620190710QOSRVMDEP-1,84.78,NAG - MAINTENANCE-FURNITURE & EQUIPMENT,HARDWARE STORES,GPC
WALSALL COUNCIL,HTTP://OPENDATACOMMUNITIES.ORG/ID/METROPOLITAN-DISTRICT-COUNCIL/WALSALL,30/09/2019,ECONOMY & ENVIRONMENT,TOOLSTATION LTD,08/07/2019,H59620190710QOSRVMDEP-2,27.42,NAG - FAMILY GALLERY-GENERAL MATERIALS,HARDWARE STORES,GPC
WALSALL COUNCIL,HTTP://OPENDATACOMMUNITIES.ORG/ID/METROPOLITAN-DISTRICT-COUNCIL/WALSALL,30/09/2019,RESOURCES & TRANSFORMATION,BLAKEMORE FOODSERVICE,08/07/2019,H59620190710QPJTNMYQT-1,292.15,CA BEACON PRIMARY SCHOOL-FOOD & DRINK SUPPLIES,CATERERS,GPC
WALSALL COUNCIL,HTTP://OPENDATACOMMUNITIES.ORG/ID/METROPOLITAN-DISTRICT-COUNCIL/WALSALL,30/09/2019,RESOURCES & TRANSFORMATION,TRAVELODGE WALSALL,08/07/2019,H59620190710QYDWIEPGH-1,282.50,ACCOMMODATION SERVICES MANAGEM-BED & BREAKFAST PAYMENTS,TRAVELODGE,GPC
WALSALL COUNCIL,HTTP://OPENDATACOMMUNITIES.ORG/ID/METROPOLITAN-DISTRICT-COUNCIL/WALSALL,30/09/2019,RESOURCES & TRANSFORMATION,BLAKEMORE FOODSERVICE,08/07/2019,H59620190710RBSBFGEYJ-1,179.06,CA BROWNHILLS WEST PRIMARY SCH-FOOD & DRINK SUPPLIES,CATERERS,GPC
WALSALL COUNCIL,HTTP://OPENDATACOMMUNITIES.ORG/ID/METROPOLITAN-DISTRICT-COUNCIL/WALSALL,30/09/2019,RESOURCES & TRANSFORMATION,BLAKEMORE FOODSERVICE,08/07/2019,H59620190710RBSBFGEYJ-2,122.16,CA BROWNHILLS WEST PRIMARY SCH-FOOD & DRINK SUPPLIES,CATERERS,GPC
WALSALL COUNCIL,HTTP://OPENDATACOMMUNITIES.ORG/ID/METROPOLITAN-DISTRICT-COUNCIL/WALSALL,30/09/2019,RESOURCES & TRANSFORMATION,NOBISCO LIMITED,08/07/2019,H59620190710RBTVNBINH-1,24.30,CA ELMWOOD SPECIAL SCHOOL-FOOD & DRINK SUPPLIES,OTHER INDUSTRIAL SUPPLIES,GPC
WALSALL COUNCIL,HTTP://OPENDATACOMMUNITIES.ORG/ID/METROPOLITAN-DISTRICT-COUNCIL/WALSALL,30/09/2019,RESOURCES & TRANSFORMATION,BLAKEMORE FOODSERVICE,08/07/2019,H59620190710RKQVKCSBZ-1,101.69,CA ST GILES C.E. PRIMARY SCHOO-FOOD & DRINK SUPPLIES,CATERERS,GPC
WALSALL COUNCIL,HTTP://OPENDATACOMMUNITIES.ORG/ID/METROPOLITAN-DISTRICT-COUNCIL/WALSALL,30/09/2019,RESOURCES & TRANSFORMATION,BLAKEMORE FOODSERVICE,08/07/2019,H59620190710RLWTFOTEB-1,11.78,CA ST MICHAELS C.E. PRIMARY SC-FOOD & DRINK SUPPLIES,CATERERS,GPC
WALSALL COUNCIL,HTTP://OPENDATACOMMUNITIES.ORG/ID/METROPOLITAN-DISTRICT-COUNCIL/WALSALL,30/09/2019,CHILDRENS SERVICES,WWW.STUART-BATHURST.OR,08/07/2019,H59620190710SNJDRVDAH-1,15.00,"43A HILTON ROAD, WILLENHALL-RESIDENTS PERSONAL EXPENSES-ALLOWANCES TO S/S CLIENTS","SCHOOLS, ELEMENTARY AND SECONDARY",GPC
WALSALL COUNCIL,HTTP://OPENDATACOMMUNITIES.ORG/ID/METROPOLITAN-DISTRICT-COUNCIL/WALSALL,30/09/2019,RESOURCES & TRANSFORMATION,WALSALL STN T/O,08/07/2019,H59620190710SOVNADQPU-1,18.45,WALSALL CRISIS SUPPORT SCHEME-OFFICER/STAFF-PUBLIC TRANSPORT,PASSENGER RAILWAYS,GPC
WALSALL COUNCIL,HTTP://OPENDATACOMMUNITIES.ORG/ID/METROPOLITAN-DISTRICT-COUNCIL/WALSALL,30/09/2019,CHILDRENS SERVICES,AMZNMKTPLACE,08/07/2019,H59620190710SXCNLVODY-1,11.46,FOUNDATION STAGE-GENERAL MATERIALS,MISCELLANEOUS AND SPECIALTY RETAIL STORES,GPC
WALSALL COUNCIL,HTTP://OPENDATACOMMUNITIES.ORG/ID/METROPOLITAN-DISTRICT-COUNCIL/WALSALL,30/09/2019,RESOURCES & TRANSFORMATION,BLAKEMORE FOODSERVICE,08/07/2019,H59620190710TFKKZMJTK-1,17.66,CA MOORCROFT WOOD-FOOD & DRINK SUPPLIES,CATERERS,GPC
WALSALL COUNCIL,HTTP://OPENDATACOMMUNITIES.ORG/ID/METROPOLITAN-DISTRICT-COUNCIL/WALSALL,30/09/2019,RESOURCES & TRANSFORMATION,BLAKEMORE FOODSERVICE,08/07/2019,H59620190710TFKKZMJTK-2,103.09,CA MOORCROFT WOOD-FOOD & DRINK SUPPLIES,CATERERS,GPC
WALSALL COUNCIL,HTTP://OPENDATACOMMUNITIES.ORG/ID/METROPOLITAN-DISTRICT-COUNCIL/WALSALL,30/09/2019,RESOURCES & TRANSFORMATION,NOBISCO LIMITED,08/07/2019,H59620190710TKNPQKBWJ-1,63.71,CA MEADOW VIEW JMI PRIMARY SCH-FURNITURE & EQUIPMENT,OTHER INDUSTRIAL SUPPLIES,GPC
WALSALL COUNCIL,HTTP://OPENDATACOMMUNITIES.ORG/ID/METROPOLITAN-DISTRICT-COUNCIL/WALSALL,30/09/2019,CHILDRENS SERVICES (SCHOOLS),WM MORRISONS STORE,08/07/2019,H59620190710URPXJTEDY-1,37.13,CHUCKERY PRIMARY-FOOD & DRINK SUPPLIES,GROCERY STORES AND SUPERMARKETS,GPC
WALSALL COUNCIL,HTTP://OPENDATACOMMUNITIES.ORG/ID/METROPOLITAN-DISTRICT-COUNCIL/WALSALL,30/09/2019,CHILDRENS SERVICES (SCHOOLS),WM MORRISONS STORE,08/07/2019,H59620190710URPXJTEDY-2,2.15,CHUCKERY PRIMARY-FOOD & DRINK SUPPLIES,GROCERY STORES AND SUPERMARKETS,GPC
WALSALL COUNCIL,HTTP://OPENDATACOMMUNITIES.ORG/ID/METROPOLITAN-DISTRICT-COUNCIL/WALSALL,30/09/2019,RESOURCES & TRANSFORMATION,BLAKEMORE FOODSERVICE,08/07/2019,H59620190710VPKGWFMEU-1,42.76,CA RADLEYS PRIMARY SCHOOL-FOOD & DRINK SUPPLIES,CATERERS,GPC
WALSALL COUNCIL,HTTP://OPENDATACOMMUNITIES.ORG/ID/METROPOLITAN-DISTRICT-COUNCIL/WALSALL,30/09/2019,RESOURCES & TRANSFORMATION,BLAKEMORE FOODSERVICE,08/07/2019,H59620190710VPKGWFMEU-2,277.84,CA RADLEYS PRIMARY SCHOOL-FOOD & DRINK SUPPLIES,CATERERS,GPC
WALSALL COUNCIL,HTTP://OPENDATACOMMUNITIES.ORG/ID/METROPOLITAN-DISTRICT-COUNCIL/WALSALL,30/09/2019,CHILDRENS SERVICES,AMZNMKTPLACE AMAZON.CO.UK,08/07/2019,H59620190710VUEEPNUUQ-1,19.99,FOUNDATION STAGE-GENERAL MATERIALS,MISCELLANEOUS AND SPECIALTY RETAIL STORES,GPC
WALSALL COUNCIL,HTTP://OPENDATACOMMUNITIES.ORG/ID/METROPOLITAN-DISTRICT-COUNCIL/WALSALL,30/09/2019,CHILDRENS SERVICES,TESCO STORES 6161,08/07/2019,H59620190710WCSDOYYWE-1,5.60,FOOD TECHNOLOGY/HOSPITALITY-GENERAL MATERIALS,GROCERY STORES AND SUPERMARKETS,GPC
WALSALL COUNCIL,HTTP://OPENDATACOMMUNITIES.ORG/ID/METROPOLITAN-DISTRICT-COUNCIL/WALSALL,30/09/2019,CHILDRENS SERVICES,TESCO STORES 6161,08/07/2019,H59620190710WCSDOYYWE-2,30.64,FOOD TECHNOLOGY/HOSPITALITY-GENERAL MATERIALS,GROCERY STORES AND SUPERMARKETS,GPC
WALSALL COUNCIL,HTTP://OPENDATACOMMUNITIES.ORG/ID/METROPOLITAN-DISTRICT-COUNCIL/WALSALL,30/09/2019,CHILDRENS SERVICES,AMZNMKTPLACE,08/07/2019,H59620190710WEYTXTGJJ-1,42.81,FOUNDATION STAGE-GENERAL MATERIALS,MISCELLANEOUS AND SPECIALTY RETAIL STORES,GPC
WALSALL COUNCIL,HTTP://OPENDATACOMMUNITIES.ORG/ID/METROPOLITAN-DISTRICT-COUNCIL/WALSALL,30/09/2019,CHILDRENS SERVICES,WM MORRISONS STORE,08/07/2019,H59620190710WHAKPVIZL-1,9.15,LOOKED AFTER CHILDRENS SOCIAL -FOOD & DRINK SUPPLIES,GROCERY STORES AND SUPERMARKETS,GPC
WALSALL COUNCIL,HTTP://OPENDATACOMMUNITIES.ORG/ID/METROPOLITAN-DISTRICT-COUNCIL/WALSALL,30/09/2019,RESOURCES & TRANSFORMATION,BLAKEMORE FOODSERVICE,08/07/2019,H59620190710WHDRFGHTH-1,5.95,CA OAKWOOD SPECIAL SCHOOL-FOOD & DRINK SUPPLIES,CATERERS,GPC
WALSALL COUNCIL,HTTP://OPENDATACOMMUNITIES.ORG/ID/METROPOLITAN-DISTRICT-COUNCIL/WALSALL,30/09/2019,RESOURCES & TRANSFORMATION,BLAKEMORE FOODSERVICE,08/07/2019,H59620190710WHDRFGHTH-2,120.72,CA OAKWOOD SPECIAL SCHOOL-FOOD & DRINK SUPPLIES,CATERERS,GPC
WALSALL COUNCIL,HTTP://OPENDATACOMMUNITIES.ORG/ID/METROPOLITAN-DISTRICT-COUNCIL/WALSALL,30/09/2019,ECONOMY & ENVIRONMENT,SCREWFIX DIRECT,08/07/2019,H59620190710XMDXLSCFU-1,51.87,WALSALL ARENA AND ARTS CENTRE-FURNITURE & EQUIPMENT,HOME SUPPLY WAREHOUSE STORES,GPC
WALSALL COUNCIL,HTTP://OPENDATACOMMUNITIES.ORG/ID/METROPOLITAN-DISTRICT-COUNCIL/WALSALL,30/09/2019,CHILDRENS SERVICES,AMZNMKTPLACE,08/07/2019,H59620190710XRQCEDRPB-1,8.65,PSHE / SEAL-GENERAL MATERIALS,MISCELLANEOUS AND SPECIALTY RETAIL STORES,GPC
WALSALL COUNCIL,HTTP://OPENDATACOMMUNITIES.ORG/ID/METROPOLITAN-DISTRICT-COUNCIL/WALSALL,30/09/2019,RESOURCES & TRANSFORMATION,BLAKEMORE FOODSERVICE,08/07/2019,H59620190710XTOUXRGRP-1,93.78,CA BUSILL JONES PRIMARY SCHOOL-FOOD & DRINK SUPPLIES,CATERERS,GPC
WALSALL COUNCIL,HTTP://OPENDATACOMMUNITIES.ORG/ID/METROPOLITAN-DISTRICT-COUNCIL/WALSALL,30/09/2019,RESOURCES & TRANSFORMATION,BLAKEMORE FOODSERVICE,08/07/2019,H59620190710XTOUXRGRP-2,146.04,CA BUSILL JONES PRIMARY SCHOOL-FOOD & DRINK SUPPLIES,CATERERS,GPC
WALSALL COUNCIL,HTTP://OPENDATACOMMUNITIES.ORG/ID/METROPOLITAN-DISTRICT-COUNCIL/WALSALL,30/09/2019,RESOURCES & TRANSFORMATION,TRAVELODGE GB0000,08/07/2019,H59620190710YHUXLGFNX-1,63.00,BED & BREAKFAST PAYMENTS-HOTEL ACCOMMODATION-EMPLOYEES,TRAVELODGE,GPC
WALSALL COUNCIL,HTTP://OPENDATACOMMUNITIES.ORG/ID/METROPOLITAN-DISTRICT-COUNCIL/WALSALL,30/09/2019,RESOURCES & TRANSFORMATION,TRAVELODGE GB0000,08/07/2019,H59620190710YHUXLGFNX-2,231.00,BED & BREAKFAST PAYMENTS-HOTEL ACCOMMODATION-EMPLOYEES,TRAVELODGE,GPC
WALSALL COUNCIL,HTTP://OPENDATACOMMUNITIES.ORG/ID/METROPOLITAN-DISTRICT-COUNCIL/WALSALL,30/09/2019,RESOURCES & TRANSFORMATION,NOBISCO LIMITED,08/07/2019,H59620190710ZUEFJIYYG-1,54.24,CA LINDENS PRIMARY SCHOOL-FURNITURE & EQUIPMENT,OTHER INDUSTRIAL SUPPLIES,GPC
WALSALL COUNCIL,HTTP://OPENDATACOMMUNITIES.ORG/ID/METROPOLITAN-DISTRICT-COUNCIL/WALSALL,30/09/2019,CHILDRENS SERVICES (SCHOOLS),AMAZON.CO.UK*M656I6IX4 AM,08/07/2019,H59620190711IHQHJEOWV-1,9.18,E19-GENERAL MATERIALS,MISCELLANEOUS AND SPECIALTY RETAIL STORES,GPC
WALSALL COUNCIL,HTTP://OPENDATACOMMUNITIES.ORG/ID/METROPOLITAN-DISTRICT-COUNCIL/WALSALL,30/09/2019,CHILDRENS SERVICES,AMAZON.CO.UK*M606O0I94 AM,08/07/2019,H59620190711VKINNENTA-1,11.18,ICT LEARNING RESOURCES-GENERAL MATERIALS,MISCELLANEOUS AND SPECIALTY RETAIL STORES,GPC
WALSALL COUNCIL,HTTP://OPENDATACOMMUNITIES.ORG/ID/METROPOLITAN-DISTRICT-COUNCIL/WALSALL,30/09/2019,CHILDRENS SERVICES,APP CARZ LIMITED,08/07/2019,H59620190711XQEBNPJRB-1,32.00,GENERAL MANAGEMENT SUPPORT (IN-TAXIS-TRAVEL ALLOWANCES,TAXI SERVICES,GPC
WALSALL COUNCIL,HTTP://OPENDATACOMMUNITIES.ORG/ID/METROPOLITAN-DISTRICT-COUNCIL/WALSALL,30/09/2019,RESOURCES & TRANSFORMATION,WWW.SCC.COM,08/07/2019,H59620190808SHLKESPVS-1,20612.34,RECHARGEABLE EQUIPMENT-COMPUTER EQUIPMENT AND SUPPLIES,"COMPUTERS, COMPUTER PERIPHERAL EQUIPMENT, SOFTWARE",GPC
WALSALL COUNCIL,HTTP://OPENDATACOMMUNITIES.ORG/ID/METROPOLITAN-DISTRICT-COUNCIL/WALSALL,30/09/2019,RESOURCES & TRANSFORMATION,ANNUAL CARD FEE,09/07/2019,H59620190710DFOWZJRIQ-1,40.00,FINANCE ADMIN-OTHER FEES & LICENCES-SERVICES-FEES,,GPC
WALSALL COUNCIL,HTTP://OPENDATACOMMUNITIES.ORG/ID/METROPOLITAN-DISTRICT-COUNCIL/WALSALL,30/09/2019,CHILDRENS SERVICES,ANNUAL CARD FEE,09/07/2019,H59620190710QZYVSTMEH-1,40.00,FAMILY PLACEMENTS-PUBLICITY & ADVERTISING (NOT STAFF),,GPC
WALSALL COUNCIL,HTTP://OPENDATACOMMUNITIES.ORG/ID/METROPOLITAN-DISTRICT-COUNCIL/WALSALL,30/09/2019,CHILDRENS SERVICES,TESCO STORES 6161,09/07/2019,H59620190711AABNEKSSY-1,4.99,TRANSITION AND LEAVING CARE PL-OTHER EXPENSES-EXPENSES,GROCERY STORES AND SUPERMARKETS,GPC
WALSALL COUNCIL,HTTP://OPENDATACOMMUNITIES.ORG/ID/METROPOLITAN-DISTRICT-COUNCIL/WALSALL,30/09/2019,CHILDRENS SERVICES,TESCO STORES 6161,09/07/2019,H59620190711AABNEKSSY-2,10.00,TRANSITION AND LEAVING CARE PL-OTHER EXPENSES-EXPENSES,GROCERY STORES AND SUPERMARKETS,GPC
WALSALL COUNCIL,HTTP://OPENDATACOMMUNITIES.ORG/ID/METROPOLITAN-DISTRICT-COUNCIL/WALSALL,30/09/2019,RESOURCES & TRANSFORMATION,ARTHUR BRETT CATER,09/07/2019,H59620190711AHTLCBNDU-1,72.75,CA MOORCROFT WOOD-FOOD & DRINK SUPPLIES,MISCELLANEOUS FOOD STORES & CONVENIENCE STORES,GPC
WALSALL COUNCIL,HTTP://OPENDATACOMMUNITIES.ORG/ID/METROPOLITAN-DISTRICT-COUNCIL/WALSALL,30/09/2019,ECONOMY & ENVIRONMENT,WALSALL WOOD,09/07/2019,H59620190711AKCBWVTTM-1,25.85,INFRASTRUCTURE MAINTENANCE-GENERAL MATERIALS,LUMBER & BUILDING MATERIALS STORES,GPC
WALSALL COUNCIL,HTTP://OPENDATACOMMUNITIES.ORG/ID/METROPOLITAN-DISTRICT-COUNCIL/WALSALL,30/09/2019,CHILDRENS SERVICES,TESCO STORES 6161,09/07/2019,H59620190711AVKOKPJOW-1,8.15,LOCALITY FAMILY SUPPORT-NORTH-FOOD & DRINK SUPPLIES,GROCERY STORES AND SUPERMARKETS,GPC
WALSALL COUNCIL,HTTP://OPENDATACOMMUNITIES.ORG/ID/METROPOLITAN-DISTRICT-COUNCIL/WALSALL,30/09/2019,CHILDRENS SERVICES,TESCO STORES 6161,09/07/2019,H59620190711AVKOKPJOW-2,7.03,LOCALITY FAMILY SUPPORT-NORTH-FOOD & DRINK SUPPLIES,GROCERY STORES AND SUPERMARKETS,GPC
WALSALL COUNCIL,HTTP://OPENDATACOMMUNITIES.ORG/ID/METROPOLITAN-DISTRICT-COUNCIL/WALSALL,30/09/2019,RESOURCES & TRANSFORMATION,ARTHUR BRETT CATER,09/07/2019,H59620190711BCSZCXQXY-1,48.27,CA OAKWOOD SPECIAL SCHOOL-FOOD & DRINK SUPPLIES,MISCELLANEOUS FOOD STORES & CONVENIENCE STORES,GPC
WALSALL COUNCIL,HTTP://OPENDATACOMMUNITIES.ORG/ID/METROPOLITAN-DISTRICT-COUNCIL/WALSALL,30/09/2019,RESOURCES & TRANSFORMATION,ARTHUR BRETT CATER,09/07/2019,H59620190711BQRBLGKQF-1,90.86,CA BUSILL JONES PRIMARY SCHOOL-FOOD & DRINK SUPPLIES,MISCELLANEOUS FOOD STORES & CONVENIENCE STORES,GPC
WALSALL COUNCIL,HTTP://OPENDATACOMMUNITIES.ORG/ID/METROPOLITAN-DISTRICT-COUNCIL/WALSALL,30/09/2019,ECONOMY & ENVIRONMENT,FAST KEY SERVICES LIMI,09/07/2019,H59620190711CDNNNTLNY-1,8.96,CENTRALISED STATIONARY-PROFESSIONAL FEES AND SERVICES,OTHER BUSINESS SERVICES,GPC
WALSALL COUNCIL,HTTP://OPENDATACOMMUNITIES.ORG/ID/METROPOLITAN-DISTRICT-COUNCIL/WALSALL,30/09/2019,CHILDRENS SERVICES,AMAZON.CO.UK*M610I1IS4,09/07/2019,H59620190711CIMBXXGZD-1,61.92,YEAR 3 / 4-GENERAL MATERIALS,OTHER DIRECT MARKETING-OTHER DIRECT MARKETERS,GPC
WALSALL COUNCIL,HTTP://OPENDATACOMMUNITIES.ORG/ID/METROPOLITAN-DISTRICT-COUNCIL/WALSALL,30/09/2019,CHILDRENS SERVICES,TWINKL LTD,09/07/2019,H59620190711CMFBDRNEC-1,96.84,MEADOW VIEW JMI PRIMARY SCHOOL-TRADED SERVICES FOR CURRICULUM SUPPORT-OTH AGENCY PROVISION,"ORGANIZATIONS, MEMBERSHIP",GPC
WALSALL COUNCIL,HTTP://OPENDATACOMMUNITIES.ORG/ID/METROPOLITAN-DISTRICT-COUNCIL/WALSALL,30/09/2019,CHILDRENS SERVICES,FACEBK HJ4AQMWME2,09/07/2019,H59620190711CYRZDKQIQ-1,27.73,FAMILY PLACEMENTS-PUBLICITY & ADVERTISING (NOT STAFF),ADVERTISING SERVICES,GPC
WALSALL COUNCIL,HTTP://OPENDATACOMMUNITIES.ORG/ID/METROPOLITAN-DISTRICT-COUNCIL/WALSALL,30/09/2019,CHILDRENS SERVICES,HM PASSPORT OFFICE,09/07/2019,H59620190711DSVWXKRXH-1,117.00,LOOKED AFTER CHILDRENS SOCIAL -MISC FEES AND EXPENSES,GOVERNMENT SERVICES,GPC
WALSALL COUNCIL,HTTP://OPENDATACOMMUNITIES.ORG/ID/METROPOLITAN-DISTRICT-COUNCIL/WALSALL,30/09/2019,CHILDRENS SERVICES,AMZNMKTPLACE,09/07/2019,H59620190711DTLUJFBHY-1,2.81,CONTINGENCY-LIBRARY BOOKS,MISCELLANEOUS AND SPECIALTY RETAIL STORES,GPC
WALSALL COUNCIL,HTTP://OPENDATACOMMUNITIES.ORG/ID/METROPOLITAN-DISTRICT-COUNCIL/WALSALL,30/09/2019,CHILDRENS SERVICES,HM PASSPORT OFFICE,09/07/2019,H59620190711EERRNSWWY-1,58.50,SUPPORT UNDER SECT 23 OF THE C-SUPPORT UNDER SECTION 23 OF THE CHILDRENS ACT,GOVERNMENT SERVICES,GPC
WALSALL COUNCIL,HTTP://OPENDATACOMMUNITIES.ORG/ID/METROPOLITAN-DISTRICT-COUNCIL/WALSALL,30/09/2019,RESOURCES & TRANSFORMATION,ARTHUR BRETT CATER,09/07/2019,H59620190711EHYHQWEYU-1,39.01,CA ALUMWELL INFANT SCHOOL-FOOD & DRINK SUPPLIES,MISCELLANEOUS FOOD STORES & CONVENIENCE STORES,GPC
WALSALL COUNCIL,HTTP://OPENDATACOMMUNITIES.ORG/ID/METROPOLITAN-DISTRICT-COUNCIL/WALSALL,30/09/2019,CHILDRENS SERVICES,AMZNMKTPLACE,09/07/2019,H59620190711EPLTDANFW-1,2.47,CONTINGENCY-LIBRARY BOOKS,MISCELLANEOUS AND SPECIALTY RETAIL STORES,GPC
WALSALL COUNCIL,HTTP://OPENDATACOMMUNITIES.ORG/ID/METROPOLITAN-DISTRICT-COUNCIL/WALSALL,30/09/2019,CHILDRENS SERVICES,NISA LOCAL,09/07/2019,H59620190711FAVZHNYXX-1,4.75,REDRUTH ROAD-FOOD & DRINK SUPPLIES,MISCELLANEOUS FOOD STORES & CONVENIENCE STORES,GPC
WALSALL COUNCIL,HTTP://OPENDATACOMMUNITIES.ORG/ID/METROPOLITAN-DISTRICT-COUNCIL/WALSALL,30/09/2019,ECONOMY & ENVIRONMENT,AMZ*AMAZON.CO.UK,09/07/2019,H59620190711FIWFWRIWR-1,-1.99,WALSALL ARENA AND ARTS CENTRE-STATIONERY & GENERAL SUPPLIES-OFFICE EXP,OTHER DIRECT MARKETING-OTHER DIRECT MARKETERS,GPC
WALSALL COUNCIL,HTTP://OPENDATACOMMUNITIES.ORG/ID/METROPOLITAN-DISTRICT-COUNCIL/WALSALL,30/09/2019,RESOURCES & TRANSFORMATION,ARTHUR BRETT CATER,09/07/2019,H59620190711FJPUADWGQ-1,9.11,CA BLOXWICH C.E. JMI PRIMARY S-FOOD & DRINK SUPPLIES,MISCELLANEOUS FOOD STORES & CONVENIENCE STORES,GPC
WALSALL COUNCIL,HTTP://OPENDATACOMMUNITIES.ORG/ID/METROPOLITAN-DISTRICT-COUNCIL/WALSALL,30/09/2019,RESOURCES & TRANSFORMATION,ARTHUR BRETT CATER,09/07/2019,H59620190711FSLYKQIMZ-1,145.48,CA BARCROFT D/C-FOOD & DRINK SUPPLIES,MISCELLANEOUS FOOD STORES & CONVENIENCE STORES,GPC
WALSALL COUNCIL,HTTP://OPENDATACOMMUNITIES.ORG/ID/METROPOLITAN-DISTRICT-COUNCIL/WALSALL,30/09/2019,RESOURCES & TRANSFORMATION,ARTHUR BRETT CATER,09/07/2019,H59620190711GUBCSQRAU-1,89.58,CA RUSHALL JMI SCHOOL-FOOD & DRINK SUPPLIES,MISCELLANEOUS FOOD STORES & CONVENIENCE STORES,GPC
WALSALL COUNCIL,HTTP://OPENDATACOMMUNITIES.ORG/ID/METROPOLITAN-DISTRICT-COUNCIL/WALSALL,30/09/2019,ECONOMY & ENVIRONMENT,WWW.BRITISHGAS.CO.,09/07/2019,H59620190711GVOATQHWL-1,131.64,YEI IMPACT OVERHEADS-OTHER-ENERGY COSTS,"UTILITIES - ELECTRIC, GAS, SANITARY & WATER",GPC
WALSALL COUNCIL,HTTP://OPENDATACOMMUNITIES.ORG/ID/METROPOLITAN-DISTRICT-COUNCIL/WALSALL,30/09/2019,RESOURCES & TRANSFORMATION,TESCO STORES 6161,09/07/2019,H59620190711HBOYVDKBZ-1,32.70,ACCOMMODATION SERVICES MANAGEM-CRISIS SUPPORT PAYMENTS,GROCERY STORES AND SUPERMARKETS,GPC
WALSALL COUNCIL,HTTP://OPENDATACOMMUNITIES.ORG/ID/METROPOLITAN-DISTRICT-COUNCIL/WALSALL,30/09/2019,ECONOMY & ENVIRONMENT,MIDLANDCHILLED.CO.,09/07/2019,H59620190711HGCGZTHEV-1,1068.11,BLOXWICH LEISURE CENTRE-FOOD & DRINK SUPPLIES,MOTOR FREIGHT CARRIERS,GPC
WALSALL COUNCIL,HTTP://OPENDATACOMMUNITIES.ORG/ID/METROPOLITAN-DISTRICT-COUNCIL/WALSALL,30/09/2019,RESOURCES & TRANSFORMATION,ARTHUR BRETT CATER,09/07/2019,H59620190711IKNDMJHLJ-1,85.72,CA WATLING STREET PRIMARY SCHO-FOOD & DRINK SUPPLIES,MISCELLANEOUS FOOD STORES & CONVENIENCE STORES,GPC
WALSALL COUNCIL,HTTP://OPENDATACOMMUNITIES.ORG/ID/METROPOLITAN-DISTRICT-COUNCIL/WALSALL,30/09/2019,RESOURCES & TRANSFORMATION,ARTHUR BRETT CATER,09/07/2019,H59620190711IMGNOLYGO-1,36.85,CA CASTLEFORT JMI SCHOOL-FOOD & DRINK SUPPLIES,MISCELLANEOUS FOOD STORES & CONVENIENCE STORES,GPC
WALSALL COUNCIL,HTTP://OPENDATACOMMUNITIES.ORG/ID/METROPOLITAN-DISTRICT-COUNCIL/WALSALL,30/09/2019,CHILDRENS SERVICES,TESCO STORES 6161,09/07/2019,H59620190711IXFEFWNTC-1,2.75,LOOKED AFTER CHILDRENS SOCIAL -OTHER EXPENSES-EXPENSES,GROCERY STORES AND SUPERMARKETS,GPC
WALSALL COUNCIL,HTTP://OPENDATACOMMUNITIES.ORG/ID/METROPOLITAN-DISTRICT-COUNCIL/WALSALL,30/09/2019,CHILDRENS SERVICES,TESCO STORES 6161,09/07/2019,H59620190711IXFEFWNTC-2,19.94,LOOKED AFTER CHILDRENS SOCIAL -OTHER EXPENSES-EXPENSES,GROCERY STORES AND SUPERMARKETS,GPC
WALSALL COUNCIL,HTTP://OPENDATACOMMUNITIES.ORG/ID/METROPOLITAN-DISTRICT-COUNCIL/WALSALL,30/09/2019,CHILDRENS SERVICES,PAYPAL *FIRELABEL,09/07/2019,H59620190711JJXECAXKC-1,252.48,EDUCATIONAL VISITS/TRIPS-GENERAL MATERIALS,MENS AND BOYS CLOTHING AND FURNISHINGS STORE,GPC
WALSALL COUNCIL,HTTP://OPENDATACOMMUNITIES.ORG/ID/METROPOLITAN-DISTRICT-COUNCIL/WALSALL,30/09/2019,CHILDRENS SERVICES,MAX SPIELMANN LTD,09/07/2019,H59620190711KBNHCWNGC-1,9.99,CHILDRENS RESIDENTIAL SVCS-EXTERNAL TRAINING,PHOTOGRAPHIC STUDIOS,GPC
WALSALL COUNCIL,HTTP://OPENDATACOMMUNITIES.ORG/ID/METROPOLITAN-DISTRICT-COUNCIL/WALSALL,30/09/2019,CHILDRENS SERVICES,WM MORRISONS STORE,09/07/2019,H59620190711KFGQJLEEN-1,39.00,TRANSITION AND LEAVING CARE PL-FURNITURE & EQUIPMENT,GROCERY STORES AND SUPERMARKETS,GPC
WALSALL COUNCIL,HTTP://OPENDATACOMMUNITIES.ORG/ID/METROPOLITAN-DISTRICT-COUNCIL/WALSALL,30/09/2019,RESOURCES & TRANSFORMATION,ARTHUR BRETT CATER,09/07/2019,H59620190711KKBPTWOWC-1,43.53,CA OLD HALL SPECIAL SCHOOL-FOOD & DRINK SUPPLIES,MISCELLANEOUS FOOD STORES & CONVENIENCE STORES,GPC
WALSALL COUNCIL,HTTP://OPENDATACOMMUNITIES.ORG/ID/METROPOLITAN-DISTRICT-COUNCIL/WALSALL,30/09/2019,RESOURCES & TRANSFORMATION,ARTHUR BRETT CATER,09/07/2019,H59620190711KLPUMQHMP-1,33.90,TOWN HALL RESTAURANT BISTRO-FOOD & DRINK SUPPLIES,MISCELLANEOUS FOOD STORES & CONVENIENCE STORES,GPC
WALSALL COUNCIL,HTTP://OPENDATACOMMUNITIES.ORG/ID/METROPOLITAN-DISTRICT-COUNCIL/WALSALL,30/09/2019,CHILDRENS SERVICES,AMZNMKTPLACE,09/07/2019,H59620190711KNCWOPCTD-1,5.10,CONTINGENCY-LIBRARY BOOKS,MISCELLANEOUS AND SPECIALTY RETAIL STORES,GPC
WALSALL COUNCIL,HTTP://OPENDATACOMMUNITIES.ORG/ID/METROPOLITAN-DISTRICT-COUNCIL/WALSALL,30/09/2019,RESOURCES & TRANSFORMATION,ARTHUR BRETT CATER,09/07/2019,H59620190711KTPWMCDTV-1,35.01,CA ST BERNADETTES CATHOLIC PRI-FOOD & DRINK SUPPLIES,MISCELLANEOUS FOOD STORES & CONVENIENCE STORES,GPC
WALSALL COUNCIL,HTTP://OPENDATACOMMUNITIES.ORG/ID/METROPOLITAN-DISTRICT-COUNCIL/WALSALL,30/09/2019,CHILDRENS SERVICES,O2,09/07/2019,H59620190711KVBKLNGMF-1,33.00,ADMIN-TELEPHONES MOBILE/PAGERS-TELEPHONES,TELECOMMUNICATION SERVICES,GPC
WALSALL COUNCIL,HTTP://OPENDATACOMMUNITIES.ORG/ID/METROPOLITAN-DISTRICT-COUNCIL/WALSALL,30/09/2019,RESOURCES & TRANSFORMATION,ARTHUR BRETT CATER,09/07/2019,H59620190711LKCUGFBHU-1,100.23,CA BROWNHILLS WEST PRIMARY SCH-FOOD & DRINK SUPPLIES,MISCELLANEOUS FOOD STORES & CONVENIENCE STORES,GPC
WALSALL COUNCIL,HTTP://OPENDATACOMMUNITIES.ORG/ID/METROPOLITAN-DISTRICT-COUNCIL/WALSALL,30/09/2019,RESOURCES & TRANSFORMATION,ASDA SUPERSTORE,09/07/2019,H59620190711LNTGCTEKW-1,6.08,CA RUSHALL JMI SCHOOL-FOOD & DRINK SUPPLIES,GROCERY STORES AND SUPERMARKETS,GPC
WALSALL COUNCIL,HTTP://OPENDATACOMMUNITIES.ORG/ID/METROPOLITAN-DISTRICT-COUNCIL/WALSALL,30/09/2019,CHILDRENS SERVICES,WWW.THEWORKS.CO.UK,09/07/2019,H59620190711LXSCQQPCK-1,62.50,EARLY HELP HUB-EVENTS AND VISUAL ARTS,DISCOUNT STORES,GPC
WALSALL COUNCIL,HTTP://OPENDATACOMMUNITIES.ORG/ID/METROPOLITAN-DISTRICT-COUNCIL/WALSALL,30/09/2019,RESOURCES & TRANSFORMATION,ARTHUR BRETT CATER,09/07/2019,H59620190711MRCYDPRSH-1,54.78,CA WALSALL WOOD PRIMARY SCHOOL-FOOD & DRINK SUPPLIES,MISCELLANEOUS FOOD STORES & CONVENIENCE STORES,GPC
WALSALL COUNCIL,HTTP://OPENDATACOMMUNITIES.ORG/ID/METROPOLITAN-DISTRICT-COUNCIL/WALSALL,30/09/2019,ECONOMY & ENVIRONMENT,GLS EDUCATIONAL SU,09/07/2019,H59620190711MTNELJHRQ-1,137.27,EDUCATION INFORMAL-GENERAL MATERIALS,"COLLEGES, UNIVERSITIES, PROFESSIONAL SCHOOLS",GPC
WALSALL COUNCIL,HTTP://OPENDATACOMMUNITIES.ORG/ID/METROPOLITAN-DISTRICT-COUNCIL/WALSALL,30/09/2019,CHILDRENS SERVICES,REGISTRATION SERVICES,09/07/2019,H59620190711NBCHNEMNI-1,11.00,SAFEGUARDING & FAMILY SUPPORT-MISC FEES AND EXPENSES,OTHER RECREATION SERVICES,GPC
WALSALL COUNCIL,HTTP://OPENDATACOMMUNITIES.ORG/ID/METROPOLITAN-DISTRICT-COUNCIL/WALSALL,30/09/2019,RESOURCES & TRANSFORMATION,ARTHUR BRETT CATER,09/07/2019,H59620190711NCHSZWYWE-1,50.37,CA LEIGHSWOOD PRIMARY SCHOOL-FOOD & DRINK SUPPLIES,MISCELLANEOUS FOOD STORES & CONVENIENCE STORES,GPC
WALSALL COUNCIL,HTTP://OPENDATACOMMUNITIES.ORG/ID/METROPOLITAN-DISTRICT-COUNCIL/WALSALL,30/09/2019,CHILDRENS SERVICES,AMZNMKTPLACE AMAZON.CO.UK,09/07/2019,H59620190711NCOVGACKT-1,19.18,LEARNING ENVIRONMENT-GENERAL MATERIALS,MISCELLANEOUS AND SPECIALTY RETAIL STORES,GPC
WALSALL COUNCIL,HTTP://OPENDATACOMMUNITIES.ORG/ID/METROPOLITAN-DISTRICT-COUNCIL/WALSALL,30/09/2019,RESOURCES & TRANSFORMATION,WILKO RETAIL LIMITED,09/07/2019,H59620190711NYZICXMBO-1,6.00,WALSALL CRISIS SUPPORT SCHEME-CRISIS SUPPORT PAYMENTS,MISCELLANEOUS GENERAL MERCHANDISE,GPC
WALSALL COUNCIL,HTTP://OPENDATACOMMUNITIES.ORG/ID/METROPOLITAN-DISTRICT-COUNCIL/WALSALL,30/09/2019,RESOURCES & TRANSFORMATION,ARTHUR BRETT CATER,09/07/2019,H59620190711OBNUDIKMK-1,5.28,CA ST MICHAELS C.E. PRIMARY SC-FOOD & DRINK SUPPLIES,MISCELLANEOUS FOOD STORES & CONVENIENCE STORES,GPC
WALSALL COUNCIL,HTTP://OPENDATACOMMUNITIES.ORG/ID/METROPOLITAN-DISTRICT-COUNCIL/WALSALL,30/09/2019,RESOURCES & TRANSFORMATION,TRAVELODGE GB0000,09/07/2019,H59620190711ODJGGZJBH-1,61.00,BED & BREAKFAST PAYMENTS-BED & BREAKFAST PAYMENTS,TRAVELODGE,GPC
WALSALL COUNCIL,HTTP://OPENDATACOMMUNITIES.ORG/ID/METROPOLITAN-DISTRICT-COUNCIL/WALSALL,30/09/2019,CHILDRENS SERVICES,ASDA GROCERIES ONLINE,09/07/2019,H59620190711OIKFFTFYQ-1,29.33,SOUTH LOCALITY - SCHOOL READY-FOOD & DRINK SUPPLIES,GROCERY STORES AND SUPERMARKETS,GPC
WALSALL COUNCIL,HTTP://OPENDATACOMMUNITIES.ORG/ID/METROPOLITAN-DISTRICT-COUNCIL/WALSALL,30/09/2019,CHILDRENS SERVICES,ASDA GROCERIES ONLINE,09/07/2019,H59620190711OIKFFTFYQ-2,29.32,WEST LOCALITY - SCHOOL READY-FOOD & DRINK SUPPLIES,GROCERY STORES AND SUPERMARKETS,GPC
WALSALL COUNCIL,HTTP://OPENDATACOMMUNITIES.ORG/ID/METROPOLITAN-DISTRICT-COUNCIL/WALSALL,30/09/2019,RESOURCES & TRANSFORMATION,ARTHUR BRETT CATER,09/07/2019,H59620190711OTIMPIUTL-1,90.92,CA CROFT COMMUNITY PRIMARY SCH-FOOD & DRINK SUPPLIES,MISCELLANEOUS FOOD STORES & CONVENIENCE STORES,GPC
WALSALL COUNCIL,HTTP://OPENDATACOMMUNITIES.ORG/ID/METROPOLITAN-DISTRICT-COUNCIL/WALSALL,30/09/2019,CHILDRENS SERVICES,WM MORRISONS STORE,09/07/2019,H59620190711OVGOATUVH-1,5.80,WEST LOCALITY - SCHOOL READY-FOOD & DRINK SUPPLIES,GROCERY STORES AND SUPERMARKETS,GPC
WALSALL COUNCIL,HTTP://OPENDATACOMMUNITIES.ORG/ID/METROPOLITAN-DISTRICT-COUNCIL/WALSALL,30/09/2019,CHILDRENS SERVICES,WM MORRISONS STORE,09/07/2019,H59620190711OVGOATUVH-2,0.20,WEST LOCALITY - SCHOOL READY-FOOD & DRINK SUPPLIES,GROCERY STORES AND SUPERMARKETS,GPC
WALSALL COUNCIL,HTTP://OPENDATACOMMUNITIES.ORG/ID/METROPOLITAN-DISTRICT-COUNCIL/WALSALL,30/09/2019,RESOURCES & TRANSFORMATION,ARTHUR BRETT CATER,09/07/2019,H59620190711PMHQTGEDS-1,37.69,CA LITTLE BLOXWICH CE PRIMARY -FOOD & DRINK SUPPLIES,MISCELLANEOUS FOOD STORES & CONVENIENCE STORES,GPC
WALSALL COUNCIL,HTTP://OPENDATACOMMUNITIES.ORG/ID/METROPOLITAN-DISTRICT-COUNCIL/WALSALL,30/09/2019,ECONOMY & ENVIRONMENT,SHOE ZONE LTD,09/07/2019,H59620190711PTWYPDEEY-1,12.52,YEI (IMPACT) PROGRAMME-PROFESSIONAL FEES AND SERVICES,SHOE STORES,GPC
WALSALL COUNCIL,HTTP://OPENDATACOMMUNITIES.ORG/ID/METROPOLITAN-DISTRICT-COUNCIL/WALSALL,30/09/2019,ECONOMY & ENVIRONMENT,SHOE ZONE LTD,09/07/2019,H59620190711PTWYPDEEY-2,12.52,YEI ESF FUNDING-CLOTHING & LAUNDRY,SHOE STORES,GPC
WALSALL COUNCIL,HTTP://OPENDATACOMMUNITIES.ORG/ID/METROPOLITAN-DISTRICT-COUNCIL/WALSALL,30/09/2019,RESOURCES & TRANSFORMATION,ARTHUR BRETT CATER,09/07/2019,H59620190711QBHDYMIIC-1,104.90,CA ELMORE GREEN PRIMARY SCHOOL-FOOD & DRINK SUPPLIES,MISCELLANEOUS FOOD STORES & CONVENIENCE STORES,GPC
WALSALL COUNCIL,HTTP://OPENDATACOMMUNITIES.ORG/ID/METROPOLITAN-DISTRICT-COUNCIL/WALSALL,30/09/2019,CHILDRENS SERVICES,WALSALL COUNCIL,09/07/2019,H59620190711QFQSVEVWX-1,-44.00,ADMINISTRATIVE SUPPLIES-STATIONERY & GENERAL SUPPLIES-OFFICE EXP,GOVERNMENT SERVICES,GPC
WALSALL COUNCIL,HTTP://OPENDATACOMMUNITIES.ORG/ID/METROPOLITAN-DISTRICT-COUNCIL/WALSALL,30/09/2019,RESOURCES & TRANSFORMATION,ASDA,09/07/2019,H59620190711RBXXSQYWB-1,8.25,CORPORATE MANAGEMENT TEAM-FOOD & DRINK SUPPLIES,GROCERY STORES AND SUPERMARKETS,GPC
WALSALL COUNCIL,HTTP://OPENDATACOMMUNITIES.ORG/ID/METROPOLITAN-DISTRICT-COUNCIL/WALSALL,30/09/2019,CHILDRENS SERVICES,AMZNMKTPLACE,09/07/2019,H59620190711RHQIMHGWK-1,8.54,ADMINISTRATIVE SUPPLIES-GENERAL MATERIALS,MISCELLANEOUS AND SPECIALTY RETAIL STORES,GPC
WALSALL COUNCIL,HTTP://OPENDATACOMMUNITIES.ORG/ID/METROPOLITAN-DISTRICT-COUNCIL/WALSALL,30/09/2019,RESOURCES & TRANSFORMATION,ARTHUR BRETT CATER,09/07/2019,H59620190711RRKRJLJNT-1,51.19,CA ST MICHAELS C.E. PRIMARY SC-FOOD & DRINK SUPPLIES,MISCELLANEOUS FOOD STORES & CONVENIENCE STORES,GPC
WALSALL COUNCIL,HTTP://OPENDATACOMMUNITIES.ORG/ID/METROPOLITAN-DISTRICT-COUNCIL/WALSALL,30/09/2019,ECONOMY & ENVIRONMENT,THE DM COLLECTION,09/07/2019,H59620190711SQWMCMFCB-1,129.60,NAG - NEW ART GALLERY SHOP STO-MATERIALS TO STORES,"COMMERCIAL ART, GRAPHICS, PHOTOGRAPHY ",GPC
WALSALL COUNCIL,HTTP://OPENDATACOMMUNITIES.ORG/ID/METROPOLITAN-DISTRICT-COUNCIL/WALSALL,30/09/2019,RESOURCES & TRANSFORMATION,ARTHUR BRETT CATER,09/07/2019,H59620190711SSGIPFOWT-1,54.42,CA ST GILES C.E. PRIMARY SCHOO-FOOD & DRINK SUPPLIES,MISCELLANEOUS FOOD STORES & CONVENIENCE STORES,GPC
WALSALL COUNCIL,HTTP://OPENDATACOMMUNITIES.ORG/ID/METROPOLITAN-DISTRICT-COUNCIL/WALSALL,30/09/2019,RESOURCES & TRANSFORMATION,ARTHUR BRETT CATER,09/07/2019,H59620190711SWRPGDJFJ-1,98.90,CA LINDENS PRIMARY SCHOOL-FOOD & DRINK SUPPLIES,MISCELLANEOUS FOOD STORES & CONVENIENCE STORES,GPC
WALSALL COUNCIL,HTTP://OPENDATACOMMUNITIES.ORG/ID/METROPOLITAN-DISTRICT-COUNCIL/WALSALL,30/09/2019,RESOURCES & TRANSFORMATION,ARTHUR BRETT CATER,09/07/2019,H59620190711TBQPJVYDH-1,52.81,CA ABBEY PRIMARY SCHOOL-FOOD & DRINK SUPPLIES,MISCELLANEOUS FOOD STORES & CONVENIENCE STORES,GPC
WALSALL COUNCIL,HTTP://OPENDATACOMMUNITIES.ORG/ID/METROPOLITAN-DISTRICT-COUNCIL/WALSALL,30/09/2019,CHILDRENS SERVICES,AMZNMKTPLACE AMAZON.CO.UK,09/07/2019,H59620190711THLTUCSUD-1,14.73,LEARNING ENVIRONMENT-GENERAL MATERIALS,MISCELLANEOUS AND SPECIALTY RETAIL STORES,GPC
WALSALL COUNCIL,HTTP://OPENDATACOMMUNITIES.ORG/ID/METROPOLITAN-DISTRICT-COUNCIL/WALSALL,30/09/2019,RESOURCES & TRANSFORMATION,REGISTRATION SERVICES,09/07/2019,H59620190711TJXXASVBM-1,22.00,WALSALL CRISIS SUPPORT SCHEME-OTHER EXPENSES-EXPENSES,OTHER RECREATION SERVICES,GPC
WALSALL COUNCIL,HTTP://OPENDATACOMMUNITIES.ORG/ID/METROPOLITAN-DISTRICT-COUNCIL/WALSALL,30/09/2019,RESOURCES & TRANSFORMATION,TRAINLINE,09/07/2019,H59620190711TKYEXHPHR-1,35.60,INTEGRATED COMMUNITIES PROGRAM-OFFICER/STAFF-PUBLIC TRANSPORT,PASSENGER RAILWAYS,GPC
WALSALL COUNCIL,HTTP://OPENDATACOMMUNITIES.ORG/ID/METROPOLITAN-DISTRICT-COUNCIL/WALSALL,30/09/2019,RESOURCES & TRANSFORMATION,ARTHUR BRETT CATER,09/07/2019,H59620190711TNERUXJFU-1,143.11,CA COOPER JORDAN CE PRIMARY SC-FOOD & DRINK SUPPLIES,MISCELLANEOUS FOOD STORES & CONVENIENCE STORES,GPC
WALSALL COUNCIL,HTTP://OPENDATACOMMUNITIES.ORG/ID/METROPOLITAN-DISTRICT-COUNCIL/WALSALL,30/09/2019,RESOURCES & TRANSFORMATION,ARTHUR BRETT CATER,09/07/2019,H59620190711TPGKTGANT-1,167.29,CA MEADOW VIEW JMI PRIMARY SCH-FOOD & DRINK SUPPLIES,MISCELLANEOUS FOOD STORES & CONVENIENCE STORES,GPC
WALSALL COUNCIL,HTTP://OPENDATACOMMUNITIES.ORG/ID/METROPOLITAN-DISTRICT-COUNCIL/WALSALL,30/09/2019,CHILDRENS SERVICES,ASDA GROCERIES ONLINE,09/07/2019,H59620190711TYDMMRFTF-1,30.45,ROSEDALE C.E. PRIMARY SCHOOL-FOOD & DRINK SUPPLIES,GROCERY STORES AND SUPERMARKETS,GPC
WALSALL COUNCIL,HTTP://OPENDATACOMMUNITIES.ORG/ID/METROPOLITAN-DISTRICT-COUNCIL/WALSALL,30/09/2019,CHILDRENS SERVICES,ASDA GROCERIES ONLINE,09/07/2019,H59620190711TYDMMRFTF-2,10.39,ROSEDALE C.E. PRIMARY SCHOOL-FOOD & DRINK SUPPLIES,GROCERY STORES AND SUPERMARKETS,GPC
WALSALL COUNCIL,HTTP://OPENDATACOMMUNITIES.ORG/ID/METROPOLITAN-DISTRICT-COUNCIL/WALSALL,30/09/2019,CHILDRENS SERVICES,ASDA GEORGE COM LEEDS,09/07/2019,H59620190711UGZLBKDGF-1,110.40,TRANSITION AND LEAVING CARE PL-FURNITURE & EQUIPMENT,GROCERY STORES AND SUPERMARKETS,GPC
WALSALL COUNCIL,HTTP://OPENDATACOMMUNITIES.ORG/ID/METROPOLITAN-DISTRICT-COUNCIL/WALSALL,30/09/2019,RESOURCES & TRANSFORMATION,ARTHUR BRETT CATER,09/07/2019,H59620190711UWWSUERLV-1,27.28,CA LEAMORE PRIMARY SCHOOL-FOOD & DRINK SUPPLIES,MISCELLANEOUS FOOD STORES & CONVENIENCE STORES,GPC
WALSALL COUNCIL,HTTP://OPENDATACOMMUNITIES.ORG/ID/METROPOLITAN-DISTRICT-COUNCIL/WALSALL,30/09/2019,ECONOMY & ENVIRONMENT,TRAINLINE.COM,09/07/2019,H59620190711VPPWPMYLQ-1,59.19,EXHIBITION NO.3-OTHER/VOLUNTEERS-PUBLIC TRANSPORT,PASSENGER RAILWAYS,GPC
WALSALL COUNCIL,HTTP://OPENDATACOMMUNITIES.ORG/ID/METROPOLITAN-DISTRICT-COUNCIL/WALSALL,30/09/2019,CHILDRENS SERVICES,TRAINLINE.COM,09/07/2019,H59620190711WDGGFWXFX-1,120.92,SAFEGUARDING & FAMILY SUPPORT-OFFICER/STAFF-PUBLIC TRANSPORT,PASSENGER RAILWAYS,GPC
WALSALL COUNCIL,HTTP://OPENDATACOMMUNITIES.ORG/ID/METROPOLITAN-DISTRICT-COUNCIL/WALSALL,30/09/2019,CHILDRENS SERVICES,TESCO STORES 6161,09/07/2019,H59620190711WSKFBFOIC-1,3.48,LOCALITY FAMILY SUPPORT-NORTH-FOOD & DRINK SUPPLIES,GROCERY STORES AND SUPERMARKETS,GPC
WALSALL COUNCIL,HTTP://OPENDATACOMMUNITIES.ORG/ID/METROPOLITAN-DISTRICT-COUNCIL/WALSALL,30/09/2019,RESOURCES & TRANSFORMATION,NOBISCO LIMITED,09/07/2019,H59620190711WVAUKISYK-1,74.00,CA ST JOHNS C.E. PRIMARY SCHOO-FURNITURE & EQUIPMENT,OTHER INDUSTRIAL SUPPLIES,GPC
WALSALL COUNCIL,HTTP://OPENDATACOMMUNITIES.ORG/ID/METROPOLITAN-DISTRICT-COUNCIL/WALSALL,30/09/2019,RESOURCES & TRANSFORMATION,WALSALL COUNCIL,09/07/2019,H59620190711XAKRRBPLB-1,62.94,ACCOMMODATION SERVICES MANAGEM-OTHER FEES & LICENCES-SERVICES-FEES,GOVERNMENT SERVICES,GPC
WALSALL COUNCIL,HTTP://OPENDATACOMMUNITIES.ORG/ID/METROPOLITAN-DISTRICT-COUNCIL/WALSALL,30/09/2019,RESOURCES & TRANSFORMATION,ARTHUR BRETT CATER,09/07/2019,H59620190711XFJNJLKVP-1,49.76,CA ELMWOOD SPECIAL SCHOOL-FOOD & DRINK SUPPLIES,MISCELLANEOUS FOOD STORES & CONVENIENCE STORES,GPC
WALSALL COUNCIL,HTTP://OPENDATACOMMUNITIES.ORG/ID/METROPOLITAN-DISTRICT-COUNCIL/WALSALL,30/09/2019,RESOURCES & TRANSFORMATION,ARTHUR BRETT CATER,09/07/2019,H59620190711XHRSSXPOF-1,70.64,CA KINGSHILL SCHOOL-FOOD & DRINK SUPPLIES,MISCELLANEOUS FOOD STORES & CONVENIENCE STORES,GPC
WALSALL COUNCIL,HTTP://OPENDATACOMMUNITIES.ORG/ID/METROPOLITAN-DISTRICT-COUNCIL/WALSALL,30/09/2019,RESOURCES & TRANSFORMATION,ARTHUR BRETT CATER,09/07/2019,H59620190711XOPRWXJHO-1,123.62,CA RADLEYS PRIMARY SCHOOL-FOOD & DRINK SUPPLIES,MISCELLANEOUS FOOD STORES & CONVENIENCE STORES,GPC
WALSALL COUNCIL,HTTP://OPENDATACOMMUNITIES.ORG/ID/METROPOLITAN-DISTRICT-COUNCIL/WALSALL,30/09/2019,RESOURCES & TRANSFORMATION,ANNUAL FEE REVERSAL,09/07/2019,H59620190711YBBORWMVF-1,-40.00,FINANCE ADMIN-OTHER FEES & LICENCES-SERVICES-FEES,,GPC
WALSALL COUNCIL,HTTP://OPENDATACOMMUNITIES.ORG/ID/METROPOLITAN-DISTRICT-COUNCIL/WALSALL,30/09/2019,RESOURCES & TRANSFORMATION,ARTHUR BRETT CATER,09/07/2019,H59620190711YREOMJNEW-1,64.88,CA JANE LANE SPECIAL SCHOOL-FOOD & DRINK SUPPLIES,MISCELLANEOUS FOOD STORES & CONVENIENCE STORES,GPC
WALSALL COUNCIL,HTTP://OPENDATACOMMUNITIES.ORG/ID/METROPOLITAN-DISTRICT-COUNCIL/WALSALL,30/09/2019,RESOURCES & TRANSFORMATION,ARTHUR BRETT CATER,09/07/2019,H59620190711YVAHMWLIQ-1,145.81,CA BEACON PRIMARY SCHOOL-FOOD & DRINK SUPPLIES,MISCELLANEOUS FOOD STORES & CONVENIENCE STORES,GPC
WALSALL COUNCIL,HTTP://OPENDATACOMMUNITIES.ORG/ID/METROPOLITAN-DISTRICT-COUNCIL/WALSALL,30/09/2019,CHILDRENS SERVICES,THE RANGE,09/07/2019,H59620190711YWLUQGNLY-1,20.51,WEST LOCALITY - SCHOOL READY-EVENTS AND VISUAL ARTS,DEPARTMENT STORES,GPC
WALSALL COUNCIL,HTTP://OPENDATACOMMUNITIES.ORG/ID/METROPOLITAN-DISTRICT-COUNCIL/WALSALL,30/09/2019,CHILDRENS SERVICES (SCHOOLS),POST OFFICE COUNTER,09/07/2019,H59620190711YWWNUHMVU-1,1.50,ADMINISTRATIVE SUPPLIES-POSTAGES AND COURIER SERVICES,POSTAL SERVICES - GOVERNMENT ONLY,GPC
WALSALL COUNCIL,HTTP://OPENDATACOMMUNITIES.ORG/ID/METROPOLITAN-DISTRICT-COUNCIL/WALSALL,30/09/2019,RESOURCES & TRANSFORMATION,ARTHUR BRETT CATER,09/07/2019,H59620190711ZBCIOGMQY-1,173.83,CA ST JOHNS C.E. PRIMARY SCHOO-FOOD & DRINK SUPPLIES,MISCELLANEOUS FOOD STORES & CONVENIENCE STORES,GPC
WALSALL COUNCIL,HTTP://OPENDATACOMMUNITIES.ORG/ID/METROPOLITAN-DISTRICT-COUNCIL/WALSALL,30/09/2019,RESOURCES & TRANSFORMATION,ARTHUR BRETT CATER,09/07/2019,H59620190711ZMXDBYMLF-1,36.25,CA RUSHALL JMI SCHOOL-FOOD & DRINK SUPPLIES,MISCELLANEOUS FOOD STORES & CONVENIENCE STORES,GPC
WALSALL COUNCIL,HTTP://OPENDATACOMMUNITIES.ORG/ID/METROPOLITAN-DISTRICT-COUNCIL/WALSALL,30/09/2019,RESOURCES & TRANSFORMATION,WWW.SCC.COM,09/07/2019,H59620190712DHDBDEXBB-1,69811.15,RECHARGEABLE EQUIPMENT-COMPUTER EQUIPMENT AND SUPPLIES,"COMPUTERS, COMPUTER PERIPHERAL EQUIPMENT, SOFTWARE",GPC
WALSALL COUNCIL,HTTP://OPENDATACOMMUNITIES.ORG/ID/METROPOLITAN-DISTRICT-COUNCIL/WALSALL,30/09/2019,CHILDRENS SERVICES,APP CARZ LIMITED,09/07/2019,H59620190712MSUFOSFQA-1,20.00,TRANSFORMATION-LOOKED AFTER CH-TAXIS-TRAVEL ALLOWANCES,TAXI SERVICES,GPC
WALSALL COUNCIL,HTTP://OPENDATACOMMUNITIES.ORG/ID/METROPOLITAN-DISTRICT-COUNCIL/WALSALL,30/09/2019,ECONOMY & ENVIRONMENT,SPORTSDIRECT.COM,09/07/2019,H59620190712PLOQPANZJ-1,34.99,WALSALL ARENA AND ARTS CENTRE-GENERAL MATERIALS,SPORTING GOODS STORES,GPC
WALSALL COUNCIL,HTTP://OPENDATACOMMUNITIES.ORG/ID/METROPOLITAN-DISTRICT-COUNCIL/WALSALL,30/09/2019,ECONOMY & ENVIRONMENT,SPORTSDIRECT.COM,09/07/2019,H59620190712PLOQPANZJ-2,5.99,WALSALL ARENA AND ARTS CENTRE-POSTAGES AND COURIER SERVICES,SPORTING GOODS STORES,GPC
WALSALL COUNCIL,HTTP://OPENDATACOMMUNITIES.ORG/ID/METROPOLITAN-DISTRICT-COUNCIL/WALSALL,30/09/2019,CHILDRENS SERVICES,ANNUAL FEE REVERSAL,09/07/2019,H59620190712PWIEJOSFQ-1,-40.00,FAMILY PLACEMENTS-PUBLICITY & ADVERTISING (NOT STAFF),,GPC
WALSALL COUNCIL,HTTP://OPENDATACOMMUNITIES.ORG/ID/METROPOLITAN-DISTRICT-COUNCIL/WALSALL,30/09/2019,ECONOMY & ENVIRONMENT,WWW.BANNERUK.COM,09/07/2019,H59620190713DKSOETPSG-1,17.69,LIBRARY OPERATIONS CENTRAL-STATIONERY & GENERAL SUPPLIES-OFFICE EXP,"STATIONERY, OFFICE SUPPLIES AND WRITING PAPER",GPC
WALSALL COUNCIL,HTTP://OPENDATACOMMUNITIES.ORG/ID/METROPOLITAN-DISTRICT-COUNCIL/WALSALL,30/09/2019,ECONOMY & ENVIRONMENT,WWW.BANNERUK.COM,09/07/2019,H59620190713KCORCJDLE-1,25.54,CENTRALISED STATIONARY-STATIONERY & GENERAL SUPPLIES-OFFICE EXP,"STATIONERY, OFFICE SUPPLIES AND WRITING PAPER",GPC
WALSALL COUNCIL,HTTP://OPENDATACOMMUNITIES.ORG/ID/METROPOLITAN-DISTRICT-COUNCIL/WALSALL,30/09/2019,ECONOMY & ENVIRONMENT,WWW.BANNERUK.COM,09/07/2019,H59620190713MTHWDSUGC-1,10.60,CENTRALISED STATIONARY-STATIONERY & GENERAL SUPPLIES-OFFICE EXP,"STATIONERY, OFFICE SUPPLIES AND WRITING PAPER",GPC
WALSALL COUNCIL,HTTP://OPENDATACOMMUNITIES.ORG/ID/METROPOLITAN-DISTRICT-COUNCIL/WALSALL,30/09/2019,CHILDRENS SERVICES,WWW.BANNERUK.COM,09/07/2019,H59620190713NSRJTCSRX-1,38.55,BIRCHILLS CHILDCARE SERVICES-STATIONERY & GENERAL SUPPLIES-OFFICE EXP,"STATIONERY, OFFICE SUPPLIES AND WRITING PAPER",GPC
WALSALL COUNCIL,HTTP://OPENDATACOMMUNITIES.ORG/ID/METROPOLITAN-DISTRICT-COUNCIL/WALSALL,30/09/2019,CHILDRENS SERVICES,WWW.BANNERUK.COM,09/07/2019,H59620190713NSRJTCSRX-2,55.30,BIRCHILLS CHILDCARE SERVICES-POSTAGES AND COURIER SERVICES,"STATIONERY, OFFICE SUPPLIES AND WRITING PAPER",GPC
WALSALL COUNCIL,HTTP://OPENDATACOMMUNITIES.ORG/ID/METROPOLITAN-DISTRICT-COUNCIL/WALSALL,30/09/2019,RESOURCES & TRANSFORMATION,HILTON HOTELS,09/07/2019,H59620190713SDNJPKNVI-1,223.50,SERVICE DELIVERY TEAM-HOTEL ACCOMMODATION-EMPLOYEES,HILTON HOTELS,GPC
WALSALL COUNCIL,HTTP://OPENDATACOMMUNITIES.ORG/ID/METROPOLITAN-DISTRICT-COUNCIL/WALSALL,30/09/2019,ECONOMY & ENVIRONMENT,WWW.BANNERUK.COM,09/07/2019,H59620190713SPVFRMXQG-1,239.08,WALSALL GALA CENTRE-STATIONERY & GENERAL SUPPLIES-OFFICE EXP,"STATIONERY, OFFICE SUPPLIES AND WRITING PAPER",GPC
WALSALL COUNCIL,HTTP://OPENDATACOMMUNITIES.ORG/ID/METROPOLITAN-DISTRICT-COUNCIL/WALSALL,30/09/2019,RESOURCES & TRANSFORMATION,HILTON HOTELS,09/07/2019,H59620190713TWZJIBKUD-1,223.50,SERVICE DELIVERY TEAM-HOTEL ACCOMMODATION-EMPLOYEES,HILTON HOTELS,GPC
